Workbook

Sheet Instructions

Sheet Filters
A1: Filters
J3: Sample Size: | M3: =SUBTOTAL(102,Data!$J:$J) -> 166
D5: Proposal Improvement/Work Type
D22: Proposal Information

Sheet Results
B1: Results | J1: Combined Asphalt Results
B3: Mobilization Results | E3: Traffic Control Project Results
B4: Sample Size: | C4: =SUBTOTAL(102, Data!AB:AB) -> 166 | E4: Sample Size: | F4: =SUBTOTAL(102, Data!AD:AD) -> 166
B5: Expected Range (lower limit): | C5: =_xlfn.AGGREGATE(16,5,Data!$AB:$AB,0.05) -> 0.008 | E5: Expected Range (lower limit): | F5: =_xlfn.AGGREGATE(16,5,Data!$AD:$AD,0.05) -> 0.001 | G5: =_xlfn.AGGREGATE(16,5,Data!$AC:$AC,0.05) -> 913.75
B6: Typical Middle Value: | C6: =_xlfn.AGGREGATE(16,5,Data!$AB:$AB,0.5) -> 0.072 | E6: Typical Middle Value: | F6: =_xlfn.AGGREGATE(16,5,Data!$AD:$AD,0.5) -> 0.004 | G6: =_xlfn.AGGREGATE(16,5,Data!$AC:$AC,0.5) -> 5500
B7: Expected Range (upper limit): | C7: =_xlfn.AGGREGATE(16,5,Data!$AB:$AB,0.95) -> 0.172 | E7: Expected Range (upper limit): | F7: =_xlfn.AGGREGATE(16,5,Data!$AD:$AD,0.95) -> 0.02175 | G7: =_xlfn.AGGREGATE(16,5,Data!$AC:$AC,0.95) -> 104449.095
B9: Average Number of Bidders | C9: =SUBTOTAL(101,Data!R:R) -> 3.391566265
B11: Item Classification Totals
C12: Lower Limit | D12: 2
B13: Expected Range: | C13: Middle Value | D13: =IF(D12=1,0.05,IF(D12=2,0.5,0.95)) -> 0.5
C14: Upper Limit
B15: Item Class | C15: =IF(D12=1,C12,IF(D12=2,C13,C14)) -> Middle Value | D15: Item Class Code
B16: SPVs (Default) | C16: =_xlfn.AGGREGATE(16,5,Data!$AE:$AE,$D$13) -> 0.022 | D16: AAA
B17: Asphalt | C17: =_xlfn.AGGREGATE(16,5,Data!$AF:$AF,$D$13) -> 0.077 | D17: ASPH
B18: Base Aggregate | C18: =_xlfn.AGGREGATE(16,5,Data!$AG:$AG,$D$13) -> 0.028 | D18: BASE
B19: Bridge Painting | C19: =_xlfn.AGGREGATE(16,5,Data!$AH:$AH,$D$13) -> 0 | D19: BRPT
B20: Concrete Pavement | C20: =_xlfn.AGGREGATE(16,5,Data!$AI:$AI,$D$13) -> 0.003 | D20: CONC
B21: Curb & Gutter, Sidewalk | C21: =_xlfn.AGGREGATE(16,5,Data!$AJ:$AJ,$D$13) -> 0.003 | D21: CURB | F21: Average Cost per Mile
B22: Drainage Culverts Conduits | C22: =_xlfn.AGGREGATE(16,5,Data!$AK:$AK,$D$13) -> 0.008 | D22: DRNG
B23: Electrical | C23: =_xlfn.AGGREGATE(16,5,Data!$AL:$AL,$D$13) -> 0 | D23: ELEC | F23: =IFERROR(SUMPRODUCT((Table1[Bid Cost per Mile]<>" ")* SUBTOTAL(109, OFFSET(Data!S2, ROW(Table1[Total Bid Amount])- ROW(Data!S2),)))/SUMPRODUCT((Table1[Bid Cost per Mile]<>" ")* SUBTOTAL(109, OFFSET(Data!E2, ROW(Table1[Proposal Length])- ROW(Data!E2),))),"No proposal lengths") -> 686667.2912
B24: Erosion Control | C24: =_xlfn.AGGREGATE(16,5,Data!$AM:$AM,$D$13) -> 0.0235 | D24: EROC | F24: Note: Mile calculations use centerline, proposal length, not lane miles. Divided highways are not doubled.
B25: Earthwork | C25: =_xlfn.AGGREGATE(16,5,Data!$AN:$AN,$D$13) -> 0.0495 | D25: ERTH
B26: Gates and Fences | C26: =_xlfn.AGGREGATE(16,5,Data!$AO:$AO,$D$13) -> 0 | D26: FENC
B27: Beamguard | C27: =_xlfn.AGGREGATE(16,5,Data!$AP:$AP,$D$13) -> 0 | D27: GDRL
B28: Intelligent Transportation Systems | C28: =_xlfn.AGGREGATE(16,5,Data!$AQ:$AQ,$D$13) -> 0 | D28: ITS
B29: Landscaping | C29: =_xlfn.AGGREGATE(16,5,Data!$AR:$AR,$D$13) -> 0.002 | D29: LSCP
B30: Lighting | C30: =_xlfn.AGGREGATE(16,5,Data!$AS:$AS,$D$13) -> 0 | D30: LTNG
B31: Miscellaneous or Specialty Work | C31: =_xlfn.AGGREGATE(16,5,Data!$AT:$AT,$D$13) -> 0.018 | D31: MISC
B32: Mobilization | C32: =_xlfn.AGGREGATE(16,5,Data!$AB:$AB,$D$13) -> 0.072 | D32: MOBL
B33: Pavement Marking | C33: =_xlfn.AGGREGATE(16,5,Data!$AU:$AU,$D$13) -> 0.012 | D33: PVMK
B34: Removal Asphalt Pavement | C34: =_xlfn.AGGREGATE(16,5,Data!$AV:$AV,$D$13) -> 0.001 | D34: RMVA
B35: Removal Old Structures | C35: =_xlfn.AGGREGATE(16,5,Data!$AW:$AW,$D$13) -> 0 | D35: RMVB
B36: Removal Concrete Pavement | C36: =_xlfn.AGGREGATE(16,5,Data!$AX:$AX,$D$13) -> 0 | D36: RMVC
B37: Removals | C37: =_xlfn.AGGREGATE(16,5,Data!$AY:$AY,$D$13) -> 0.003 | D37: RMVL
B38: Signs | C38: =_xlfn.AGGREGATE(16,5,Data!$AZ:$AZ,$D$13) -> 0.002 | D38: SIGN
B39: Structures | C39: =_xlfn.AGGREGATE(16,5,Data!$BA:$BA,$D$13) -> 0.0035 | D39: STRC
B40: Survey | C40: =_xlfn.AGGREGATE(16,5,Data!$BB:$BB,$D$13) -> 0.005 | D40: SURV
B41: Traffic Control Permanent | C41: =_xlfn.AGGREGATE(16,5,Data!$BC:$BC,$D$13) -> 0 | D41: TRFP
B42: Traffic Control Temporary | C42: =_xlfn.AGGREGATE(16,5,Data!$BD:$BD,$D$13) -> 0.012 | D42: TRFT

Sheet Data
A1: Improvement Type | B1: Improvement Concept | C1: Contract Work Type | D1: Work Rating | E1: Proposal Length | F1: Urban/ Rural | G1: Project Size | H1: Let Date | I1: Let Calendar Year | J1: Proposal ID | K1: Controlling Project ID | L1: Subprogram (by Controlling Project ID) | M1: Region | N1: County | O1: Route | P1: Proposal Description | Q1: Low Bidder | R1: Number of Bidders | S1: Total Bid Amount | T1: Bid Cost per Mile | U1: Item Number (for largest mix) | V1: Item Description (for largest mix) | W1: Total HMA Qty (TON) | X1: Ave HMA Unit Price (DOL/TON) | Y1: Number of Mixes | Z1: PWL Project | AA1: Mobilization Bid Price | AB1: Mobilization Percentage | AC1: Traffic Control Item Price | AD1: Traffic Control Item Percentage | AE1: SPVs (AAA) | AF1: ASPH | AG1: BASE | AH1: BRPT | AI1: CONC | AJ1: CURB | AK1: DRNG | AL1: ELEC | AM1: EROC | AN1: ERTH | AO1: FENC | AP1: GDRL | AQ1: ITS | AR1: LSCP | AS1: LTNG | AT1: MISC | AU1: PVMK | AV1: RMVA | AW1: RMVB | AX1: RMVC | AY1: RMVL | AZ1: SIGN | BA1: STRC | BB1: SURV | BC1: TRFP | BD1: TRFT
A2: Bridge Replacement | B2: BRIDGE REPLACEMENT, PRESERVATION | C2: Structures | D2: Highway Structures | E2: =0.122+0.052 -> 0.174 | F2: Rural | G2: $ 1M to $ 2M | H2: 2025-04-08 | I2: 2025 | J2: 20250408002 | K2: 3672-00-70 | L2: HIGHWAY AND LOCAL BRIDGE IMPROVEMENT ASSISTANCE | M2: SW | N2: Dane | O2: CTH A | P2: T Chistiana - T Oakland (CTH A); Koshkonong Creek Bridge B-13-0909 | Q2: PHEIFER BROTHERS CONSTRUCTION CO., INC. | R2: 5 | S2: 1446013.06 | T2: =IFERROR(Table1[[#This Row],[Total Bid Amount]]/Table1[[#This Row],[Proposal Length]]," ") -> 8310419.885 | AA2: 92072.39 | AB2: 0.064 | AC2: 5000 | AD2: 0.004 | AE2: 0 | AF2: 0.034 | AG2: 0.018 | AH2: 0 | AI2: 0.022 | AJ2: 0 | AK2: 0.001 | AL2: 0 | AM2: 0.041 | AN2: 0.068 | AO2: 0 | AP2: 0.024 | AQ2: 0 | AR2: 0.001 | AS2: 0 | AT2: 0.015 | AU2: 0.004 | AV2: 0.009 | AW2: 0.205 | AX2: 0 | AY2: 0.001 | AZ2: 0.001 | BA2: 0.47 | BB2: 0.006 | BC2: 0 | BD2: 0.016
A3: Bridge Replacement | B3: BRIDGE REPLACEMENT, PRESERVATION | C3: Structures | D3: General Const and Highway Structures | E3: 0.073 | F3: Rural | G3: $ 0.5M to $ 1M | H3: 2025-04-08 | I3: 2025 | J3: 20250408003 | K3: 3682-00-70 | L3: HIGHWAY AND LOCAL BRIDGE IMPROVEMENT ASSISTANCE | M3: SW | N3: Dane | O3: CTH TT | P3: T Medina - T York (CTH Tt); Maunesha River Bridge B-13-0913 | Q3: RADTKE CONTRACTORS INC. | R3: 6 | S3: 842662.63 | T3: =IFERROR(Table1[[#This Row],[Total Bid Amount]]/Table1[[#This Row],[Proposal Length]]," ") -> 11543323.7 | U3: 460.5224 | V3: HMA Pavement 4 LT 58-28 S | W3: 310 | X3: 96.7 | Y3: 1 | AA3: 97233.9 | AB3: 0.115 | AC3: 7290 | AD3: 0.009 | AE3: 0.012 | AF3: 0.036 | AG3: 0.027 | AH3: 0 | AI3: 0.034 | AJ3: 0 | AK3: 0.004 | AL3: 0 | AM3: 0.053 | AN3: 0.084 | AO3: 0 | AP3: 0.039 | AQ3: 0 | AR3: 0.002 | AS3: 0 | AT3: 0.015 | AU3: 0.004 | AV3: 0.007 | AW3: 0.057 | AX3: 0 | AY3: 0.002 | AZ3: 0.001 | BA3: 0.488 | BB3: 0.007 | BC3: 0 | BD3: 0.012
A4: Reconstruction | B4: RECONSTRUCTION, PRESERVATION | C4: General Construction | D4: General Construction | E4: 0.263 | F4: Unknown | G4: $ 0.5M to $ 1M | H4: 2025-04-08 | I4: 2025 | J4: 20250408004 | K4: 3996-00-35 | L4: LOCAL TRANSPORTATION FACILITY IMPROVEMENT ASSISTANCE | M4: SW | N4: Dane | O4: LOC STR | P4: City of Sun Prairie, N Bird Street; STH 19 to USH 151 | Q4: PARISI CONSTRUCTION, LLC | R4: 4 | S4: 714605.83 | T4: =IFERROR(Table1[[#This Row],[Total Bid Amount]]/Table1[[#This Row],[Proposal Length]]," ") -> 2717132.433 | U4: 460.6223 | V4: HMA Pavement 3 MT 58-28 S | W4: 1550 | X4: 82 | Y4: 2 | AA4: 5000 | AB4: 0.007 | AC4: 10500 | AD4: 0.015 | AE4: 0.128 | AF4: 0.179 | AG4: 0.056 | AH4: 0 | AI4: 0.055 | AJ4: 0.229 | AK4: 0.058 | AL4: 0 | AM4: 0.025 | AN4: 0.054 | AO4: 0 | AP4: 0 | AQ4: 0 | AR4: 0.003 | AS4: 0 | AT4: 0.032 | AU4: 0.015 | AV4: 0.046 | AW4: 0 | AX4: 0.007 | AY4: 0.056 | AZ4: 0.01 | BA4: 0 | BB4: 0.018 | BC4: 0 | BD4: 0.022
A5: Miscellaneous | B5: MISCELLANEOUS | C5: Asphaltic Pavement | D5: General Const and Asphaltic Surfacing | E5: 1.699 | F5: Rural | G5: $ 0.5M or less | H5: 2025-04-08 | I5: 2025 | J5: 20250408005 | K5: 5078-00-60 | L5: LOCAL TRANSPORTATION FACILITY IMPROVEMENT ASSISTANCE | M5: SW | N5: La Crosse | O5: CTH FO | P5: CTH F - CTH Oa; CTH F to CTH Oa | Q5: MATHY CONSTRUCTION COMPANY | R5: 1 | S5: 344783.39 | T5: =IFERROR(Table1[[#This Row],[Total Bid Amount]]/Table1[[#This Row],[Proposal Length]]," ") -> 202933.1313 | U5: 460.5224 | V5: HMA Pavement 4 LT 58-28 S | W5: 1615 | X5: 98.5 | Y5: 1 | AA5: 33577.25 | AB5: 0.097 | AC5: 3985 | AD5: 0.012 | AE5: 0 | AF5: 0.499 | AG5: 0.077 | AH5: 0 | AI5: 0 | AJ5: 0 | AK5: 0 | AL5: 0 | AM5: 0.001 | AN5: 0.109 | AO5: 0 | AP5: 0 | AQ5: 0 | AR5: 0 | AS5: 0 | AT5: 0.094 | AU5: 0.042 | AV5: 0.055 | AW5: 0 | AX5: 0 | AY5: 0 | AZ5: 0.003 | BA5: 0 | BB5: 0.007 | BC5: 0 | BD5: 0.016
A6: Resurfacing | B6: RESURFACING (OVERLAY < 2.5 INCHES) | C6: Asphaltic Pavement | D6: General Const and Asphaltic Surfacing | E6: 12.95 | F6: Rural | G6: $ 2M to $10M | H6: 2025-04-08 | I6: 2025 | J6: 20250408007 | K6: 5606-03-70 | L6: STATE HIGHWAY REHABILITATION | M6: SW | N6: Green | O6: STH 092 | P6: Mt Horeb - Brooklyn; East Avenue to USH 14 | Q6: PAYNE AND DOLAN, INC | R6: 2 | S6: 3157266.71 | T6: =IFERROR(Table1[[#This Row],[Total Bid Amount]]/Table1[[#This Row],[Proposal Length]]," ") -> 243804.3792 | U6: 460.5224 | V6: HMA Pavement 4 LT 58-28 S | W6: 26790 | X6: 76.3 | Y6: 2 | Z6: X | AA6: 15700 | AB6: 0.005 | AC6: 8432.44 | AD6: 0.003 | AE6: 0.003 | AF6: 0.718 | AG6: 0.035 | AH6: 0 | AI6: 0.002 | AJ6: 0.055 | AK6: 0.001 | AL6: 0 | AM6: 0.01 | AN6: 0.001 | AO6: 0 | AP6: 0.003 | AQ6: 0 | AR6: 0.001 | AS6: 0 | AT6: 0.033 | AU6: 0.095 | AV6: 0.002 | AW6: 0 | AX6: 0.001 | AY6: 0.005 | AZ6: 0.002 | BA6: 0 | BB6: 0.01 | BC6: 0 | BD6: 0.021
A7: Bridge Rehab. & Preventive | B7: BRIDGE REHABILITATION | C7: Structures | D7: General Const and Highway Structures | E7: 0.124 | F7: Unknown | G7: $ 1M to $ 2M | H7: 2025-04-08 | I7: 2025 | J7: 20250408010 | K7: 2703-05-71 | L7: HIGHWAY AND LOCAL BRIDGE IMPROVEMENT ASSISTANCE | M7: SE | N7: Racine | O7: LOC STR | P7: C Racine, 6th St; Root River Bridge B-51-0064 | Q7: ZENITH TECH., INC. - WAUKESHA | R7: 2 | S7: 1044833.85 | T7: =IFERROR(Table1[[#This Row],[Total Bid Amount]]/Table1[[#This Row],[Proposal Length]]," ") -> 8426079.435 | U7: 460.5223 | V7: HMA Pavement 3 LT 58-28 S | W7: 45 | X7: 295 | Y7: 2 | AA7: 161000 | AB7: 0.154 | AC7: 18000 | AD7: 0.017 | AE7: 0.02 | AF7: 0.013 | AG7: 0.012 | AH7: 0.073 | AI7: 0.08 | AJ7: 0.026 | AK7: 0.006 | AL7: 0 | AM7: 0.001 | AN7: 0.015 | AO7: 0 | AP7: 0 | AQ7: 0 | AR7: 0 | AS7: 0 | AT7: 0.015 | AU7: 0.028 | AV7: 0 | AW7: 0.048 | AX7: 0.005 | AY7: 0.001 | AZ7: 0.002 | BA7: 0.475 | BB7: 0.004 | BC7: 0 | BD7: 0.021
A8: Miscellaneous | B8: MISCELLANEOUS | C8: Grading | D8: General Construction and Grading | E8: 0.257 | F8: Rural | G8: $ 2M to $10M | H8: 2025-04-08 | I8: 2025 | J8: 20250408011 | K8: 2814-03-70 | L8: LOCAL TRANSPORTATION FACILITY IMPROVEMENT ASSISTANCE | M8: SE | N8: Racine | O8: CTH J | P8: V Rochester CTH A; Intersection With CTH J | Q8: MUSSON BROS., INC. | R8: 6 | S8: 2097598.99 | T8: =IFERROR(Table1[[#This Row],[Total Bid Amount]]/Table1[[#This Row],[Proposal Length]]," ") -> 8161863.774 | U8: 460.5223 | V8: HMA Pavement 3 LT 58-28 S | W8: 3200 | X8: 73.45 | Y8: 2 | AA8: 380000 | AB8: 0.181 | AC8: 8660 | AD8: 0.004 | AE8: 0.018 | AF8: 0.12 | AG8: 0.177 | AH8: 0 | AI8: 0.038 | AJ8: 0.054 | AK8: 0.035 | AL8: 0.041 | AM8: 0.055 | AN8: 0.12 | AO8: 0.034 | AP8: 0.029 | AQ8: 0 | AR8: 0.005 | AS8: 0.007 | AT8: 0.022 | AU8: 0.009 | AV8: 0.003 | AW8: 0 | AX8: 0 | AY8: 0.011 | AZ8: 0.021 | BA8: 0 | BB8: 0.01 | BC8: 0.002 | BD8: 0.009
A9: Resurfacing | B9: RESURFACING (OVERLAY >= 4 INCHES) | C9: Asphaltic Pavement | D9: General Const and Asphaltic Surfacing | E9: 0.816 | F9: Urban | G9: $ 1M to $ 2M | H9: 2025-04-08 | I9: 2025 | J9: 20250408012 | K9: 3180-00-78 | L9: STATE HIGHWAY REHABILITATION | M9: SE | N9: Racine | O9: VAR HWY | P9: STH 11/STH 36 Ramps; Racine Co Line to STH 36/CTH Q I/C | Q9: PAYNE AND DOLAN, INC | R9: 1 | S9: 1438664 | T9: =IFERROR(Table1[[#This Row],[Total Bid Amount]]/Table1[[#This Row],[Proposal Length]]," ") -> 1763068.627 | U9: 460.5424 | V9: HMA Pavement 4 LT 58-28 H | W9: 11657 | X9: 88.01827228 | Y9: 6 | AA9: 3105 | AB9: 0.002 | AC9: 11000 | AD9: 0.008 | AE9: 0.006 | AF9: 0.73 | AG9: 0.011 | AH9: 0 | AI9: 0 | AJ9: 0 | AK9: 0 | AL9: 0 | AM9: 0.006 | AN9: 0.023 | AO9: 0 | AP9: 0.022 | AQ9: 0 | AR9: 0 | AS9: 0 | AT9: 0.005 | AU9: 0.126 | AV9: 0.052 | AW9: 0 | AX9: 0 | AY9: 0 | AZ9: 0.001 | BA9: 0 | BB9: 0 | BC9: 0 | BD9: 0.016
A10: Reconstruction | B10: RECONSTRUCTION, PRESERVATION | C10: Concrete Pavement | D10: General Construction and PCC Pavement | E10: 0.481 | F10: Unknown | G10: $ 2M to $10M | H10: 2025-04-08 | I10: 2025 | J10: 20250408013 | K10: 3831-00-72 | L10: LOCAL TRANSPORTATION FACILITY IMPROVEMENT ASSISTANCE | M10: SE | N10: Kenosha | O10: LOC STR | P10: C Kenosha,39th Ave; 60th St to 52nd St (STH 158) | Q10: A.W. OAKES & SON, INC. | R10: 5 | S10: 3153701.01 | T10: =IFERROR(Table1[[#This Row],[Total Bid Amount]]/Table1[[#This Row],[Proposal Length]]," ") -> 6556550.956 | AA10: 156000 | AB10: 0.049 | AC10: 18000 | AD10: 0.006 | AE10: 0.142 | AF10: 0 | AG10: 0.057 | AH10: 0 | AI10: 0.265 | AJ10: 0.059 | AK10: 0.166 | AL10: 0.042 | AM10: 0.023 | AN10: 0.058 | AO10: 0 | AP10: 0 | AQ10: 0 | AR10: 0.012 | AS10: 0.004 | AT10: 0.027 | AU10: 0.019 | AV10: 0 | AW10: 0 | AX10: 0.034 | AY10: 0.011 | AZ10: 0.005 | BA10: 0 | BB10: 0.008 | BC10: 0.003 | BD10: 0.016
A11: Reconditioning | B11: RECONDITION (INTERSECTION/WIDEN/SHOULDER) | C11: Asphaltic Pavement | D11: General Const and Asphaltic Surfacing | E11: 2.517 | F11: Rural | G11: $ 1M to $ 2M | H11: 2025-04-08 | I11: 2025 | J11: 20250408014 | K11: 4390-01-74 | L11: LOCAL TRANSPORTATION FACILITY IMPROVEMENT ASSISTANCE | M11: NE | N11: Kewaunee | O11: CTH C | P11: Kewaunee Co, CTH C; CTH L to Clyde Hill Road | Q11: RELYCO PLUS, LLC | R11: 2 | S11: 1630919.16 | T11: =IFERROR(Table1[[#This Row],[Total Bid Amount]]/Table1[[#This Row],[Proposal Length]]," ") -> 647961.5256 | U11: 460.5223 | V11: HMA Pavement 3 LT 58-28 S | W11: 10250 | X11: 83.50887805 | Y11: 2 | AA11: 202000 | AB11: 0.124 | AC11: 7950 | AD11: 0.005 | AE11: 0.024 | AF11: 0.551 | AG11: 0.116 | AH11: 0 | AI11: 0 | AJ11: 0.006 | AK11: 0.03 | AL11: 0 | AM11: 0.019 | AN11: 0.056 | AO11: 0 | AP11: 0.027 | AQ11: 0 | AR11: 0.002 | AS11: 0 | AT11: 0.018 | AU11: 0.011 | AV11: 0.001 | AW11: 0 | AX11: 0 | AY11: 0.001 | AZ11: 0.001 | BA11: 0 | BB11: 0.003 | BC11: 0 | BD11: 0.008
A12: Reconstruction | B12: RECONSTRUCTION, PRESERVATION | C12: General Construction | D12: General Construction | E12: 0.109 | F12: Unknown | G12: $ 1M to $ 2M | H12: 2025-04-08 | I12: 2025 | J12: 20250408015 | K12: 9277-01-71 | L12: LOCAL TRANSPORTATION FACILITY IMPROVEMENT ASSISTANCE | M12: NE | N12: Brown | O12: CTH EE | P12: T Lawrence, CTH Ee; Mourning Dove Ct to Lawrence Drive | Q12: VINTON CONSTRUCTION COMPANY | R12: 3 | S12: 1625181.45 | T12: =IFERROR(Table1[[#This Row],[Total Bid Amount]]/Table1[[#This Row],[Proposal Length]]," ") -> 14909921.56 | U12: 460.6223 | V12: HMA Pavement 3 MT 58-28 S | W12: 904 | X12: 105.4017699 | Y12: 2 | AA12: 146000 | AB12: 0.09 | AC12: 6850 | AD12: 0.004 | AE12: 0.066 | AF12: 0.061 | AG12: 0.078 | AH12: 0 | AI12: 0.19 | AJ12: 0.101 | AK12: 0.204 | AL12: 0.042 | AM12: 0.033 | AN12: 0.05 | AO12: 0 | AP12: 0 | AQ12: 0 | AR12: 0.003 | AS12: 0.007 | AT12: 0.029 | AU12: 0.01 | AV12: 0 | AW12: 0 | AX12: 0.011 | AY12: 0.005 | AZ12: 0.006 | BA12: 0 | BB12: 0.005 | BC12: 0.002 | BD12: 0.007
A13: Pavement Replacement | B13: PAVEMENT REPLACEMENT | C13: Asphaltic Pavement | D13: General Const and Asphaltic Surfacing | E13: 1.5 | F13: Urban | G13: $ 1M to $ 2M | H13: 2025-04-08 | I13: 2025 | J13: 20250408016 | K13: 1175-21-70 | L13: STATE HIGHWAY REHABILITATION | M13: NC | N13: Iron | O13: USH 051 | P13: Manitowish - Hurley; Iron Street to USH 2 | Q13: NORTHWOODS PAVING, A DIV. OF MATHY CONSTRUCTION CO. | R13: 2 | S13: 1694607.24 | T13: =IFERROR(Table1[[#This Row],[Total Bid Amount]]/Table1[[#This Row],[Proposal Length]]," ") -> 1129738.16 | U13: 460.6244 | V13: HMA Pavement 4 MT 58-34 S | W13: 9157 | X13: 89.11393797 | Y13: 2 | AA13: 7169.08 | AB13: 0.004 | AC13: 5200 | AD13: 0.003 | AE13: 0.033 | AF13: 0.492 | AG13: 0.016 | AH13: 0.004 | AI13: 0.028 | AJ13: 0.159 | AK13: 0.039 | AL13: 0 | AM13: 0.021 | AN13: 0 | AO13: 0 | AP13: 0 | AQ13: 0 | AR13: 0.001 | AS13: 0 | AT13: 0.029 | AU13: 0.034 | AV13: 0.066 | AW13: 0 | AX13: 0.002 | AY13: 0.024 | AZ13: 0.002 | BA13: 0.007 | BB13: 0.011 | BC13: 0 | BD13: 0.027
A14: Resurfacing | B14: RESURFACING (OVERLAY < 2.5 INCHES) | C14: Asphaltic Pavement | D14: General Const and Asphaltic Surfacing | E14: 4.035 | F14: Rural | G14: $ 1M to $ 2M | H14: 2025-04-08 | I14: 2025 | J14: 20250408017 | K14: 6590-01-73 | L14: STATE HIGHWAY REHABILITATION | M14: NC | N14: Waupaca | O14: STH 110 | P14: Fremont - Marion; CTH Aa to S Jct STH 22 | Q14: NORTHEAST ASPHALT, INC | R14: 2 | S14: 1417178.24 | T14: =IFERROR(Table1[[#This Row],[Total Bid Amount]]/Table1[[#This Row],[Proposal Length]]," ") -> 351221.373 | U14: 460.5224 | V14: HMA Pavement 4 LT 58-28 S | W14: 7710 | X14: 61.4 | Y14: 1 | AA14: 71400 | AB14: 0.05 | AC14: 4500 | AD14: 0.003 | AE14: 0.014 | AF14: 0.526 | AG14: 0.085 | AH14: 0 | AI14: 0 | AJ14: 0.003 | AK14: 0.062 | AL14: 0 | AM14: 0.029 | AN14: 0.061 | AO14: 0 | AP14: 0.007 | AQ14: 0 | AR14: 0.001 | AS14: 0 | AT14: 0.03 | AU14: 0.068 | AV14: 0.036 | AW14: 0.001 | AX14: 0 | AY14: 0.003 | AZ14: 0.002 | BA14: 0 | BB14: 0.003 | BC14: 0 | BD14: 0.017
A15: Preservation/Restoration | B15: SHORT TERM OVERLAY (MILL AND OVERLAY) | C15: Asphaltic Pavement | D15: Asphaltic Surfacing | E15: 10.584 | F15: Rural | G15: $ 2M to $10M | H15: 2025-04-08 | I15: 2025 | J15: 20250408018 | K15: 8695-03-60 | L15: STATE HIGHWAY REHABILITATION | M15: NC | N15: Price | O15: STH 111 | P15: Catawba - STH 13; USH 8 to STH 13 | Q15: PITLIK & WICK, INC. | R15: 2 | S15: 3105378.06 | T15: =IFERROR(Table1[[#This Row],[Total Bid Amount]]/Table1[[#This Row],[Proposal Length]]," ") -> 293403.0669 | U15: 460.5224 | V15: HMA Pavement 4 LT 58-28 S | W15: 16360 | X15: 79.5 | Y15: 1 | Z15: X | AA15: 305000 | AB15: 0.098 | AC15: 20000 | AD15: 0.006 | AE15: 0.062 | AF15: 0.496 | AG15: 0.028 | AH15: 0 | AI15: 0 | AJ15: 0.003 | AK15: 0.066 | AL15: 0 | AM15: 0.008 | AN15: 0.025 | AO15: 0 | AP15: 0 | AQ15: 0 | AR15: 0.001 | AS15: 0 | AT15: 0.018 | AU15: 0.089 | AV15: 0.082 | AW15: 0 | AX15: 0 | AY15: 0.003 | AZ15: 0.001 | BA15: 0 | BB15: 0.005 | BC15: 0 | BD15: 0.014
A16: Preservation/Restoration | B16: SHORT TERM OVERLAY (MILL AND OVERLAY) | C16: Asphaltic Pavement | D16: General Const and Asphaltic Surfacing | E16: 6.026 | F16: Rural | G16: $ 1M to $ 2M | H16: 2025-04-08 | I16: 2025 | J16: 20250408019 | K16: 9225-07-60 | L16: STATE HIGHWAY REHABILITATION | M16: NC | N16: Price | O16: STH 102 | P16: Chelsea - Spirit; Taylor County Line to STH 86 | Q16: AMERICAN ASPHALT OF WISCONSIN | R16: 1 | S16: 1855011.4 | T16: =IFERROR(Table1[[#This Row],[Total Bid Amount]]/Table1[[#This Row],[Proposal Length]]," ") -> 307834.6167 | U16: 460.5224 | V16: HMA Pavement 4 LT 58-28 S | W16: 8545 | X16: 82.2 | Y16: 1 | AA16: 114400 | AB16: 0.062 | AC16: 2000 | AD16: 0.001 | AE16: 0.115 | AF16: 0.459 | AG16: 0.038 | AH16: 0 | AI16: 0 | AJ16: 0.009 | AK16: 0.069 | AL16: 0 | AM16: 0.01 | AN16: 0.044 | AO16: 0 | AP16: 0 | AQ16: 0 | AR16: 0.001 | AS16: 0 | AT16: 0.026 | AU16: 0.077 | AV16: 0.068 | AW16: 0 | AX16: 0 | AY16: 0.002 | AZ16: 0.001 | BA16: 0 | BB16: 0.007 | BC16: 0 | BD16: 0.012
A17: Miscellaneous | B17: MISCELLANEOUS | C17: General Construction | D17: General and Incidental Construction | E17: =2.813+4.823+1.502 -> 9.138 | F17: Rural | G17: $ 2M to $10M | H17: 2025-04-08 | I17: 2025 | J17: 20250408021 | K17: 1020-00-84 | L17: STATE HIGHWAY REHABILITATION | M17: NW | N17: St Croix | O17: IH 094 | P17: Hudson - Baldwin; 0.95 Mi W of STH 65 to CTH J | Q17: MATTISON CONTRACTORS, INC. | R17: 1 | S17: 2995947.79 | T17: =IFERROR(Table1[[#This Row],[Total Bid Amount]]/Table1[[#This Row],[Proposal Length]]," ") -> 327855.963 | AA17: 259525 | AB17: 0.087 | AC17: 64500 | AD17: 0.022 | AE17: 0.016 | AF17: 0 | AG17: 0.019 | AH17: 0 | AI17: 0 | AJ17: 0 | AK17: 0.006 | AL17: 0 | AM17: 0.045 | AN17: 0.061 | AO17: 0 | AP17: 0.698 | AQ17: 0 | AR17: 0.02 | AS17: 0 | AT17: 0.012 | AU17: 0 | AV17: 0 | AW17: 0 | AX17: 0 | AY17: 0.001 | AZ17: 0 | BA17: 0 | BB17: 0.005 | BC17: 0 | BD17: 0.029
A18: Reconditioning | B18: RECONDITION (INTERSECTION/WIDEN/SHOULDER) | C18: Asphaltic Pavement | D18: General Const and Asphaltic Surfacing | E18: 2.038 | F18: Unknown | G18: $ 1M to $ 2M | H18: 2025-04-08 | I18: 2025 | J18: 20250408022 | K18: 7864-00-74 | L18: LOCAL TRANSPORTATION FACILITY IMPROVEMENT ASSISTANCE | M18: NW | N18: Chippewa | O18: CTH OO | P18: Eau Claire - Chippewa Falls; BUS 53 to STH 124 | Q18: HAAS SONS, INC. | R18: 2 | S18: 1718606.3 | T18: =IFERROR(Table1[[#This Row],[Total Bid Amount]]/Table1[[#This Row],[Proposal Length]]," ") -> 843280.8145 | U18: 460.6244 | V18: HMA Pavement 4 MT 58-34 S | W18: 6180 | X18: 95.12502913 | Y18: 2 | AA18: 224245 | AB18: 0.13 | AC18: 3000 | AD18: 0.002 | AE18: 0.18 | AF18: 0.408 | AG18: 0.028 | AH18: 0 | AI18: 0.005 | AJ18: 0.007 | AK18: 0.007 | AL18: 0 | AM18: 0.038 | AN18: 0.12 | AO18: 0 | AP18: 0 | AQ18: 0 | AR18: 0.007 | AS18: 0 | AT18: 0.022 | AU18: 0.012 | AV18: 0 | AW18: 0 | AX18: 0.001 | AY18: 0.001 | AZ18: 0.004 | BA18: 0 | BB18: 0.009 | BC18: 0 | BD18: 0.021
A19: Reconditioning | B19: RECONDITION (IMPROVE CURVE/GRADE/SIGHT/INTERSECT) | C19: Grading | D19: General Construction and Grading | E19: 0.923 | F19: Rural | G19: $ 1M to $ 2M | H19: 2025-04-08 | I19: 2025 | J19: 20250408023 | K19: 7868-03-70 | L19: LOCAL TRANSPORTATION FACILITY IMPROVEMENT ASSISTANCE | M19: NW | N19: Pepin | O19: CTH PP | P19: South County Line - USH 10; South County Line to V Schuh Lane | Q19: JAMES PETERSON SONS, INC. | R19: 4 | S19: 1130766.23 | T19: =IFERROR(Table1[[#This Row],[Total Bid Amount]]/Table1[[#This Row],[Proposal Length]]," ") -> 1225098.841 | U19: 460.5223 | V19: HMA Pavement 3 LT 58-28 S | W19: 2930 | X19: 92.46307167 | Y19: 2 | AA19: 176180 | AB19: 0.156 | AC19: 3500 | AD19: 0.003 | AE19: 0 | AF19: 0.253 | AG19: 0.095 | AH19: 0 | AI19: 0 | AJ19: 0 | AK19: 0.03 | AL19: 0 | AM19: 0.077 | AN19: 0.277 | AO19: 0 | AP19: 0.06 | AQ19: 0 | AR19: 0.007 | AS19: 0 | AT19: 0.018 | AU19: 0.006 | AV19: 0.002 | AW19: 0 | AX19: 0 | AY19: 0.006 | AZ19: 0.002 | BA19: 0 | BB19: 0.007 | BC19: 0 | BD19: 0.004
A20: Bridge Replacement | B20: BRIDGE REPLACEMENT, PRESERVATION | C20: Structures | D20: General Const and Highway Structures | E20: 0.076 | F20: Rural | G20: $ 0.5M to $ 1M | H20: 2025-04-08 | I20: 2025 | J20: 20250408024 | K20: 7873-03-72 | L20: HIGHWAY AND LOCAL BRIDGE IMPROVEMENT ASSISTANCE | M20: NW | N20: Pepin | O20: CTH D | P20: Arkansaw - Ncl; Eau Galle River Bridge B-46-0058 | Q20: RADTKE CONTRACTORS INC. | R20: 3 | S20: 913093.99 | T20: =IFERROR(Table1[[#This Row],[Total Bid Amount]]/Table1[[#This Row],[Proposal Length]]," ") -> 12014394.61 | AA20: 151179.08 | AB20: 0.166 | AC20: 2412 | AD20: 0.003 | AE20: 0.017 | AF20: 0.033 | AG20: 0.02 | AH20: 0 | AI20: 0.002 | AJ20: 0 | AK20: 0.003 | AL20: 0 | AM20: 0.033 | AN20: 0.078 | AO20: 0 | AP20: 0.031 | AQ20: 0 | AR20: 0.002 | AS20: 0 | AT20: 0.007 | AU20: 0.006 | AV20: 0 | AW20: 0.078 | AX20: 0 | AY20: 0.001 | AZ20: 0.001 | BA20: 0.514 | BB20: 0.003 | BC20: 0 | BD20: 0.005
A21: Pavement Replacement | B21: PAVEMENT REPLACEMENT | C21: Asphaltic Pavement | D21: General Const and Asphaltic Surfacing | E21: 2.78 | F21: Rural | G21: $ 1M to $ 2M | H21: 2025-04-08 | I21: 2025 | J21: 20250408025 | K21: 7899-03-72 | L21: LOCAL TRANSPORTATION FACILITY IMPROVEMENT ASSISTANCE | M21: NW | N21: Pierce | O21: CTH U | P21: CTH Cc - Plum City; CTH Cc to 145th Avenue | Q21: MONARCH PAVING COMPANY | R21: 1 | S21: 1492589.93 | T21: =IFERROR(Table1[[#This Row],[Total Bid Amount]]/Table1[[#This Row],[Proposal Length]]," ") -> 536902.8525 | U21: 460.5223 | V21: HMA Pavement 3 LT 58-28 S | W21: 10750 | X21: 90.28823256 | Y21: 2 | AA21: 86000 | AB21: 0.058 | AC21: 5600 | AD21: 0.004 | AE21: 0.027 | AF21: 0.66 | AG21: 0.155 | AH21: 0 | AI21: 0 | AJ21: 0 | AK21: 0 | AL21: 0 | AM21: 0.006 | AN21: 0.031 | AO21: 0 | AP21: 0.005 | AQ21: 0 | AR21: 0 | AS21: 0 | AT21: 0.023 | AU21: 0.02 | AV21: 0.002 | AW21: 0 | AX21: 0 | AY21: 0 | AZ21: 0 | BA21: 0 | BB21: 0.002 | BC21: 0 | BD21: 0.011
A22: Bridge Replacement | B22: BRIDGE REPLACEMENT, PRESERVATION | C22: Structures | D22: General Const and Highway Structures | E22: 0.028 | F22: Rural | G22: $ 0.5M or less | H22: 2025-04-08 | I22: 2025 | J22: 20250408026 | K22: 8907-00-72 | L22: HIGHWAY AND LOCAL BRIDGE IMPROVEMENT ASSISTANCE | M22: NW | N22: Chippewa | O22: LOC STR | P22: T Bloomer, 190th Avenue; Br Duncan Creek Bridge B-09-0311 | Q22: JANKE GENERAL CONTRACTORS, INC. | R22: 5 | S22: 444803.23 | T22: =IFERROR(Table1[[#This Row],[Total Bid Amount]]/Table1[[#This Row],[Proposal Length]]," ") -> 15885829.64 | AA22: 41000 | AB22: 0.092 | AC22: 2550 | AD22: 0.006 | AE22: 0 | AF22: 0.03 | AG22: 0.015 | AH22: 0 | AI22: 0.003 | AJ22: 0 | AK22: 0.005 | AL22: 0 | AM22: 0.055 | AN22: 0.064 | AO22: 0 | AP22: 0 | AQ22: 0 | AR22: 0.002 | AS22: 0 | AT22: 0.025 | AU22: 0 | AV22: 0 | AW22: 0.03 | AX22: 0 | AY22: 0.003 | AZ22: 0.004 | BA22: 0.659 | BB22: 0.005 | BC22: 0 | BD22: 0.009
A23: Resurfacing | B23: RESURFACING (OVERLAY < 2.5 INCHES) | C23: General Construction | D23: General Construction | E23: 3.824 | F23: Unknown | G23: $ 2M to $10M | H23: 2025-04-08 | I23: 2025 | J23: 20250408027 | K23: 1380-02-70 | L23: STATE HIGHWAY REHABILITATION | M23: SE | N23: Ozaukee | O23: STH 167 | P23: Mequon Road, City of Mequon; Washington Co Line to Buntrock Ave | Q23: VINTON CONSTRUCTION COMPANY | R23: 6 | S23: 3487163.6 | T23: =IFERROR(Table1[[#This Row],[Total Bid Amount]]/Table1[[#This Row],[Proposal Length]]," ") -> 911915.1674 | U23: 460.6224 | V23: HMA Pavement 4 MT 58-28 S | W23: 7272 | X23: 71.92699395 | Y23: 2 | AA23: 147000 | AB23: 0.042 | AC23: 17000 | AD23: 0.005 | AE23: 0.067 | AF23: 0.163 | AG23: 0.012 | AH23: 0 | AI23: 0.224 | AJ23: 0.066 | AK23: 0.035 | AL23: 0.106 | AM23: 0.024 | AN23: 0.023 | AO23: 0 | AP23: 0.003 | AQ23: 0.005 | AR23: 0.002 | AS23: 0.004 | AT23: 0.053 | AU23: 0.067 | AV23: 0.035 | AW23: 0.001 | AX23: 0.002 | AY23: 0.011 | AZ23: 0.008 | BA23: 0 | BB23: 0.006 | BC23: 0.019 | BD23: 0.019
A24: Bridge Replacement | B24: BRIDGE REPLACEMENT, PRESERVATION | C24: Structures | D24: General Const and Highway Structures | E24: 0.086 | F24: Rural | G24: $ 0.5M to $ 1M | H24: 2025-04-08 | I24: 2025 | J24: 20250408028 | K24: 9478-03-71 | L24: HIGHWAY AND LOCAL BRIDGE IMPROVEMENT ASSISTANCE | M24: NC | N24: Marathon | O24: CTH L | P24: STH 107 - CTH O; Little Rib River Bridge, B-37-0473 | Q24: JANKE GENERAL CONTRACTORS, INC. | R24: 6 | S24: 639961.83 | T24: =IFERROR(Table1[[#This Row],[Total Bid Amount]]/Table1[[#This Row],[Proposal Length]]," ") -> 7441416.628 | AA24: 26000 | AB24: 0.041 | AC24: 900 | AD24: 0.001 | AE24: 0.007 | AF24: 0.072 | AG24: 0.041 | AH24: 0 | AI24: 0.002 | AJ24: 0 | AK24: 0.003 | AL24: 0 | AM24: 0.044 | AN24: 0.135 | AO24: 0 | AP24: 0.043 | AQ24: 0 | AR24: 0.002 | AS24: 0 | AT24: 0.017 | AU24: 0.008 | AV24: 0 | AW24: 0.027 | AX24: 0 | AY24: 0 | AZ24: 0.002 | BA24: 0.544 | BB24: 0.007 | BC24: 0 | BD24: 0.004
A25: Resurfacing | B25: RESURFACING (OVERLAY >= 2.5 INCHES AND < 4 INCHES) | C25: Asphaltic Pavement | D25: General Const and Asphaltic Surfacing | E25: 0.901 | F25: Unknown | G25: $ 2M to $10M | H25: 2025-04-08 | I25: 2025 | J25: 20250408029 | K25: 8610-02-74 | L25: STATE HIGHWAY REHABILITATION | M25: NE | N25: Chippewa | O25: STH 124 | P25: C Chippewa Falls, Bay Street; High Street to Bridge Street | Q25: CHIPPEWA CONCRETE SERVICES, INC. | R25: 2 | S25: 2560809.14 | T25: =IFERROR(Table1[[#This Row],[Total Bid Amount]]/Table1[[#This Row],[Proposal Length]]," ") -> 2842185.505 | U25: 460.6645 | V25: HMA Pavement 5 MT 58-34 V | W25: 4656 | X25: 126 | Y25: 1 | AA25: 289600 | AB25: 0.113 | AC25: 16256.25 | AD25: 0.006 | AE25: 0.007 | AF25: 0.288 | AG25: 0.015 | AH25: 0 | AI25: 0.008 | AJ25: 0.193 | AK25: 0.055 | AL25: 0.038 | AM25: 0.004 | AN25: 0.043 | AO25: 0 | AP25: 0 | AQ25: 0 | AR25: 0.002 | AS25: 0 | AT25: 0.051 | AU25: 0.04 | AV25: 0.076 | AW25: 0 | AX25: 0.007 | AY25: 0.025 | AZ25: 0 | BA25: 0 | BB25: 0.006 | BC25: 0.011 | BD25: 0.017
A26: Pavement Replacement | B26: PAVEMENT REPLACEMENT | C26: General Construction | D26: General Construction | E26: 2.103 | F26: Unknown | G26: $20M or more | H26: 2025-04-08 | I26: 2025 | J26: 20250408030 | K26: 2773-10-70 | L26: STATE HIGHWAY REHABILITATION | M26: SE | N26: Waukesha | O26: STH 059 | P26: East Waukesha Bypass; Sunset Drive to Arcadian Avenue | Q26: MUSSON BROS., INC. | R26: 2 | S26: 23975917.92 | T26: =IFERROR(Table1[[#This Row],[Total Bid Amount]]/Table1[[#This Row],[Proposal Length]]," ") -> 11400816.89 | U26: 460.6224 | V26: HMA Pavement 4 MT 58-28 S | W26: 47026 | X26: 73.35173096 | Y26: 2 | Z26: X | AA26: 825000 | AB26: 0.034 | AC26: 115000 | AD26: 0.005 | AE26: 0.08 | AF26: 0.166 | AG26: 0.179 | AH26: 0 | AI26: 0.005 | AJ26: 0.05 | AK26: 0.178 | AL26: 0.051 | AM26: 0.025 | AN26: 0.095 | AO26: 0 | AP26: 0.003 | AQ26: 0.005 | AR26: 0.002 | AS26: 0.001 | AT26: 0.019 | AU26: 0.013 | AV26: 0.002 | AW26: 0.008 | AX26: 0.012 | AY26: 0.019 | AZ26: 0.006 | BA26: 0.008 | BB26: 0.008 | BC26: 0.006 | BD26: 0.027
A27: Miscellaneous | B27: MISCELLANEOUS | C27: General Construction | D27: General Construction | E27: 0 | F27: Unknown | G27: $ 2M to $10M | H27: 2025-04-08 | I27: 2025 | J27: 20250408031 | K27: 2984-21-73 | L27: LOCAL TRANSPORTATION FACILITY IMPROVEMENT ASSISTANCE | M27: SE | N27: Milwaukee | O27: LOC STR | P27: C Milwaukee W Morgan Avenue; Ints W/ 20th, 16th, 13th & 6th St | Q27: LALONDE CONTRACTORS INCORPORATED | R27: 3 | S27: 2427145.06 | T27: =IFERROR(Table1[[#This Row],[Total Bid Amount]]/Table1[[#This Row],[Proposal Length]]," ") ->  | AA27: 109084.32 | AB27: 0.045 | AC27: 21000 | AD27: 0.009 | AE27: 0.379 | AF27: 0.004 | AG27: 0.012 | AH27: 0 | AI27: 0.009 | AJ27: 0.062 | AK27: 0 | AL27: 0.206 | AM27: 0.003 | AN27: 0.009 | AO27: 0 | AP27: 0 | AQ27: 0.004 | AR27: 0.001 | AS27: 0 | AT27: 0.092 | AU27: 0.02 | AV27: 0 | AW27: 0 | AX27: 0.009 | AY27: 0.025 | AZ27: 0 | BA27: 0 | BB27: 0.009 | BC27: 0.087 | BD27: 0.023
A28: Pavement Replacement | B28: PAVEMENT REPLACEMENT | C28: General Construction | D28: General Construction | E28: =0.33+0.19 -> 0.52 | F28: Urban | G28: $ 0.5M to $ 1M | H28: 2025-04-08 | I28: 2025 | J28: 20250408032 | K28: 9835-04-70 | L28: LOCAL TRANSPORTATION FACILITY IMPROVEMENT ASSISTANCE | M28: NC | N28: Langlade | O28: LOC STR | P28: C Antigo, Clermont Street; 10th Avenue to 7th Avenue | Q28: JAMES PETERSON SONS, INC. | R28: 4 | S28: 888307.54 | T28: =IFERROR(Table1[[#This Row],[Total Bid Amount]]/Table1[[#This Row],[Proposal Length]]," ") -> 1708283.731 | U28: 460.5244 | V28: HMA Pavement 4 LT 58-34 S | W28: 2290 | X28: 79.75209607 | Y28: 2 | AA28: 84462 | AB28: 0.095 | AC28: 2175 | AD28: 0.002 | AE28: 0.032 | AF28: 0.21 | AG28: 0.137 | AH28: 0 | AI28: 0.081 | AJ28: 0.189 | AK28: 0.027 | AL28: 0 | AM28: 0.058 | AN28: 0.105 | AO28: 0 | AP28: 0 | AQ28: 0 | AR28: 0.002 | AS28: 0 | AT28: 0.012 | AU28: 0.023 | AV28: 0 | AW28: 0 | AX28: 0.001 | AY28: 0.009 | AZ28: 0 | BA28: 0 | BB28: 0.013 | BC28: 0 | BD28: 0.007
A29: Miscellaneous | B29: MISCELLANEOUS | C29: General Construction | D29: General Construction | E29: 0.44 | F29: Rural | G29: $ 2M to $10M | H29: 2025-03-11 | I29: 2025 | J29: 20250311001 | K29: 1112-06-75 | L29: STATE HIGHWAY REHABILITATION | M29: SW | N29: Dodge | O29: USH 151 | P29: Beaver Dam - Fond Du Lac; CTH C Intersection | Q29: MICHELS ROAD & STONE, INC. | R29: 6 | S29: 2421714.2 | T29: =IFERROR(Table1[[#This Row],[Total Bid Amount]]/Table1[[#This Row],[Proposal Length]]," ") -> 5503895.909 | U29: 460.6424 | V29: HMA Pavement 4 MT 58-28 H | W29: 5524 | X29: 94.1 | Y29: 1 | AA29: 163537.52 | AB29: 0.068 | AC29: 23000 | AD29: 0.01 | AE29: 0.011 | AF29: 0.22 | AG29: 0.137 | AH29: 0 | AI29: 0 | AJ29: 0.063 | AK29: 0.128 | AL29: 0.076 | AM29: 0.052 | AN29: 0.06 | AO29: 0.001 | AP29: 0.008 | AQ29: 0 | AR29: 0.003 | AS29: 0.005 | AT29: 0.023 | AU29: 0.045 | AV29: 0 | AW29: 0 | AX29: 0 | AY29: 0.004 | AZ29: 0.02 | BA29: 0 | BB29: 0.006 | BC29: 0.006 | BD29: 0.064
A30: Resurfacing | B30: RESURFACING (OVERLAY >= 4 INCHES) | C30: Asphaltic Pavement | D30: General Const and Asphaltic Surfacing | E30: 3.442 | F30: Rural | G30: $ 2M to $10M | H30: 2025-03-11 | I30: 2025 | J30: 20250311002 | K30: 1706-06-71 | L30: STATE HIGHWAY REHABILITATION | M30: SW | N30: Grant | O30: STH 011 | P30: Dubuque - Shullsburg; V Hazel Green W Limit to V N Limit | Q30: IVERSON CONSTRUCTION, A DIV. OF MATHY CONSTRUCTION | R30: 1 | S30: 4199782.58 | T30: =IFERROR(Table1[[#This Row],[Total Bid Amount]]/Table1[[#This Row],[Proposal Length]]," ") -> 1220157.635 | U30: 460.6223 | V30: HMA Pavement 3 MT 58-28 S | W30: 20220 | X30: 86.32284866 | Y30: 3 | AA30: 431590 | AB30: 0.103 | AC30: 10000 | AD30: 0.002 | AE30: 0.045 | AF30: 0.45 | AG30: 0.024 | AH30: 0 | AI30: 0.004 | AJ30: 0.097 | AK30: 0.03 | AL30: 0.006 | AM30: 0.022 | AN30: 0.03 | AO30: 0 | AP30: 0 | AQ30: 0 | AR30: 0.001 | AS30: 0.002 | AT30: 0.025 | AU30: 0.025 | AV30: 0.094 | AW30: 0 | AX30: 0 | AY30: 0.018 | AZ30: 0.003 | BA30: 0 | BB30: 0.007 | BC30: 0.001 | BD30: 0.013
A31: Resurfacing | B31: RESURFACING (OVERLAY >= 2.5 INCHES AND < 4 INCHES) | C31: Asphaltic Pavement | D31: General Const and Asphaltic Surfacing | E31: 4.67 | F31: Rural | G31: $ 2M to $10M | H31: 2025-03-11 | I31: 2025 | J31: 20250311003 | K31: 3020-00-70 | L31: STATE HIGHWAY REHABILITATION | M31: SW | N31: Dodge | O31: STH 028 | P31: Horicon - Kewaskum; CTH V to STH 175 | Q31: NORTHEAST ASPHALT, INC | R31: 2 | S31: 2597170.26 | T31: =IFERROR(Table1[[#This Row],[Total Bid Amount]]/Table1[[#This Row],[Proposal Length]]," ") -> 556139.242 | U31: 460.6224 | V31: HMA Pavement 4 MT 58-28 S | W31: 19610 | X31: 62.1 | Y31: 1 | Z31: X | AA31: 132750 | AB31: 0.051 | AC31: 13000 | AD31: 0.005 | AE31: 0.017 | AF31: 0.606 | AG31: 0.027 | AH31: 0 | AI31: 0 | AJ31: 0.03 | AK31: 0.073 | AL31: 0 | AM31: 0.012 | AN31: 0.007 | AO31: 0 | AP31: 0.029 | AQ31: 0 | AR31: 0.001 | AS31: 0 | AT31: 0.022 | AU31: 0.051 | AV31: 0.046 | AW31: 0 | AX31: 0 | AY31: 0.005 | AZ31: 0.001 | BA31: 0 | BB31: 0.002 | BC31: 0 | BD31: 0.019
A32: Resurfacing | B32: RESURFACING (OVERLAY >= 2.5 INCHES AND < 4 INCHES) | C32: Asphaltic Pavement | D32: General Const and Asphaltic Surfacing | E32: 3.46 | F32: Rural | G32: $ 1M to $ 2M | H32: 2025-03-11 | I32: 2025 | J32: 20250311004 | K32: 3270-01-74 | L32: STATE HIGHWAY REHABILITATION | M32: SW | N32: Dodge | O32: STH 028 | P32: Horicon - Kewaskum; Ellsworth Street to N Jct CTH Tw | Q32: NORTHEAST ASPHALT, INC | R32: 2 | S32: 1428120.5 | T32: =IFERROR(Table1[[#This Row],[Total Bid Amount]]/Table1[[#This Row],[Proposal Length]]," ") -> 412751.5896 | U32: 460.6224 | V32: HMA Pavement 4 MT 58-28 S | W32: 14940 | X32: 62.15 | Y32: 1 | Z32: X | AA32: 60000 | AB32: 0.042 | AC32: 8875 | AD32: 0.006 | AE32: 0.002 | AF32: 0.714 | AG32: 0.026 | AH32: 0 | AI32: 0 | AJ32: 0 | AK32: 0.042 | AL32: 0 | AM32: 0.005 | AN32: 0.01 | AO32: 0 | AP32: 0.025 | AQ32: 0 | AR32: 0 | AS32: 0 | AT32: 0.016 | AU32: 0.05 | AV32: 0.05 | AW32: 0 | AX32: 0 | AY32: 0.003 | AZ32: 0.001 | BA32: 0 | BB32: 0.002 | BC32: 0 | BD32: 0.013
A33: Reconstruction | B33: RECONSTRUCTION, PRESERVATION | C33: Asphaltic Pavement | D33: General Const and Asphaltic Surfacing | E33: 0.55 | F33: Urban | G33: $ 0.5M or less | H33: 2025-03-11 | I33: 2025 | J33: 20250311005 | K33: 5319-00-70 | L33: LOCAL TRANSPORTATION FACILITY IMPROVEMENT ASSISTANCE | M33: SW | N33: Crawford | O33: LOC STR | P33: C Prairie Du Chien, Vineyard Road; Hillview Drive to Hoffland Lane | Q33: H. JAMES & SONS, INC | R33: 1 | S33: 496239.53 | T33: =IFERROR(Table1[[#This Row],[Total Bid Amount]]/Table1[[#This Row],[Proposal Length]]," ") -> 902253.6909 | U33: 460.6224 | V33: HMA Pavement 4 MT 58-28 S | W33: 1640 | X33: 89.35 | Y33: 1 | AA33: 57765 | AB33: 0.116 | AC33: 5400 | AD33: 0.011 | AE33: 0 | AF33: 0.301 | AG33: 0.212 | AH33: 0 | AI33: 0 | AJ33: 0 | AK33: 0.066 | AL33: 0 | AM33: 0.11 | AN33: 0.099 | AO33: 0 | AP33: 0 | AQ33: 0 | AR33: 0.02 | AS33: 0 | AT33: 0.018 | AU33: 0.005 | AV33: 0 | AW33: 0 | AX33: 0 | AY33: 0.006 | AZ33: 0.009 | BA33: 0 | BB33: 0.023 | BC33: 0 | BD33: 0.016
A34: Bridge Replacement | B34: BRIDGE REPLACEMENT, PRESERVATION | C34: Structures | D34: General Const and Highway Structures | E34: 0.029 | F34: Rural | G34: $ 0.5M or less | H34: 2025-03-11 | I34: 2025 | J34: 20250311006 | K34: 5377-00-70 | L34: HIGHWAY AND LOCAL BRIDGE IMPROVEMENT ASSISTANCE | M34: SW | N34: Vernon | O34: LOC STR | P34: T Clinton, Bloomingdale Road; Br W Fork Kickapoo Rv Br B-62-0276 | Q34: LARSON CONSTRUCTION CO., INC. | R34: 6 | S34: 352240.69 | T34: =IFERROR(Table1[[#This Row],[Total Bid Amount]]/Table1[[#This Row],[Proposal Length]]," ") -> 12146230.69 | AA34: 60361 | AB34: 0.171 | AC34: 1000 | AD34: 0.003 | AE34: 0.033 | AF34: 0.032 | AG34: 0.018 | AH34: 0 | AI34: 0.003 | AJ34: 0 | AK34: 0.007 | AL34: 0 | AM34: 0.033 | AN34: 0.06 | AO34: 0 | AP34: 0 | AQ34: 0 | AR34: 0.002 | AS34: 0 | AT34: 0.041 | AU34: 0 | AV34: 0 | AW34: 0.037 | AX34: 0 | AY34: 0 | AZ34: 0.004 | BA34: 0.539 | BB34: 0.008 | BC34: 0 | BD34: 0.012
A35: Bridge Rehab. & Preventive | B35: BRIDGE REHABILITATION | C35: Structures | D35: General Const and Highway Structures | E35: 0.087 | F35: Rural | G35: $ 0.5M to $ 1M | H35: 2025-03-11 | I35: 2025 | J35: 20250311007 | K35: 5767-00-73 | L35: HIGHWAY AND LOCAL BRIDGE IMPROVEMENT ASSISTANCE | M35: SW | N35: Rock | O35: LOC STR | P35: Town of Porter, Caledonia Road; Yahara River Bridge B-53-0096 | Q35: LUNDA CONSTRUCTION COMPANY | R35: 4 | S35: 887051.79 | T35: =IFERROR(Table1[[#This Row],[Total Bid Amount]]/Table1[[#This Row],[Proposal Length]]," ") -> 10195997.59 | U35: 460.5223 | V35: HMA Pavement 3 LT 58-28 S | W35: 263 | X35: 116.5019011 | Y35: 2 | AA35: 122012.13 | AB35: 0.138 | AC35: 3180.47 | AD35: 0.004 | AE35: 0.004 | AF35: 0.035 | AG35: 0.034 | AH35: 0.112 | AI35: 0 | AJ35: 0.011 | AK35: 0.027 | AL35: 0 | AM35: 0.015 | AN35: 0.018 | AO35: 0 | AP35: 0.034 | AQ35: 0 | AR35: 0.002 | AS35: 0 | AT35: 0.012 | AU35: 0 | AV35: 0 | AW35: 0.197 | AX35: 0 | AY35: 0.002 | AZ35: 0.006 | BA35: 0.342 | BB35: 0.005 | BC35: 0 | BD35: 0.007
A36: Reconstruction | B36: RECONSTRUCTION, PRESERVATION | C36: Structures | D36: General Const and Highway Structures | E36: 0.095 | F36: Rural | G36: $ 0.5M or less | H36: 2025-03-11 | I36: 2025 | J36: 20250311008 | K36: 5790-01-80 | L36: STATE HIGHWAY REHABILITATION | M36: SW | N36: Crawford | O36: STH 171 | P36: Ferryville - Rolling Ground; Flowing Stream Structure C-12-0063 | Q36: BRENNAN CONSTRUCTION COMPANY | R36: 4 | S36: 488190.95 | T36: =IFERROR(Table1[[#This Row],[Total Bid Amount]]/Table1[[#This Row],[Proposal Length]]," ") -> 5138852.105 | AA36: 40000 | AB36: 0.082 | AC36: 3600 | AD36: 0.007 | AE36: 0.041 | AF36: 0.095 | AG36: 0.125 | AH36: 0 | AI36: 0.002 | AJ36: 0 | AK36: 0 | AL36: 0 | AM36: 0.049 | AN36: 0.159 | AO36: 0 | AP36: 0.063 | AQ36: 0 | AR36: 0.007 | AS36: 0 | AT36: 0.013 | AU36: 0.012 | AV36: 0 | AW36: 0.02 | AX36: 0 | AY36: 0.004 | AZ36: 0 | BA36: 0.305 | BB36: 0.009 | BC36: 0 | BD36: 0.014
A37: Bridge Replacement | B37: BRIDGE REPLACEMENT, PRESERVATION | C37: Structures | D37: General Const and Highway Structures | E37: 0.028 | F37: Rural | G37: $ 0.5M to $ 1M | H37: 2025-03-11 | I37: 2025 | J37: 20250311009 | K37: 5855-00-73 | L37: HIGHWAY AND LOCAL BRIDGE IMPROVEMENT ASSISTANCE | M37: SW | N37: Sauk | O37: LOC STR | P37: Town of Washington, Village Road; Hill Point Creek Bridge B-56-0250 | Q37: LARSON CONSTRUCTION CO., INC. | R37: 5 | S37: 518560.87 | T37: =IFERROR(Table1[[#This Row],[Total Bid Amount]]/Table1[[#This Row],[Proposal Length]]," ") -> 18520031.07 | AA37: 74000 | AB37: 0.143 | AC37: 3900 | AD37: 0.008 | AE37: 0 | AF37: 0.014 | AG37: 0.023 | AH37: 0 | AI37: 0.002 | AJ37: 0 | AK37: 0.024 | AL37: 0 | AM37: 0.076 | AN37: 0.107 | AO37: 0 | AP37: 0 | AQ37: 0 | AR37: 0.009 | AS37: 0 | AT37: 0.03 | AU37: 0 | AV37: 0 | AW37: 0.046 | AX37: 0 | AY37: 0.002 | AZ37: 0.004 | BA37: 0.497 | BB37: 0.007 | BC37: 0 | BD37: 0.017
A38: Reconstruction | B38: RECONSTRUCTION, PRESERVATION | C38: General Construction | D38: General Construction | E38: 0.3 | F38: Unknown | G38: $ 1M to $ 2M | H38: 2025-03-11 | I38: 2025 | J38: 20250311010 | K38: 5998-00-01 | L38: LOCAL TRANSPORTATION FACILITY IMPROVEMENT ASSISTANCE | M38: SW | N38: Dane | O38: LOC STR | P38: City of Stoughton, S Fourth Street; Milwaukee Street to Isham Street | Q38: JAMES PETERSON SONS, INC. | R38: 5 | S38: 1648138.58 | T38: =IFERROR(Table1[[#This Row],[Total Bid Amount]]/Table1[[#This Row],[Proposal Length]]," ") -> 5493795.267 | U38: 460.5223 | V38: HMA Pavement 3 LT 58-28 S | W38: 1715 | X38: 76.39941691 | Y38: 2 | AA38: 148400 | AB38: 0.09 | AC38: 9070.29 | AD38: 0.006 | AE38: 0.386 | AF38: 0.081 | AG38: 0.053 | AH38: 0 | AI38: 0.007 | AJ38: 0.102 | AK38: 0.144 | AL38: 0 | AM38: 0.023 | AN38: 0.056 | AO38: 0 | AP38: 0 | AQ38: 0 | AR38: 0.007 | AS38: 0 | AT38: 0.014 | AU38: 0.003 | AV38: 0 | AW38: 0 | AX38: 0 | AY38: 0.012 | AZ38: 0 | BA38: 0 | BB38: 0.011 | BC38: 0 | BD38: 0.011
A39: Resurfacing | B39: RESURFACING (OVERLAY >= 4 INCHES) | C39: General Construction | D39: General Construction | E39: 1.396 | F39: Unknown | G39: $10M to $20M | H39: 2025-03-11 | I39: 2025 | J39: 20250311011 | K39: 1228-03-76 | L39: STATE HIGHWAY REHABILITATION | M39: SE | N39: Milwaukee | O39: IH 043 | P39: IH 43 North South Freeway; Oak Leaf Trail to Bender | Q39: ZIGNEGO COMPANY, INC. | R39: 2 | S39: 13229407.5 | T39: =IFERROR(Table1[[#This Row],[Total Bid Amount]]/Table1[[#This Row],[Proposal Length]]," ") -> 9476652.937 | U39: 460.8625 | V39: HMA Pavement 5 SMA 58-28 V | W39: 26296 | X39: 118.9788846 | Y39: 2 | AA39: 2436000 | AB39: 0.184 | AC39: 95090 | AD39: 0.007 | AE39: 0.042 | AF39: 0.242 | AG39: 0.075 | AH39: 0.001 | AI39: 0.07 | AJ39: 0.002 | AK39: 0.016 | AL39: 0.005 | AM39: 0.005 | AN39: 0.009 | AO39: 0.002 | AP39: 0.034 | AQ39: 0 | AR39: 0.001 | AS39: 0 | AT39: 0.01 | AU39: 0.025 | AV39: 0.021 | AW39: 0.033 | AX39: 0.002 | AY39: 0.008 | AZ39: 0.007 | BA39: 0.167 | BB39: 0 | BC39: 0 | BD39: 0.043
A40: Miscellaneous | B40: MISCELLANEOUS | C40: General Construction | D40: General Construction | E40: =0.103+0.147+0.137 -> 0.387 | F40: Unknown | G40: $ 2M to $10M | H40: 2025-03-11 | I40: 2025 | J40: 20250311012 | K40: 1410-11-71 | L40: STATE HIGHWAY REHABILITATION | M40: SE | N40: Washington | O40: STH 033 | P40: C West Bend - E/W Washington St; Intersection With 7th Ave/Main St | Q40: ZIGNEGO COMPANY, INC. | R40: 5 | S40: 3118153.3 | T40: =IFERROR(Table1[[#This Row],[Total Bid Amount]]/Table1[[#This Row],[Proposal Length]]," ") -> 8057243.669 | AA40: 238000 | AB40: 0.076 | AC40: 42813.91 | AD40: 0.014 | AE40: 0.118 | AF40: 0.003 | AG40: 0.04 | AH40: 0 | AI40: 0.171 | AJ40: 0.085 | AK40: 0.036 | AL40: 0.166 | AM40: 0.009 | AN40: 0.038 | AO40: 0 | AP40: 0 | AQ40: 0 | AR40: 0.001 | AS40: 0 | AT40: 0.079 | AU40: 0.024 | AV40: 0 | AW40: 0 | AX40: 0.028 | AY40: 0.025 | AZ40: 0.013 | BA40: 0 | BB40: 0.007 | BC40: 0.046 | BD40: 0.035
A41: Reconstruction | B41: RECONSTRUCTION, PRESERVATION | C41: General Construction | D41: General Construction | E41: 0.92 | F41: Unknown | G41: $ 2M to $10M | H41: 2025-03-11 | I41: 2025 | J41: 20250311013 | K41: 2050-08-71 | L41: LOCAL TRANSPORTATION FACILITY IMPROVEMENT ASSISTANCE | M41: SE | N41: Milwaukee | O41: CTH BB | P41: C Oak Creek W Rawson Avenue; S 13th Street to S Howell Avenue | Q41: A.W. OAKES & SON, INC. | R41: 5 | S41: 8145685.07 | T41: =IFERROR(Table1[[#This Row],[Total Bid Amount]]/Table1[[#This Row],[Proposal Length]]," ") -> 8854005.511 | U41: 460.6223 | V41: HMA Pavement 3 MT 58-28 S | W41: 210 | X41: 131 | Y41: 2 | AA41: 375000 | AB41: 0.046 | AC41: 55000 | AD41: 0.007 | AE41: 0.026 | AF41: 0.013 | AG41: 0.001 | AH41: 0 | AI41: 0.391 | AJ41: 0.134 | AK41: 0.075 | AL41: 0.031 | AM41: 0.017 | AN41: 0.09 | AO41: 0.001 | AP41: 0 | AQ41: 0.008 | AR41: 0.002 | AS41: 0 | AT41: 0.016 | AU41: 0.017 | AV41: 0 | AW41: 0 | AX41: 0.065 | AY41: 0.013 | AZ41: 0.006 | BA41: 0.003 | BB41: 0.007 | BC41: 0.007 | BD41: 0.032
A42: Reconstruction | B42: RECONSTRUCTION, PRESERVATION | C42: General Construction | D42: General Construction | E42: 1.2 | F42: Unknown | G42: $ 2M to $10M | H42: 2025-03-11 | I42: 2025 | J42: 20250311014 | K42: 2090-07-71 | L42: LOCAL TRANSPORTATION FACILITY IMPROVEMENT ASSISTANCE | M42: SE | N42: Milwaukee | O42: LOC STR | P42: C Glendale, Silver Spring Dr; N 27th St to Milwaukee River | Q42: LALONDE CONTRACTORS INCORPORATED | R42: 2 | S42: 8559374.38 | T42: =IFERROR(Table1[[#This Row],[Total Bid Amount]]/Table1[[#This Row],[Proposal Length]]," ") -> 7132811.983 | U42: 460.6224 | V42: HMA Pavement 4 MT 58-28 S | W42: 7740 | X42: 74.95 | Y42: 1 | AA42: 225037.09 | AB42: 0.026 | AC42: 48780 | AD42: 0.006 | AE42: 0.241 | AF42: 0.077 | AG42: 0.081 | AH42: 0 | AI42: 0.121 | AJ42: 0.03 | AK42: 0.092 | AL42: 0.089 | AM42: 0.012 | AN42: 0.036 | AO42: 0 | AP42: 0 | AQ42: 0.015 | AR42: 0.022 | AS42: 0.003 | AT42: 0.024 | AU42: 0.018 | AV42: 0.013 | AW42: 0 | AX42: 0.015 | AY42: 0.025 | AZ42: 0.007 | BA42: 0 | BB42: 0.008 | BC42: 0.02 | BD42: 0.025
A43: Reconstruction | B43: RECONSTRUCTION, PRESERVATION | C43: Concrete Pavement | D43: General Construction and PCC Pavement | E43: 0.53 | F43: Unknown | G43: $ 2M to $10M | H43: 2025-03-11 | I43: 2025 | J43: 20250311015 | K43: 2703-09-71 | L43: LOCAL TRANSPORTATION FACILITY IMPROVEMENT ASSISTANCE | M43: SE | N43: Racine | O43: LOC STR | P43: C Racine N Main Street; Goold St to Melvin Ave | Q43: LALONDE CONTRACTORS INCORPORATED | R43: 4 | S43: 2501262.88 | T43: =IFERROR(Table1[[#This Row],[Total Bid Amount]]/Table1[[#This Row],[Proposal Length]]," ") -> 4719363.925 | AA43: 84927.34 | AB43: 0.034 | AC43: 15681.52 | AD43: 0.006 | AE43: 0.019 | AF43: 0.003 | AG43: 0.092 | AH43: 0 | AI43: 0.296 | AJ43: 0.132 | AK43: 0.11 | AL43: 0.068 | AM43: 0.019 | AN43: 0.083 | AO43: 0 | AP43: 0 | AQ43: 0 | AR43: 0.015 | AS43: 0 | AT43: 0.028 | AU43: 0.014 | AV43: 0 | AW43: 0 | AX43: 0.035 | AY43: 0.023 | AZ43: 0.003 | BA43: 0 | BB43: 0.009 | BC43: 0.003 | BD43: 0.013
A44: Pavement Replacement | B44: PAVEMENT REPLACEMENT | C44: Asphaltic Pavement | D44: General Const and Asphaltic Surfacing | E44: 5.836 | F44: Rural | G44: $ 2M to $10M | H44: 2025-03-11 | I44: 2025 | J44: 20250311018 | K44: 3697-05-70 | L44: LOCAL TRANSPORTATION FACILITY IMPROVEMENT ASSISTANCE | M44: SE | N44: Walworth | O44: CTH A | P44: T Richmond, CTH A; W County Line to CTH P | Q44: PAYNE AND DOLAN, INC | R44: 2 | S44: 2993656.36 | T44: =IFERROR(Table1[[#This Row],[Total Bid Amount]]/Table1[[#This Row],[Proposal Length]]," ") -> 512963.7354 | U44: 460.5224 | V44: HMA Pavement 4 LT 58-28 S | W44: 27530 | X44: 63.45 | Y44: 1 | Z44: X | AA44: 9000 | AB44: 0.003 | AC44: 1700 | AD44: 0.001 | AE44: 0 | AF44: 0.662 | AG44: 0.051 | AH44: 0 | AI44: 0 | AJ44: 0 | AK44: 0.099 | AL44: 0 | AM44: 0.006 | AN44: 0.12 | AO44: 0 | AP44: 0.004 | AQ44: 0 | AR44: 0 | AS44: 0 | AT44: 0.011 | AU44: 0.015 | AV44: 0.018 | AW44: 0 | AX44: 0 | AY44: 0.001 | AZ44: 0.006 | BA44: 0 | BB44: 0.003 | BC44: 0 | BD44: 0.001
A45: Pavement Replacement | B45: PAVEMENT REPLACEMENT | C45: Asphaltic Pavement | D45: General Const and Asphaltic Surfacing | E45: 1.088 | F45: Unknown | G45: $ 0.5M to $ 1M | H45: 2025-03-11 | I45: 2025 | J45: 20250311019 | K45: 3830-08-70 | L45: LOCAL TRANSPORTATION FACILITY IMPROVEMENT ASSISTANCE | M45: SE | N45: Kenosha | O45: LOC STR | P45: V Bristol, 208,210 Ave, 124 St; CTH V to 124th St | Q45: PAYNE AND DOLAN, INC | R45: 2 | S45: 731864.36 | T45: =IFERROR(Table1[[#This Row],[Total Bid Amount]]/Table1[[#This Row],[Proposal Length]]," ") -> 672669.4485 | U45: 460.5223 | V45: HMA Pavement 3 LT 58-28 S | W45: 3278 | X45: 78 | Y45: 2 | AA45: 24444 | AB45: 0.033 | AC45: 1500 | AD45: 0.002 | AE45: 0.022 | AF45: 0.378 | AG45: 0.219 | AH45: 0 | AI45: 0 | AJ45: 0.015 | AK45: 0.14 | AL45: 0 | AM45: 0.072 | AN45: 0.044 | AO45: 0 | AP45: 0 | AQ45: 0 | AR45: 0.005 | AS45: 0 | AT45: 0.012 | AU45: 0.007 | AV45: 0.023 | AW45: 0 | AX45: 0.001 | AY45: 0.004 | AZ45: 0.011 | BA45: 0 | BB45: 0.007 | BC45: 0 | BD45: 0.008
A46: Miscellaneous | B46: MISCELLANEOUS | C46: General Construction | D46: General Construction | E46: 0.089 | F46: Unknown | G46: $ 2M to $10M | H46: 2025-03-11 | I46: 2025 | J46: 20250311020 | K46: 3831-07-71 | L46: LOCAL TRANSPORTATION FACILITY IMPROVEMENT ASSISTANCE | M46: SE | N46: Kenosha | O46: LOC STR | P46: C Kenosha Washington Road; Intersection With 30th Ave | Q46: LALONDE CONTRACTORS INCORPORATED | R46: 4 | S46: 3138913.58 | T46: =IFERROR(Table1[[#This Row],[Total Bid Amount]]/Table1[[#This Row],[Proposal Length]]," ") -> 35268691.91 | AA46: 115120.46 | AB46: 0.037 | AC46: 29000 | AD46: 0.009 | AE46: 0.125 | AF46: 0.019 | AG46: 0.046 | AH46: 0 | AI46: 0.258 | AJ46: 0.074 | AK46: 0.161 | AL46: 0.073 | AM46: 0.009 | AN46: 0.027 | AO46: 0 | AP46: 0 | AQ46: 0 | AR46: 0.004 | AS46: 0.002 | AT46: 0.043 | AU46: 0.01 | AV46: 0 | AW46: 0 | AX46: 0.026 | AY46: 0.024 | AZ46: 0.002 | BA46: 0 | BB46: 0.005 | BC46: 0.021 | BD46: 0.035
A47: Bridge Replacement | B47: BRIDGE REPLACEMENT, PRESERVATION | C47: Structures | D47: Highway Structures | E47: 0.079 | F47: Rural | G47: $ 1M to $ 2M | H47: 2025-03-11 | I47: 2025 | J47: 20250311021 | K47: 3834-05-72 | L47: HIGHWAY AND LOCAL BRIDGE IMPROVEMENT ASSISTANCE | M47: SE | N47: Racine | O47: LOC STR | P47: T Burlington, Spring Prairie Rd; Honey Creek Bridge P51-0052 | Q47: LUNDA CONSTRUCTION COMPANY | R47: 1 | S47: 1092227.89 | T47: =IFERROR(Table1[[#This Row],[Total Bid Amount]]/Table1[[#This Row],[Proposal Length]]," ") -> 13825669.49 | U47: 460.5223 | V47: HMA Pavement 3 LT 58-28 S | W47: 342 | X47: 96.64298246 | Y47: 2 | AA47: 122175.4 | AB47: 0.112 | AC47: 6148.62 | AD47: 0.006 | AE47: 0.015 | AF47: 0.031 | AG47: 0.023 | AH47: 0 | AI47: 0.002 | AJ47: 0 | AK47: 0.001 | AL47: 0 | AM47: 0.03 | AN47: 0.042 | AO47: 0 | AP47: 0.03 | AQ47: 0 | AR47: 0.006 | AS47: 0 | AT47: 0.011 | AU47: 0.005 | AV47: 0 | AW47: 0.128 | AX47: 0 | AY47: 0 | AZ47: 0.003 | BA47: 0.546 | BB47: 0.005 | BC47: 0 | BD47: 0.011
A48: Bridge Rehab. & Preventive | B48: BRIDGE PREVENTIVE | C48: Structures | D48: Hwy Struct n Bridge Paint n Incidental | E48: regionwide | F48: Rural | G48: $ 1M to $ 2M | H48: 2025-03-11 | I48: 2025 | J48: 20250311022 | K48: 1009-33-39 | L48: STATE HIGHWAY REHABILITATION | M48: NE | N48: Northeast Region Wide | O48: VAR HWY | P48: Ne Region Wide Deck Sealing Fy25; Various Routes/Hwy | Q48: FAHRNER ASPHALT SEALERS, LLC | R48: 5 | S48: 1467953.15 | T48: =IFERROR(Table1[[#This Row],[Total Bid Amount]]/Table1[[#This Row],[Proposal Length]]," ") ->  | AA48: 140000 | AB48: 0.095 | AC48: 138500 | AD48: =Table1[[#This Row],[Traffic Control Item Price]]/Table1[[#This Row],[Total Bid Amount]] -> 0.09434906012 | AE48: 0.76 | AF48: 0 | AG48: 0 | AH48: 0 | AI48: 0 | AJ48: 0 | AK48: 0 | AL48: 0 | AM48: 0 | AN48: 0 | AO48: 0 | AP48: 0 | AQ48: 0 | AR48: 0 | AS48: 0 | AT48: 0 | AU48: 0 | AV48: 0 | AW48: 0 | AX48: 0 | AY48: 0 | AZ48: 0 | BA48: 0.114 | BB48: 0 | BC48: 0 | BD48: 0.031
A49: Miscellaneous | B49: MISCELLANEOUS | C49: General Construction | D49: General Construction | E49: 0.905 | F49: Rural | G49: $ 2M to $10M | H49: 2025-03-11 | I49: 2025 | J49: 20250311023 | K49: 1480-30-71 | L49: STATE HIGHWAY REHABILITATION | M49: NE | N49: Door | O49: STH 057 | P49: Green Bay - Sturgeon Bay; CTH H Intersection | Q49: PETERS CONCRETE COMPANY | R49: 3 | S49: 3889232.92 | T49: =IFERROR(Table1[[#This Row],[Total Bid Amount]]/Table1[[#This Row],[Proposal Length]]," ") -> 4297494.939 | U49: 460.6223 | V49: HMA Pavement 3 MT 58-28 S | W49: 8625 | X49: 107.6917391 | Y49: 2 | AA49: 358000 | AB49: 0.092 | AC49: 25000 | AD49: 0.006 | AE49: 0.016 | AF49: 0.246 | AG49: 0.104 | AH49: 0 | AI49: 0.037 | AJ49: 0.068 | AK49: 0.09 | AL49: 0.073 | AM49: 0.029 | AN49: 0.059 | AO49: 0.005 | AP49: 0 | AQ49: 0 | AR49: 0.006 | AS49: 0.003 | AT49: 0.024 | AU49: 0.081 | AV49: 0.001 | AW49: 0 | AX49: 0 | AY49: 0.004 | AZ49: 0.017 | BA49: 0 | BB49: 0.007 | BC49: 0.005 | BD49: 0.033
A50: Resurfacing | B50: RESURFACING (OVERLAY >= 2.5 INCHES AND < 4 INCHES) | C50: Asphaltic Pavement | D50: Asphaltic Surfacing | E50: 7.104 | F50: Rural | G50: $ 2M to $10M | H50: 2025-03-11 | I50: 2025 | J50: 20250311024 | K50: 4110-32-71 | L50: STATE HIGHWAY REHABILITATION | M50: NE | N50: Winnebago | O50: USH 045 | P50: Fond Du Lac-Oshkosh; Scl-Scpl Oshkosh | Q50: NORTHEAST ASPHALT, INC | R50: 1 | S50: 3638216.93 | T50: =IFERROR(Table1[[#This Row],[Total Bid Amount]]/Table1[[#This Row],[Proposal Length]]," ") -> 512136.3922 | U50: 460.5224 | V50: HMA Pavement 4 LT 58-28 S | W50: 32380 | X50: 64.2 | Y50: 1 | Z50: X | AA50: 112750 | AB50: 0.031 | AC50: 4611.75 | AD50: 0.001 | AE50: 0.003 | AF50: 0.644 | AG50: 0.025 | AH50: 0 | AI50: 0 | AJ50: 0.003 | AK50: 0.019 | AL50: 0 | AM50: 0.023 | AN50: 0.033 | AO50: 0 | AP50: 0.062 | AQ50: 0 | AR50: 0 | AS50: 0 | AT50: 0.023 | AU50: 0.045 | AV50: 0.068 | AW50: 0.001 | AX50: 0 | AY50: 0.003 | AZ50: 0 | BA50: 0 | BB50: 0.002 | BC50: 0 | BD50: 0.016
A51: Reconstruction | B51: RECONSTRUCTION, PRESERVATION | C51: General Construction | D51: General Construction | E51: 0.795 | F51: Rural | G51: $ 0.5M to $ 1M | H51: 2025-03-11 | I51: 2025 | J51: 20250311025 | K51: 4307-02-71 | L51: LOCAL TRANSPORTATION FACILITY IMPROVEMENT ASSISTANCE | M51: NE | N51: Manitowoc | O51: LOC STR | P51: T Mishicot, Samz Road; Cherney Road - Ridge Road | Q51: VINTON CONSTRUCTION COMPANY | R51: 3 | S51: 913296.17 | T51: =IFERROR(Table1[[#This Row],[Total Bid Amount]]/Table1[[#This Row],[Proposal Length]]," ") -> 1148800.214 | U51: 460.5223 | V51: HMA Pavement 3 LT 58-28 S | W51: 3531 | X51: 76.68711413 | Y51: 2 | AA51: 56000 | AB51: 0.061 | AC51: 4895 | AD51: 0.005 | AE51: 0.002 | AF51: 0.32 | AG51: 0.206 | AH51: 0 | AI51: 0 | AJ51: 0.016 | AK51: 0.083 | AL51: 0 | AM51: 0.06 | AN51: 0.174 | AO51: 0 | AP51: 0 | AQ51: 0 | AR51: 0.019 | AS51: 0 | AT51: 0.018 | AU51: 0.014 | AV51: 0 | AW51: 0 | AX51: 0 | AY51: 0.003 | AZ51: 0.007 | BA51: 0 | BB51: 0.008 | BC51: 0 | BD51: 0.008
A52: Resurfacing | B52: RESURFACING (OVERLAY >= 2.5 INCHES AND < 4 INCHES) | C52: Asphaltic Pavement | D52: Asphaltic Surfacing | E52: 5.067 | F52: Rural | G52: $ 1M to $ 2M | H52: 2025-03-11 | I52: 2025 | J52: 20250311026 | K52: 4589-01-72 | L52: LOCAL TRANSPORTATION FACILITY IMPROVEMENT ASSISTANCE | M52: NE | N52: Brown | O52: CTH PP | P52: Brown Co, CTH Pp; Man Cal Road to STH 96 | Q52: NORTHEAST ASPHALT, INC | R52: 1 | S52: 1839693.77 | T52: =IFERROR(Table1[[#This Row],[Total Bid Amount]]/Table1[[#This Row],[Proposal Length]]," ") -> 363073.5682 | U52: 460.5224 | V52: HMA Pavement 4 LT 58-28 S | W52: 14460 | X52: 67.83883126 | Y52: 2 | Z52: X | AA52: 124870 | AB52: 0.068 | AC52: 4285 | AD52: 0.002 | AE52: 0.001 | AF52: 0.596 | AG52: 0.122 | AH52: 0 | AI52: 0 | AJ52: 0 | AK52: 0 | AL52: 0 | AM52: 0.026 | AN52: 0.068 | AO52: 0 | AP52: 0 | AQ52: 0 | AR52: 0.001 | AS52: 0 | AT52: 0.024 | AU52: 0.026 | AV52: 0.051 | AW52: 0 | AX52: 0 | AY52: 0 | AZ52: 0.008 | BA52: 0 | BB52: 0.003 | BC52: 0 | BD52: 0.006
A53: Bridge Replacement | B53: BRIDGE REPLACEMENT, PRESERVATION | C53: Structures | D53: General Const and Highway Structures | E53: 0.08 | F53: Unknown | G53: $ 1M to $ 2M | H53: 2025-03-11 | I53: 2025 | J53: 20250311027 | K53: 4986-00-57 | L53: HIGHWAY AND LOCAL BRIDGE IMPROVEMENT ASSISTANCE | M53: NE | N53: Fond Du Lac | O53: LOC STR | P53: C Fond Du Lac, Promen Drive; Lakeside Park Lagoon | Q53: LUNDA CONSTRUCTION COMPANY | R53: 1 | S53: 1776901.07 | T53: =IFERROR(Table1[[#This Row],[Total Bid Amount]]/Table1[[#This Row],[Proposal Length]]," ") -> 22211263.38 | AA53: 169522.9 | AB53: 0.095 | AC53: 5942.78 | AD53: 0.003 | AE53: 0.027 | AF53: 0 | AG53: 0.012 | AH53: 0.01 | AI53: 0.079 | AJ53: 0.015 | AK53: 0.015 | AL53: 0.006 | AM53: 0.05 | AN53: 0.059 | AO53: 0 | AP53: 0 | AQ53: 0 | AR53: 0 | AS53: 0 | AT53: 0.008 | AU53: 0.003 | AV53: 0 | AW53: 0.157 | AX53: 0.004 | AY53: 0.002 | AZ53: 0 | BA53: 0.45 | BB53: 0.002 | BC53: 0 | BD53: 0.005
A54: Reconstruction | B54: RECONSTRUCTION, PRESERVATION | C54: Concrete Pavement | D54: General Construction and PCC Pavement | E54: 0.752 | F54: Unknown | G54: $ 2M to $10M | H54: 2025-03-11 | I54: 2025 | J54: 20250311028 | K54: 4987-02-75 | L54: LOCAL TRANSPORTATION FACILITY IMPROVEMENT ASSISTANCE | M54: NE | N54: Brown | O54: LOC STR | P54: C Green Bay, Country Club Road; Mason St Frontage Rd to Indian Hill | Q54: PETERS CONCRETE COMPANY | R54: 5 | S54: 3852281.68 | T54: =IFERROR(Table1[[#This Row],[Total Bid Amount]]/Table1[[#This Row],[Proposal Length]]," ") -> 5122715 | AA54: 139176 | AB54: 0.036 | AC54: 2200 | AD54: 0.001 | AE54: 0.208 | AF54: 0.006 | AG54: 0.049 | AH54: 0 | AI54: 0.306 | AJ54: 0.088 | AK54: 0.147 | AL54: 0 | AM54: 0.047 | AN54: 0.068 | AO54: 0 | AP54: 0 | AQ54: 0 | AR54: 0.001 | AS54: 0 | AT54: 0.013 | AU54: 0.007 | AV54: 0 | AW54: 0 | AX54: 0 | AY54: 0.017 | AZ54: 0 | BA54: 0 | BB54: 0.004 | BC54: 0 | BD54: 0.004
A55: Miscellaneous | B55: MISCELLANEOUS | C55: General Construction | D55: General Construction | E55: 0.118 | F55: Rural | G55: $ 0.5M to $ 1M | H55: 2025-03-11 | I55: 2025 | J55: 20250311029 | K55: 6200-19-71 | L55: STATE HIGHWAY REHABILITATION | M55: NE | N55: Winnebago | O55: USH 045 | P55: Oshkosh - Winchester; Brooks Road Overpass, R-70-0007 | Q55: LUNDA CONSTRUCTION COMPANY | R55: 3 | S55: 952434.49 | T55: =IFERROR(Table1[[#This Row],[Total Bid Amount]]/Table1[[#This Row],[Proposal Length]]," ") -> 8071478.729 | U55: 460.5224 | V55: HMA Pavement 4 LT 58-28 S | W55: 181 | X55: 172.5 | Y55: 1 | AA55: 89728.8 | AB55: 0.094 | AC55: 7975 | AD55: 0.008 | AE55: 0.143 | AF55: 0.035 | AG55: 0.004 | AH55: 0 | AI55: 0.001 | AJ55: 0 | AK55: 0.001 | AL55: 0 | AM55: 0.01 | AN55: 0.15 | AO55: 0.013 | AP55: 0.062 | AQ55: 0 | AR55: 0 | AS55: 0 | AT55: 0.014 | AU55: 0 | AV55: 0.006 | AW55: 0.076 | AX55: 0 | AY55: 0.002 | AZ55: 0 | BA55: 0.36 | BB55: 0.004 | BC55: 0 | BD55: 0.023
A56: Resurfacing | B56: RESURF (OVERLAY >= 4 IN DOES NOT INCREASE PROFILE) | C56: Asphaltic Pavement | D56: Asphaltic Surfacing | E56: 1.369 | F56: Urban | G56: $ 0.5M or less | H56: 2025-03-11 | I56: 2025 | J56: 20250311030 | K56: 6513-03-71 | L56: LOCAL TRANSPORTATION FACILITY IMPROVEMENT ASSISTANCE | M56: NE | N56: Outagamie | O56: LOC STR | P56: C New London, House Rd; CTH S - STH 54 | Q56: MCC, INC. | R56: 2 | S56: 409525.55 | T56: =IFERROR(Table1[[#This Row],[Total Bid Amount]]/Table1[[#This Row],[Proposal Length]]," ") -> 299142.111 | U56: 460.5223 | V56: HMA Pavement 3 LT 58-28 S | W56: 4140 | X56: 63.96847826 | Y56: 2 | AA56: 20302 | AB56: 0.05 | AC56: 2000 | AD56: 0.005 | AE56: 0.026 | AF56: 0.671 | AG56: 0.102 | AH56: 0 | AI56: 0 | AJ56: 0 | AK56: 0 | AL56: 0 | AM56: 0.014 | AN56: 0.017 | AO56: 0 | AP56: 0 | AQ56: 0 | AR56: 0.001 | AS56: 0 | AT56: 0.048 | AU56: 0.041 | AV56: 0.001 | AW56: 0 | AX56: 0 | AY56: 0.001 | AZ56: 0.012 | BA56: 0 | BB56: 0.005 | BC56: 0 | BD56: 0.012
A57: Resurfacing | B57: RESURFACING (OVERLAY >= 4 INCHES) | C57: Asphaltic Pavement | D57: General Const and Asphaltic Surfacing | E57: 14.545 | F57: Rural | G57: $ 2M to $10M | H57: 2025-03-11 | I57: 2025 | J57: 20250311031 | K57: 6540-08-71 | L57: STATE HIGHWAY REHABILITATION | M57: NE | N57: Winnebago | O57: STH 091 | P57: Berlin-Oshkosh; Wcl-STH 44 | Q57: NORTHEAST ASPHALT, INC | R57: 2 | S57: 9093823.44 | T57: =IFERROR(Table1[[#This Row],[Total Bid Amount]]/Table1[[#This Row],[Proposal Length]]," ") -> 625219.8996 | U57: 460.6224 | V57: HMA Pavement 4 MT 58-28 S | W57: 73010 | X57: 66.00910834 | Y57: 2 | Z57: X | AA57: 612500 | AB57: 0.067 | AC57: 18950 | AD57: 0.002 | AE57: 0.034 | AF57: 0.613 | AG57: 0.04 | AH57: 0 | AI57: 0 | AJ57: 0.002 | AK57: 0.098 | AL57: 0 | AM57: 0.009 | AN57: 0.05 | AO57: 0 | AP57: 0 | AQ57: 0 | AR57: 0 | AS57: 0 | AT57: 0.015 | AU57: 0.031 | AV57: 0.024 | AW57: 0 | AX57: 0 | AY57: 0.003 | AZ57: 0 | BA57: 0 | BB57: 0.001 | BC57: 0 | BD57: 0.012
A58: Resurfacing | B58: RESURFACING (OVERLAY >= 2.5 INCHES AND < 4 INCHES) | C58: Asphaltic Pavement | D58: General Const and Asphaltic Surfacing | E58: 9.42 | F58: Unknown | G58: $10M to $20M | H58: 2025-03-11 | I58: 2025 | J58: 20250311032 | K58: 1053-04-84 | L58: STATE HIGHWAY REHABILITATION | M58: NC | N58: Marathon | O58: STH 029 | P58: Abbotsford - Wausau; Purple Martin Ln to Little Rib Rvr | Q58: AMERICAN ASPHALT OF WISCONSIN | R58: 2 | S58: 10900365.31 | T58: =IFERROR(Table1[[#This Row],[Total Bid Amount]]/Table1[[#This Row],[Proposal Length]]," ") -> 1157151.307 | U58: 460.7224 | V58: HMA Pavement 4 HT 58-28 S | W58: 76530 | X58: 84.58235725 | Y58: 4 | Z58: X | AA58: 165845 | AB58: 0.015 | AC58: 22373 | AD58: 0.002 | AE58: 0.184 | AF58: 0.64 | AG58: 0.009 | AH58: 0 | AI58: 0.004 | AJ58: 0.002 | AK58: 0.013 | AL58: 0 | AM58: 0.004 | AN58: 0.009 | AO58: 0 | AP58: 0.015 | AQ58: 0 | AR58: 0 | AS58: 0 | AT58: 0.012 | AU58: 0.035 | AV58: 0.022 | AW58: 0 | AX58: 0 | AY58: 0.002 | AZ58: 0.002 | BA58: 0.018 | BB58: 0.001 | BC58: 0 | BD58: 0.013
A59: Preservation/Restoration | B59: SOME COMBO OF PATCH/RUT/REPAIR/SEAL/CRACK/GRIND | C59: Concrete Pavement | D59: General Construction and PCC Pavement | E59: 9.147 | F59: Rural | G59: $ 2M to $10M | H59: 2025-03-11 | I59: 2025 | J59: 20250311033 | K59: 1053-07-77 | L59: STATE HIGHWAY REHABILITATION | M59: NC | N59: Marathon | O59: STH 029 | P59: Abbotsford - Wausau; Clark Co Line to CTH E South, Wb | Q59: CHIPPEWA CONCRETE SERVICES, INC. | R59: 4 | S59: 6156511.82 | T59: =IFERROR(Table1[[#This Row],[Total Bid Amount]]/Table1[[#This Row],[Proposal Length]]," ") -> 673063.4984 | U59: 460.5224 | V59: HMA Pavement 4 LT 58-28 S | W59: 13190 | X59: 102.45 | Y59: 1 | AA59: 158380 | AB59: 0.026 | AC59: 16270 | AD59: 0.003 | AE59: 0.015 | AF59: 0.236 | AG59: 0.05 | AH59: 0 | AI59: 0.421 | AJ59: 0.007 | AK59: 0.003 | AL59: 0 | AM59: 0.01 | AN59: 0.03 | AO59: 0 | AP59: 0.023 | AQ59: 0 | AR59: 0.001 | AS59: 0 | AT59: 0.021 | AU59: 0.108 | AV59: 0.015 | AW59: 0 | AX59: 0.009 | AY59: 0.002 | AZ59: 0 | BA59: 0 | BB59: 0.001 | BC59: 0 | BD59: 0.021
A60: Resurfacing | B60: RESURFACING (OVERLAY < 2.5 INCHES) | C60: Asphaltic Pavement | D60: General Const and Asphaltic Surfacing | E60: 4.652 | F60: Rural | G60: $ 1M to $ 2M | H60: 2025-03-11 | I60: 2025 | J60: 20250311034 | K60: 6991-00-74 | L60: STATE HIGHWAY REHABILITATION | M60: NC | N60: Waupaca | O60: STH 054 | P60: Plover - Waupaca; Portage Co Line to Foxfire Drive | Q60: AMERICAN ASPHALT OF WISCONSIN | R60: 2 | S60: 1747312.86 | T60: =IFERROR(Table1[[#This Row],[Total Bid Amount]]/Table1[[#This Row],[Proposal Length]]," ") -> 375604.6561 | U60: 460.6224 | V60: HMA Pavement 4 MT 58-28 S | W60: 14080 | X60: 67.26931818 | Y60: 2 | Z60: X | AA60: 30860 | AB60: 0.018 | AC60: 14450 | AD60: 0.008 | AE60: 0.009 | AF60: 0.596 | AG60: 0.075 | AH60: 0 | AI60: 0 | AJ60: 0.016 | AK60: 0.031 | AL60: 0 | AM60: 0.027 | AN60: 0.053 | AO60: 0 | AP60: 0 | AQ60: 0 | AR60: 0.004 | AS60: 0 | AT60: 0.026 | AU60: 0.07 | AV60: 0.041 | AW60: 0 | AX60: 0 | AY60: 0.009 | AZ60: 0.005 | BA60: 0 | BB60: 0.007 | BC60: 0 | BD60: 0.015
A61: Miscellaneous | B61: MISCELLANEOUS | C61: General Construction | D61: General Construction | E61: 0.007 | F61: Urban | G61: $ 0.5M or less | H61: 2025-03-11 | I61: 2025 | J61: 20250311035 | K61: 6999-11-85 | L61: STATE HIGHWAY REHABILITATION | M61: NC | N61: Wood | O61: LOC STR | P61: C WI Rapids, Wood Avenue; STH 13 Intersection Modification | Q61: CHIPPEWA CONCRETE SERVICES, INC. | R61: 4 | S61: 170984.45 | T61: =IFERROR(Table1[[#This Row],[Total Bid Amount]]/Table1[[#This Row],[Proposal Length]]," ") -> 24426350 | AA61: 18250 | AB61: 0.107 | AC61: 2700 | AD61: 0.016 | AE61: 0.149 | AF61: 0.039 | AG61: 0.011 | AH61: 0 | AI61: 0.004 | AJ61: 0.213 | AK61: 0 | AL61: 0.085 | AM61: 0.022 | AN61: 0.022 | AO61: 0 | AP61: 0 | AQ61: 0 | AR61: 0.002 | AS61: 0 | AT61: 0.105 | AU61: 0.038 | AV61: 0.008 | AW61: 0 | AX61: 0.008 | AY61: 0.013 | AZ61: 0.016 | BA61: 0 | BB61: 0.033 | BC61: 0.05 | BD61: 0.074
A62: Miscellaneous | B62: MISCELLANEOUS | C62: Asphaltic Pavement | D62: General Const and Asphaltic Surfacing | E62: 0.128 | F62: Rural | G62: $ 0.5M or less | H62: 2025-03-11 | I62: 2025 | J62: 20250311036 | K62: 9439-02-70 | L62: LOCAL TRANSPORTATION FACILITY IMPROVEMENT ASSISTANCE | M62: NC | N62: Marathon | O62: CTH N | P62: STH 29 - STH 52; CTH N/CTH J Intersection | Q62: AMERICAN ASPHALT OF WISCONSIN | R62: 4 | S62: 255567.38 | T62: =IFERROR(Table1[[#This Row],[Total Bid Amount]]/Table1[[#This Row],[Proposal Length]]," ") -> 1996620.156 | U62: 460.6223 | V62: HMA Pavement 3 MT 58-28 S | W62: 1205 | X62: 85.34979253 | Y62: 2 | AA62: 12940 | AB62: 0.051 | AC62: 2300 | AD62: 0.009 | AE62: 0.043 | AF62: 0.415 | AG62: 0.089 | AH62: 0 | AI62: 0 | AJ62: 0.087 | AK62: 0 | AL62: 0 | AM62: 0.028 | AN62: 0.071 | AO62: 0 | AP62: 0 | AQ62: 0 | AR62: 0.007 | AS62: 0 | AT62: 0.049 | AU62: 0.03 | AV62: 0 | AW62: 0 | AX62: 0 | AY62: 0.062 | AZ62: 0.025 | BA62: 0 | BB62: 0.017 | BC62: 0 | BD62: 0.026
A63: Bridge Replacement | B63: BRIDGE REPLACEMENT, PRESERVATION | C63: Asphaltic Pavement | D63: General Const and Asphaltic Surfacing | E63: 6.236 | F63: Rural | G63: $ 2M to $10M | H63: 2025-03-11 | I63: 2025 | J63: 20250311037 | K63: 9876-00-70 | L63: HIGHWAY AND LOCAL BRIDGE IMPROVEMENT ASSISTANCE | M63: NC | N63: Oneida | O63: CTH L | P63: Lincoln County Line - USH 51; Bearskin Creek Bridge, B-43-0068 | Q63: AMERICAN ASPHALT OF WISCONSIN | R63: 3 | S63: 2911218.47 | T63: =IFERROR(Table1[[#This Row],[Total Bid Amount]]/Table1[[#This Row],[Proposal Length]]," ") -> 466840.6783 | U63: 460.6224 | V63: HMA Pavement 4 MT 58-28 S | W63: 22199 | X63: 71.04 | Y63: 1 | Z63: X | AA63: 45450 | AB63: 0.016 | AC63: 2659.33 | AD63: 0.001 | AE63: 0.001 | AF63: 0.607 | AG63: 0.066 | AH63: 0 | AI63: 0.002 | AJ63: 0.003 | AK63: 0 | AL63: 0 | AM63: 0.013 | AN63: 0.018 | AO63: 0 | AP63: 0.041 | AQ63: 0 | AR63: 0.001 | AS63: 0 | AT63: 0.019 | AU63: 0.019 | AV63: 0.043 | AW63: 0.034 | AX63: 0 | AY63: 0.002 | AZ63: 0.001 | BA63: 0.1 | BB63: 0.004 | BC63: 0 | BD63: 0.01
A64: Bridge Rehab. & Preventive | B64: BRIDGE PREVENTIVE | C64: Structures | D64: Hwy Struct n Bridge Paint n Incidental | E64: 0 | F64: Rural | G64: $ 0.5M or less | H64: 2025-03-11 | I64: 2025 | J64: 20250311038 | K64: 1020-00-81 | L64: STATE HIGHWAY REHABILITATION | M64: NW | N64: Dunn | O64: IH 094 | P64: Nw Region, Ih94 Bridge Deck Sealing; Bridge Deck Sealing (Var) | Q64: THUNDER ROAD LLC | R64: 4 | S64: 331035.5 | T64: =IFERROR(Table1[[#This Row],[Total Bid Amount]]/Table1[[#This Row],[Proposal Length]]," ") ->  | AA64: 55000 | AB64: 0.166 | AC64: 35000 | AD64: 0.106 | AE64: 0 | AF64: 0 | AG64: 0 | AH64: 0 | AI64: 0 | AJ64: 0 | AK64: 0 | AL64: 0 | AM64: 0.008 | AN64: 0.003 | AO64: 0 | AP64: 0 | AQ64: 0 | AR64: 0 | AS64: 0 | AT64: 0 | AU64: 0 | AV64: 0 | AW64: 0 | AX64: 0 | AY64: 0 | AZ64: 0 | BA64: 0.699 | BB64: 0 | BC64: 0 | BD64: 0.125
A65: Miscellaneous | B65: MISCELLANEOUS | C65: Structures | D65: Highway Structures | E65: 0 | F65: Urban | G65: $ 2M to $10M | H65: 2025-03-11 | I65: 2025 | J65: 20250311039 | K65: 1020-00-85 | L65: STATE HIGHWAY REHABILITATION | M65: NW | N65: St Croix | O65: IH 094 | P65: Hudson - Baldwin; STH 35 S Interchange N-55,02,03,04 | Q65: ZENITH TECH., INC. - WAUKESHA | R65: 2 | S65: 3566072.65 | T65: =IFERROR(Table1[[#This Row],[Total Bid Amount]]/Table1[[#This Row],[Proposal Length]]," ") ->  | AA65: 384500 | AB65: 0.108 | AC65: 6325 | AD65: 0.002 | AE65: 0 | AF65: 0 | AG65: 0 | AH65: 0 | AI65: 0 | AJ65: 0 | AK65: 0 | AL65: 0 | AM65: 0.01 | AN65: 0.003 | AO65: 0 | AP65: 0.002 | AQ65: 0 | AR65: 0.001 | AS65: 0 | AT65: 0.002 | AU65: 0 | AV65: 0 | AW65: 0 | AX65: 0 | AY65: 0.002 | AZ65: 0 | BA65: 0.867 | BB65: 0.002 | BC65: 0 | BD65: 0.003
A66: Bridge Rehab. & Preventive | B66: BRIDGE REHABILITATION | C66: Structures | D66: General Const and Highway Structures | E66: 1.958 | F66: Rural | G66: $10M to $20M | H66: 2025-03-11 | I66: 2025 | J66: 20250311040 | K66: 1196-04-77 | L66: STATE HIGHWAY REHABILITATION | M66: NW | N66: Barron | O66: USH 053 | P66: New Auburn - Rice Lake; B-03-14,16,18,20,26,30,37,218 | Q66: ZENITH TECH., INC. - WAUKESHA | R66: 2 | S66: 10907031.47 | T66: =IFERROR(Table1[[#This Row],[Total Bid Amount]]/Table1[[#This Row],[Proposal Length]]," ") -> 5570496.154 | U66: 460.6645 | V66: HMA Pavement 5 MT 58-34 V | W66: 9910 | X66: 123.2623653 | Y66: 3 | AA66: 1260000 | AB66: 0.116 | AC66: 6000 | AD66: 0.001 | AE66: 0.03 | AF66: 0.116 | AG66: 0.009 | AH66: 0.006 | AI66: 0.026 | AJ66: 0.002 | AK66: 0.005 | AL66: 0 | AM66: 0.006 | AN66: 0.012 | AO66: 0.003 | AP66: 0.041 | AQ66: 0 | AR66: 0.001 | AS66: 0 | AT66: 0.007 | AU66: 0.004 | AV66: 0.022 | AW66: 0.106 | AX66: 0.005 | AY66: 0.003 | AZ66: 0 | BA66: 0.439 | BB66: 0.002 | BC66: 0 | BD66: 0.038
A67: Bridge Replacement | B67: BRIDGE REPLACEMENT, PRESERVATION | C67: Structures | D67: General Const and Highway Structures | E67: 0.028 | F67: Rural | G67: $ 0.5M or less | H67: 2025-03-11 | I67: 2025 | J67: 20250311041 | K67: 7852-00-71 | L67: HIGHWAY AND LOCAL BRIDGE IMPROVEMENT ASSISTANCE | M67: NW | N67: Clark | O67: LOC STR | P67: T Mentor, Main Street; E Fork Halls Creek Bridge B-10-0257 | Q67: LARSON CONSTRUCTION CO., INC. | R67: 5 | S67: 399999.24 | T67: =IFERROR(Table1[[#This Row],[Total Bid Amount]]/Table1[[#This Row],[Proposal Length]]," ") -> 14285687.14 | AA67: 52209 | AB67: 0.131 | AC67: 1650 | AD67: 0.004 | AE67: 0.017 | AF67: 0.022 | AG67: 0.009 | AH67: 0 | AI67: 0.003 | AJ67: 0 | AK67: 0.003 | AL67: 0 | AM67: 0.059 | AN67: 0.149 | AO67: 0.002 | AP67: 0 | AQ67: 0 | AR67: 0 | AS67: 0 | AT67: 0.019 | AU67: 0 | AV67: 0 | AW67: 0.042 | AX67: 0 | AY67: 0 | AZ67: 0.002 | BA67: 0.529 | BB67: 0.005 | BC67: 0 | BD67: 0.007
A68: Bridge Replacement | B68: BRIDGE REPLACEMENT, PRESERVATION | C68: Structures | D68: General Const and Highway Structures | E68: 0.052 | F68: Rural | G68: $ 0.5M or less | H68: 2025-03-11 | I68: 2025 | J68: 20250311042 | K68: 7874-00-70 | L68: HIGHWAY AND LOCAL BRIDGE IMPROVEMENT ASSISTANCE | M68: NW | N68: Dunn | O68: LOC STR | P68: T Rock Creek, 810th Street; Cranberry Creek Bridge B-17-0239 | Q68: LARSON CONSTRUCTION CO., INC. | R68: 4 | S68: 483237.73 | T68: =IFERROR(Table1[[#This Row],[Total Bid Amount]]/Table1[[#This Row],[Proposal Length]]," ") -> 9293033.269 | AA68: 57000 | AB68: 0.118 | AC68: 2100 | AD68: 0.004 | AE68: 0 | AF68: 0.077 | AG68: 0.032 | AH68: 0 | AI68: 0.003 | AJ68: 0 | AK68: 0.002 | AL68: 0 | AM68: 0.056 | AN68: 0.069 | AO68: 0 | AP68: 0.03 | AQ68: 0 | AR68: 0.002 | AS68: 0 | AT68: 0.018 | AU68: 0 | AV68: 0 | AW68: 0.051 | AX68: 0 | AY68: 0 | AZ68: 0.004 | BA68: 0.522 | BB68: 0.006 | BC68: 0 | BD68: 0.01
A69: Bridge Replacement | B69: BRIDGE REPLACEMENT, PRESERVATION | C69: Structures | D69: General Const and Highway Structures | E69: 0.029 | F69: Rural | G69: $ 0.5M to $ 1M | H69: 2025-03-11 | I69: 2025 | J69: 20250311043 | K69: 8374-00-70 | L69: HIGHWAY AND LOCAL BRIDGE IMPROVEMENT ASSISTANCE | M69: NW | N69: Burnett | O69: LOC STR | P69: T Siren, Burnikel Road; Clam River Bridge B-07-0061 | Q69: LARSON CONSTRUCTION CO., INC. | R69: 5 | S69: 530913.43 | T69: =IFERROR(Table1[[#This Row],[Total Bid Amount]]/Table1[[#This Row],[Proposal Length]]," ") -> 18307359.66 | AA69: 69700 | AB69: 0.131 | AC69: 3700 | AD69: 0.007 | AE69: 0.003 | AF69: 0.021 | AG69: 0.015 | AH69: 0 | AI69: 0.002 | AJ69: 0 | AK69: 0.002 | AL69: 0 | AM69: 0.074 | AN69: 0.107 | AO69: 0 | AP69: 0.002 | AQ69: 0 | AR69: 0.003 | AS69: 0 | AT69: 0.02 | AU69: 0 | AV69: 0 | AW69: 0.05 | AX69: 0 | AY69: 0 | AZ69: 0.002 | BA69: 0.551 | BB69: 0.005 | BC69: 0 | BD69: 0.009
A70: Bridge Replacement | B70: BRIDGE REPLACEMENT, PRESERVATION | C70: Structures | D70: General Const and Highway Structures | E70: 0.068 | F70: Rural | G70: $ 0.5M to $ 1M | H70: 2025-03-11 | I70: 2025 | J70: 20250311044 | K70: 8396-00-74 | L70: HIGHWAY AND LOCAL BRIDGE IMPROVEMENT ASSISTANCE | M70: NW | N70: Douglas | O70: LOC STR | P70: T Wascott, Lidberg Bridge Road; Eau Claire River Bridge B-16-0149 | Q70: LARSON CONSTRUCTION CO., INC. | R70: 5 | S70: 622116.1 | T70: =IFERROR(Table1[[#This Row],[Total Bid Amount]]/Table1[[#This Row],[Proposal Length]]," ") -> 9148766.176 | AA70: 88540 | AB70: 0.142 | AC70: 2920 | AD70: 0.005 | AE70: 0.011 | AF70: 0.045 | AG70: 0.025 | AH70: 0 | AI70: 0.002 | AJ70: 0 | AK70: 0.002 | AL70: 0 | AM70: 0.053 | AN70: 0.111 | AO70: 0 | AP70: 0 | AQ70: 0 | AR70: 0.005 | AS70: 0 | AT70: 0.014 | AU70: 0 | AV70: 0 | AW70: 0.087 | AX70: 0 | AY70: 0 | AZ70: 0.002 | BA70: 0.488 | BB70: 0.006 | BC70: 0 | BD70: 0.007
A71: Reconstruction | B71: RECONSTRUCTION, PRESERVATION | C71: General Construction | D71: General Construction | E71: 0.244 | F71: Rural | G71: $ 0.5M to $ 1M | H71: 2025-03-11 | I71: 2025 | J71: 20250311045 | K71: 8420-02-72 | L71: LOCAL TRANSPORTATION FACILITY IMPROVEMENT ASSISTANCE | M71: NW | N71: Polk | O71: LOC STR | P71: V Frederic, Third Avenue; Ash Street to Oak Street | Q71: MCCABE CONSTRUCTION, INC. | R71: 3 | S71: 584100 | T71: =IFERROR(Table1[[#This Row],[Total Bid Amount]]/Table1[[#This Row],[Proposal Length]]," ") -> 2393852.459 | U71: 460.5244 | V71: HMA Pavement 4 LT 58-34 S | W71: 918 | X71: 108 | Y71: 1 | AA71: 27497.01 | AB71: 0.047 | AC71: 2384 | AD71: 0.004 | AE71: 0.021 | AF71: 0.18 | AG71: 0.093 | AH71: 0 | AI71: 0.002 | AJ71: 0.119 | AK71: 0.304 | AL71: 0 | AM71: 0.063 | AN71: 0.069 | AO71: 0 | AP71: 0 | AQ71: 0 | AR71: 0.004 | AS71: 0 | AT71: 0.018 | AU71: 0.01 | AV71: 0.001 | AW71: 0 | AX71: 0.001 | AY71: 0.039 | AZ71: 0.004 | BA71: 0 | BB71: 0.016 | BC71: 0 | BD71: 0.008
A72: Reconstruction | B72: RECONSTRUCTION, PRESERVATION | C72: General Construction | D72: General Construction | E72: 0.256 | F72: Rural | G72: $ 0.5M or less | H72: 2025-03-11 | I72: 2025 | J72: 20250311046 | K72: 8890-00-75 | L72: LOCAL TRANSPORTATION FACILITY IMPROVEMENT ASSISTANCE | M72: NW | N72: Taylor | O72: LOC STR | P72: C Medford, Ninth Street; Eastview Dr to E Broadway Ave | Q72: HAAS SONS, INC. | R72: 3 | S72: 292454.51 | T72: =IFERROR(Table1[[#This Row],[Total Bid Amount]]/Table1[[#This Row],[Proposal Length]]," ") -> 1142400.43 | U72: 460.6223 | V72: HMA Pavement 3 MT 58-28 S | W72: 1235 | X72: 98.9742915 | Y72: 2 | AA72: 40010 | AB72: 0.137 | AC72: 1050 | AD72: 0.004 | AE72: 0 | AF72: 0.429 | AG72: 0.048 | AH72: 0 | AI72: 0.014 | AJ72: 0.14 | AK72: 0.003 | AL72: 0 | AM72: 0.073 | AN72: 0.042 | AO72: 0 | AP72: 0 | AQ72: 0 | AR72: 0.004 | AS72: 0 | AT72: 0.053 | AU72: 0 | AV72: 0 | AW72: 0 | AX72: 0.001 | AY72: 0.028 | AZ72: 0 | BA72: 0 | BB72: 0.022 | BC72: 0 | BD72: 0.006
A73: Resurfacing | B73: RESURFACING (OVERLAY >= 2.5 INCHES AND < 4 INCHES) | C73: Asphaltic Pavement | D73: Asphaltic Surfacing | E73: 11.019 | F73: Rural | G73: $ 2M to $10M | H73: 2025-03-11 | I73: 2025 | J73: 20250311047 | K73: 7210-00-80 | L73: STATE HIGHWAY REHABILITATION | M73: NW | N73: Pierce | O73: USH 063 | P73: Red Wing - Ellsworth; Mn/Wi State Line to USH 10 | Q73: MONARCH PAVING COMPANY | R73: 1 | S73: 7085558.93 | T73: =IFERROR(Table1[[#This Row],[Total Bid Amount]]/Table1[[#This Row],[Proposal Length]]," ") -> 643031.0309 | U73: 460.6644 | V73: HMA Pavement 4 MT 58-34 V | W73: 49670 | X73: 91.47 | Y73: 1 | Z73: X | AA73: 485000 | AB73: 0.068 | AC73: 40000 | AD73: 0.006 | AE73: 0.016 | AF73: 0.691 | AG73: 0.02 | AH73: 0 | AI73: 0 | AJ73: 0.003 | AK73: 0 | AL73: 0 | AM73: 0.001 | AN73: 0.011 | AO73: 0 | AP73: 0.031 | AQ73: 0 | AR73: 0 | AS73: 0 | AT73: 0.014 | AU73: 0.034 | AV73: 0.092 | AW73: 0 | AX73: 0 | AY73: 0 | AZ73: 0 | BA73: 0 | BB73: 0.001 | BC73: 0 | BD73: 0.017
A74: Bridge Rehab. & Preventive | B74: BRIDGE REHABILITATION | C74: Structures | D74: General Const and Highway Structures | E74: 0.048 | F74: Unknown | G74: $ 2M to $10M | H74: 2025-03-11 | I74: 2025 | J74: 20250311048 | K74: 2652-05-70 | L74: HIGHWAY AND LOCAL BRIDGE IMPROVEMENT ASSISTANCE | M74: SE | N74: Milwaukee | O74: LOC STR | P74: C Milwaukee, Water St; Milwaukee River Bridge B40-548 | Q74: LUNDA CONSTRUCTION COMPANY | R74: 4 | S74: 2686785.66 | T74: =IFERROR(Table1[[#This Row],[Total Bid Amount]]/Table1[[#This Row],[Proposal Length]]," ") -> 55974701.25 | AA74: 203418.88 | AB74: 0.076 | AC74: 13000 | AD74: 0.005 | AE74: 0.37 | AF74: 0 | AG74: 0.001 | AH74: 0.328 | AI74: 0.016 | AJ74: 0 | AK74: 0 | AL74: 0 | AM74: 0 | AN74: 0.008 | AO74: 0 | AP74: 0 | AQ74: 0 | AR74: 0 | AS74: 0 | AT74: 0.011 | AU74: 0.002 | AV74: 0 | AW74: 0.093 | AX74: 0.002 | AY74: 0 | AZ74: 0 | BA74: 0.076 | BB74: 0.002 | BC74: 0 | BD74: 0.015
A75: Resurfacing | B75: RESURFACING (OVERLAY >= 2.5 INCHES AND < 4 INCHES) | C75: Asphaltic Pavement | D75: General Const and Asphaltic Surfacing | E75: 4.84 | F75: Urban | G75: $10M to $20M | H75: 2025-02-11 | I75: 2025 | J75: 20250211001 | K75: 1014-00-75 | L75: STATE HIGHWAY REHABILITATION | M75: SW | N75: Sauk | O75: IH 090 | P75: Mauston - Wisconsin Dells; USH 12 to STH 23 | Q75: D L GASSER CONSTRUCTION | R75: 1 | S75: 11054628.08 | T75: =IFERROR(Table1[[#This Row],[Total Bid Amount]]/Table1[[#This Row],[Proposal Length]]," ") -> 2284014.066 | U75: 460.6224 | V75: HMA Pavement 4 MT 58-28 S | W75: 66400 | X75: 95.78025301 | Y75: 4 | Z75: X | AA75: 745771.85 | AB75: 0.067 | AC75: 40000 | AD75: 0.004 | AE75: 0 | AF75: 0.6 | AG75: 0.102 | AH75: 0 | AI75: 0.01 | AJ75: 0.003 | AK75: 0 | AL75: 0 | AM75: 0.003 | AN75: 0.001 | AO75: 0 | AP75: 0.092 | AQ75: 0 | AR75: 0 | AS75: 0 | AT75: 0.007 | AU75: 0.027 | AV75: 0.045 | AW75: 0 | AX75: 0.012 | AY75: 0.005 | AZ75: 0 | BA75: 0 | BB75: 0 | BC75: 0 | BD75: 0.023
A76: Resurfacing | B76: RESURFACING (OVERLAY >= 4 INCHES) | C76: Asphaltic Pavement | D76: General Const and Asphaltic Surfacing | E76: 1.251 | F76: Urban | G76: $ 1M to $ 2M | H76: 2025-02-11 | I76: 2025 | J76: 20250211002 | K76: 3060-00-74 | L76: STATE HIGHWAY REHABILITATION | M76: SW | N76: Columbia | O76: STH 073 | P76: C Columbus, Ludington Street; Faith Drive to Middleton Street | Q76: ROCK ROAD COMPANIES, INC. | R76: 3 | S76: 1405754.46 | T76: =IFERROR(Table1[[#This Row],[Total Bid Amount]]/Table1[[#This Row],[Proposal Length]]," ") -> 1123704.604 | U76: 460.6424 | V76: HMA Pavement 4 MT 58-28 H | W76: 7009 | X76: 85.9 | Y76: 1 | AA76: 117965.77 | AB76: 0.084 | AC76: 29000 | AD76: 0.021 | AE76: 0.048 | AF76: 0.482 | AG76: 0.008 | AH76: 0 | AI76: 0.004 | AJ76: 0.103 | AK76: 0.009 | AL76: 0 | AM76: 0.018 | AN76: 0.008 | AO76: 0 | AP76: 0 | AQ76: 0 | AR76: 0.013 | AS76: 0 | AT76: 0.025 | AU76: 0.038 | AV76: 0.079 | AW76: 0 | AX76: 0 | AY76: 0.021 | AZ76: 0.004 | BA76: 0 | BB76: 0.012 | BC76: 0 | BD76: 0.043
A77: Bridge Replacement | B77: BRIDGE REPLACEMENT, PRESERVATION | C77: Structures | D77: General Const and Highway Structures | E77: 0.027 | F77: Rural | G77: $ 0.5M or less | H77: 2025-02-11 | I77: 2025 | J77: 20250211003 | K77: 5317-00-72 | L77: HIGHWAY AND LOCAL BRIDGE IMPROVEMENT ASSISTANCE | M77: SW | N77: Vernon | O77: LOC STR | P77: Town of Clinton, Evenstad Road; Weister Creek Bridge B-62-0273 | Q77: RADTKE CONTRACTORS INC. | R77: 4 | S77: 467523.31 | T77: =IFERROR(Table1[[#This Row],[Total Bid Amount]]/Table1[[#This Row],[Proposal Length]]," ") -> 17315678.15 | AA77: 80564.84 | AB77: 0.172 | AC77: 3000 | AD77: 0.006 | AE77: 0.001 | AF77: 0.022 | AG77: 0.027 | AH77: 0 | AI77: 0.002 | AJ77: 0 | AK77: 0.001 | AL77: 0 | AM77: 0.079 | AN77: 0.172 | AO77: 0 | AP77: 0 | AQ77: 0 | AR77: 0.007 | AS77: 0 | AT77: 0.027 | AU77: 0 | AV77: 0 | AW77: 0.068 | AX77: 0 | AY77: 0 | AZ77: 0.007 | BA77: 0.391 | BB77: 0.009 | BC77: 0 | BD77: 0.014
A78: Bridge Replacement | B78: BRIDGE REPLACEMENT, PRESERVATION | C78: Structures | D78: General Const and Highway Structures | E78: 0.099 | F78: Rural | G78: $ 1M to $ 2M | H78: 2025-02-11 | I78: 2025 | J78: 20250211004 | K78: 5436-00-75 | L78: HIGHWAY AND LOCAL BRIDGE IMPROVEMENT ASSISTANCE | M78: SW | N78: La Crosse | O78: CTH M | P78: Town of Barre - Town of Bangor; Russlan Coulee Crk Bridge B-32-0239 | Q78: PHEIFER BROTHERS CONSTRUCTION CO., INC. | R78: 2 | S78: 1218683.02 | T78: =IFERROR(Table1[[#This Row],[Total Bid Amount]]/Table1[[#This Row],[Proposal Length]]," ") -> 12309929.49 | AA78: 50079.64 | AB78: 0.041 | AC78: 3500 | AD78: 0.003 | AE78: 0.006 | AF78: 0.049 | AG78: 0.048 | AH78: 0 | AI78: 0.039 | AJ78: 0 | AK78: 0.038 | AL78: 0 | AM78: 0.065 | AN78: 0.211 | AO78: 0 | AP78: 0.024 | AQ78: 0 | AR78: 0.005 | AS78: 0 | AT78: 0.016 | AU78: 0.004 | AV78: 0 | AW78: 0.147 | AX78: 0 | AY78: 0.004 | AZ78: 0.002 | BA78: 0.289 | BB78: 0.004 | BC78: 0 | BD78: 0.008
A79: Pavement Replacement | B79: PAVEMENT REPLACEMENT | C79: Asphaltic Pavement | D79: Asphaltic Surfacing | E79: 6.09 | F79: Rural | G79: $ 2M to $10M | H79: 2025-02-11 | I79: 2025 | J79: 20250211005 | K79: 5515-00-71 | L79: LOCAL TRANSPORTATION FACILITY IMPROVEMENT ASSISTANCE | M79: SW | N79: Monroe | O79: CTH P | P79: Ontario - Wellington (CTH P); Vernon County Line to CTH Z | Q79: MATHY CONSTRUCTION COMPANY | R79: 1 | S79: 2963797.01 | T79: =IFERROR(Table1[[#This Row],[Total Bid Amount]]/Table1[[#This Row],[Proposal Length]]," ") -> 486666.1757 | U79: 460.5224 | V79: HMA Pavement 4 LT 58-28 S | W79: 13270 | X79: 89.89 | Y79: 1 | Z79: X | AA79: 96428.69 | AB79: 0.033 | AC79: 3200 | AD79: 0.001 | AE79: 0.462 | AF79: 0.437 | AG79: 0.015 | AH79: 0 | AI79: 0 | AJ79: 0.003 | AK79: 0 | AL79: 0 | AM79: 0.002 | AN79: 0.018 | AO79: 0 | AP79: 0 | AQ79: 0 | AR79: 0 | AS79: 0 | AT79: 0.02 | AU79: 0 | AV79: 0.006 | AW79: 0 | AX79: 0 | AY79: 0 | AZ79: 0 | BA79: 0 | BB79: 0.002 | BC79: 0 | BD79: 0.002
A80: Reconstruction | B80: RECONSTRUCTION, PRESERVATION | C80: General Construction | D80: General Construction | E80: 1.57 | F80: Rural | G80: $ 2M to $10M | H80: 2025-02-11 | I80: 2025 | J80: 20250211006 | K80: 5537-00-71 | L80: LOCAL TRANSPORTATION FACILITY IMPROVEMENT ASSISTANCE | M80: SW | N80: Vernon | O80: CTH O | P80: Town of Bergen to STH 162 (CTH O); Skyline Lane to Sylvan Glen Road | Q80: H. JAMES & SONS, INC | R80: 5 | S80: 2338210.86 | T80: =IFERROR(Table1[[#This Row],[Total Bid Amount]]/Table1[[#This Row],[Proposal Length]]," ") -> 1489306.28 | U80: 460.6223 | V80: HMA Pavement 3 MT 58-28 S | W80: 4980 | X80: 103.3037349 | Y80: 2 | AA80: 116553 | AB80: 0.05 | AC80: 6095 | AD80: 0.003 | AE80: 0.002 | AF80: 0.23 | AG80: 0.302 | AH80: 0 | AI80: 0 | AJ80: 0 | AK80: 0.055 | AL80: 0 | AM80: 0.11 | AN80: 0.1 | AO80: 0 | AP80: 0.104 | AQ80: 0 | AR80: 0.003 | AS80: 0 | AT80: 0.014 | AU80: 0.004 | AV80: 0 | AW80: 0.001 | AX80: 0 | AY80: 0.005 | AZ80: 0.002 | BA80: 0.007 | BB80: 0.006 | BC80: 0 | BD80: 0.004
A81: Bridge Replacement | B81: BRIDGE REPLACEMENT, PRESERVATION | C81: Structures | D81: General Const and Highway Structures | E81: 0.027 | F81: Rural | G81: $ 0.5M or less | H81: 2025-02-11 | I81: 2025 | J81: 20250211007 | K81: 5688-00-76 | L81: HIGHWAY AND LOCAL BRIDGE IMPROVEMENT ASSISTANCE | M81: SW | N81: Iowa | O81: LOC STR | P81: Town of Arena, Frame Road; Blue Mounds Creek Bridge B-25-0200 | Q81: CONCRETE STRUCTURES, INC. | R81: 5 | S81: 451527.33 | T81: =IFERROR(Table1[[#This Row],[Total Bid Amount]]/Table1[[#This Row],[Proposal Length]]," ") -> 16723234.44 | AA81: 62400 | AB81: 0.138 | AC81: 2300 | AD81: 0.005 | AE81: 0.021 | AF81: 0.021 | AG81: 0.02 | AH81: 0 | AI81: 0.002 | AJ81: 0 | AK81: 0.003 | AL81: 0 | AM81: 0.078 | AN81: 0.113 | AO81: 0 | AP81: 0 | AQ81: 0 | AR81: 0.004 | AS81: 0 | AT81: 0.026 | AU81: 0 | AV81: 0 | AW81: 0.017 | AX81: 0 | AY81: 0 | AZ81: 0.004 | BA81: 0.534 | BB81: 0.008 | BC81: 0 | BD81: 0.012
A82: Bridge Replacement | B82: BRIDGE REPLACEMENT, PRESERVATION | C82: Structures | D82: General Const and Highway Structures | E82: 0.083 | F82: Rural | G82: $ 0.5M to $ 1M | H82: 2025-02-11 | I82: 2025 | J82: 20250211008 | K82: 5827-00-71 | L82: HIGHWAY AND LOCAL BRIDGE IMPROVEMENT ASSISTANCE | M82: SW | N82: Juneau | O82: CTH H | P82: V Hustler - T Orange (CTH H); Little Lemonweir Bridge B-29-0166 | Q82: SHEET PILING SERVICES LLC | R82: 2 | S82: 966224.84 | T82: =IFERROR(Table1[[#This Row],[Total Bid Amount]]/Table1[[#This Row],[Proposal Length]]," ") -> 11641263.13 | AA82: 70368 | AB82: 0.073 | AC82: 1050 | AD82: 0.001 | AE82: 0 | AF82: 0.032 | AG82: 0.02 | AH82: 0 | AI82: 0.012 | AJ82: 0.006 | AK82: 0.001 | AL82: 0 | AM82: 0.038 | AN82: 0.109 | AO82: 0 | AP82: 0.032 | AQ82: 0 | AR82: 0.001 | AS82: 0 | AT82: 0.015 | AU82: 0 | AV82: 0 | AW82: 0.149 | AX82: 0 | AY82: 0.001 | AZ82: 0.001 | BA82: 0.5 | BB82: 0.005 | BC82: 0 | BD82: 0.004
A83: Bridge Replacement | B83: BRIDGE REPLACEMENT, PRESERVATION | C83: Structures | D83: General Const and Highway Structures | E83: 0.034 | F83: Rural | G83: $ 0.5M to $ 1M | H83: 2025-02-11 | I83: 2025 | J83: 20250211009 | K83: 5889-00-74 | L83: HIGHWAY AND LOCAL BRIDGE IMPROVEMENT ASSISTANCE | M83: SW | N83: Dane | O83: CTH G | P83: T Primrose - T Springdale (CTH G); W Br Sugar River Bridge B-13-0903 | Q83: R.G. HUSTON COMPANY, INC. | R83: 4 | S83: 901300 | T83: =IFERROR(Table1[[#This Row],[Total Bid Amount]]/Table1[[#This Row],[Proposal Length]]," ") -> 26508823.53 | U83: 460.5223 | V83: HMA Pavement 3 LT 58-28 S | W83: 442 | X83: 92.35067873 | Y83: 2 | AA83: 81498.42 | AB83: 0.09 | AC83: 3000 | AD83: 0.003 | AE83: 0 | AF83: 0.046 | AG83: 0.028 | AH83: 0 | AI83: 0.031 | AJ83: 0 | AK83: 0.001 | AL83: 0 | AM83: 0.033 | AN83: 0.063 | AO83: 0 | AP83: 0.041 | AQ83: 0 | AR83: 0.003 | AS83: 0 | AT83: 0.012 | AU83: 0.004 | AV83: 0 | AW83: 0.055 | AX83: 0 | AY83: 0.001 | AZ83: 0.001 | BA83: 0.577 | BB83: 0.005 | BC83: 0 | BD83: 0.009
A84: Reconstruction | B84: RECONSTRUCTION, PRESERVATION | C84: General Construction | D84: General Construction | E84: 0.274 | F84: Rural | G84: $ 0.5M to $ 1M | H84: 2025-02-11 | I84: 2025 | J84: 20250211010 | K84: 5975-00-70 | L84: LOCAL TRANSPORTATION FACILITY IMPROVEMENT ASSISTANCE | M84: SW | N84: Iowa | O84: CTH K | P84: Moscow - Hollandale (CTH K); Norton Road to STH 39 | Q84: PAYNE AND DOLAN, INC | R84: 3 | S84: 682285.69 | T84: =IFERROR(Table1[[#This Row],[Total Bid Amount]]/Table1[[#This Row],[Proposal Length]]," ") -> 2490093.759 | AA84: 87000 | AB84: 0.128 | AC84: 8325 | AD84: 0.012 | AE84: 0.023 | AF84: 0.187 | AG84: 0.118 | AH84: 0 | AI84: 0.006 | AJ84: 0.077 | AK84: 0.271 | AL84: 0 | AM84: 0.048 | AN84: 0.042 | AO84: 0 | AP84: 0 | AQ84: 0 | AR84: 0.017 | AS84: 0 | AT84: 0.018 | AU84: 0.008 | AV84: 0 | AW84: 0.004 | AX84: 0 | AY84: 0.004 | AZ84: 0.01 | BA84: 0 | BB84: 0.018 | BC84: 0 | BD84: 0.021
A85: Resurfacing | B85: RESURF (OVERLAY < 2.5 IN W/SOME FULL DEPTH PATCHG) | C85: General Construction | D85: General Construction | E85: 0.134 | F85: Unknown | G85: $ 0.5M or less | H85: 2025-02-11 | I85: 2025 | J85: 20250211011 | K85: 5991-02-71 | L85: LOCAL TRANSPORTATION FACILITY IMPROVEMENT ASSISTANCE | M85: SW | N85: La Crosse | O85: LOC STR | P85: City of Onalaska, Theater Road; CTH Os to Midwest Drive | Q85: PEMBER COMPANIES, INC. | R85: 2 | S85: 417550.3 | T85: =IFERROR(Table1[[#This Row],[Total Bid Amount]]/Table1[[#This Row],[Proposal Length]]," ") -> 3116047.015 | U85: 460.5224 | V85: HMA Pavement 4 LT 58-28 S | W85: 490 | X85: 111 | Y85: 1 | AA85: 66700 | AB85: 0.16 | AC85: 12000 | AD85: 0.029 | AE85: 0.115 | AF85: 0.141 | AG85: 0.003 | AH85: 0 | AI85: 0 | AJ85: 0.055 | AK85: 0 | AL85: 0.169 | AM85: 0.022 | AN85: 0.005 | AO85: 0 | AP85: 0 | AQ85: 0 | AR85: 0.002 | AS85: 0 | AT85: 0.054 | AU85: 0.049 | AV85: 0.059 | AW85: 0 | AX85: 0 | AY85: 0.045 | AZ85: 0 | BA85: 0 | BB85: 0.015 | BC85: 0.044 | BD85: 0.063
A86: Reconstruction | B86: RECONSTRUCTION, PRESERVATION | C86: General Construction | D86: General Construction | E86: 0.27 | F86: Unknown | G86: $ 2M to $10M | H86: 2025-02-11 | I86: 2025 | J86: 20250211012 | K86: 5991-07-61 | L86: LOCAL TRANSPORTATION FACILITY IMPROVEMENT ASSISTANCE | M86: SW | N86: La Crosse | O86: LOC STR | P86: City of La Crosse, 6th Street; Cass Street to State Street | Q86: CHIPPEWA CONCRETE SERVICES, INC. | R86: 4 | S86: 2258193.74 | T86: =IFERROR(Table1[[#This Row],[Total Bid Amount]]/Table1[[#This Row],[Proposal Length]]," ") -> 8363680.519 | AA86: 142565.87 | AB86: 0.063 | AC86: 9604.5 | AD86: 0.004 | AE86: 0.395 | AF86: 0.009 | AG86: 0.041 | AH86: 0 | AI86: 0.179 | AJ86: 0.042 | AK86: 0.099 | AL86: 0.034 | AM86: 0.014 | AN86: 0.033 | AO86: 0 | AP86: 0 | AQ86: 0 | AR86: 0.006 | AS86: 0 | AT86: 0.031 | AU86: 0.002 | AV86: 0 | AW86: 0 | AX86: 0.015 | AY86: 0.019 | AZ86: 0.002 | BA86: 0 | BB86: 0.008 | BC86: 0 | BD86: 0.008
A87: Reconstruction | B87: RECONSTRUCTION, PRESERVATION | C87: General Construction | D87: General Construction | E87: 0.254 | F87: Unknown | G87: $ 2M to $10M | H87: 2025-02-11 | I87: 2025 | J87: 20250211013 | K87: 2110-03-71 | L87: LOCAL TRANSPORTATION FACILITY IMPROVEMENT ASSISTANCE | M87: SE | N87: Milwaukee | O87: LOC STR | P87: C West Allis, W Lincoln Avenue; S 93rd St to S 96th St | Q87: LALONDE CONTRACTORS INCORPORATED | R87: 2 | S87: 4163345.9 | T87: =IFERROR(Table1[[#This Row],[Total Bid Amount]]/Table1[[#This Row],[Proposal Length]]," ") -> 16391125.59 | U87: 460.6224 | V87: HMA Pavement 4 MT 58-28 S | W87: 99 | X87: 211 | Y87: 1 | AA87: 279065.05 | AB87: 0.067 | AC87: 3000 | AD87: 0.001 | AE87: 0.353 | AF87: 0.009 | AG87: 0.003 | AH87: 0 | AI87: 0.199 | AJ87: 0.062 | AK87: 0.06 | AL87: 0.043 | AM87: 0.01 | AN87: 0.018 | AO87: 0 | AP87: 0 | AQ87: 0 | AR87: 0.003 | AS87: 0.002 | AT87: 0.036 | AU87: 0.012 | AV87: 0.002 | AW87: 0 | AX87: 0.078 | AY87: 0.017 | AZ87: 0.002 | BA87: 0 | BB87: 0.005 | BC87: 0.011 | BD87: 0.009
A88: Pavement Replacement | B88: PAVEMENT REPLACEMENT | C88: Concrete Pavement | D88: General Construction and PCC Pavement | E88: 0.512 | F88: Unknown | G88: $ 2M to $10M | H88: 2025-02-11 | I88: 2025 | J88: 20250211014 | K88: 2155-15-70 | L88: LOCAL TRANSPORTATION FACILITY IMPROVEMENT ASSISTANCE | M88: SE | N88: Milwaukee | O88: LOC STR | P88: C Greenfield, S 43rd St; W Cold Spring Rd to W Howard Ave | Q88: LALONDE CONTRACTORS INCORPORATED | R88: 4 | S88: 2591224.04 | T88: =IFERROR(Table1[[#This Row],[Total Bid Amount]]/Table1[[#This Row],[Proposal Length]]," ") -> 5060984.453 | AA88: 53186.64 | AB88: 0.021 | AC88: 15000 | AD88: 0.006 | AE88: 0.142 | AF88: 0.009 | AG88: 0.066 | AH88: 0 | AI88: 0.317 | AJ88: 0.117 | AK88: 0.056 | AL88: 0.043 | AM88: 0.027 | AN88: 0.056 | AO88: 0 | AP88: 0 | AQ88: 0 | AR88: 0.003 | AS88: 0 | AT88: 0.053 | AU88: 0.016 | AV88: 0 | AW88: 0 | AX88: 0.032 | AY88: 0.008 | AZ88: 0.003 | BA88: 0 | BB88: 0.006 | BC88: 0.013 | BD88: 0.011
A89: Bridge Replacement | B89: BRIDGE REPLACEMENT, PRESERVATION | C89: Structures | D89: General Const and Highway Structures | E89: 0.207 | F89: Unknown | G89: $ 2M to $10M | H89: 2025-02-11 | I89: 2025 | J89: 20250211015 | K89: 2190-10-70 | L89: HIGHWAY AND LOCAL BRIDGE IMPROVEMENT ASSISTANCE | M89: SE | N89: Milwaukee | O89: LOC STR | P89: C Wauwatosa W Wisconsin Avenue; Bridge Over Honey Creek P-40-776 | Q89: KRAEMER NORTH AMERICA, LLC | R89: 5 | S89: 6896862.79 | T89: =IFERROR(Table1[[#This Row],[Total Bid Amount]]/Table1[[#This Row],[Proposal Length]]," ") -> 33318177.73 | U89: 460.6223 | V89: HMA Pavement 3 MT 58-28 S | W89: 899 | X89: 89.97441602 | Y89: 2 | AA89: 739900 | AB89: 0.107 | AC89: 2000 | AD89: 0 | AE89: 0.362 | AF89: 0.014 | AG89: 0.01 | AH89: 0 | AI89: 0.021 | AJ89: 0.012 | AK89: 0.04 | AL89: 0.014 | AM89: 0.018 | AN89: 0.039 | AO89: 0.001 | AP89: 0 | AQ89: 0.002 | AR89: 0.005 | AS89: 0 | AT89: 0.016 | AU89: 0.002 | AV89: 0.001 | AW89: 0.036 | AX89: 0.003 | AY89: 0.003 | AZ89: 0 | BA89: 0.286 | BB89: 0.003 | BC89: 0.003 | BD89: 0.004
A90: Reconstruction | B90: RECONSTRUCTION, PRESERVATION | C90: General Construction | D90: General Construction | E90: 2.14 | F90: Unknown | G90: $20M or more | H90: 2025-02-11 | I90: 2025 | J90: 20250211016 | K90: 2590-04-71 | L90: LOCAL TRANSPORTATION FACILITY IMPROVEMENT ASSISTANCE | M90: SE | N90: Milwaukee | O90: LOC STR | P90: C Milwaukee, W Lisbon Avenue; W Burleigh St to N 100th St | Q90: ZIGNEGO COMPANY, INC. | R90: 5 | S90: 22221773.39 | T90: =IFERROR(Table1[[#This Row],[Total Bid Amount]]/Table1[[#This Row],[Proposal Length]]," ") -> 10384006.26 | U90: 460.5224 | V90: HMA Pavement 4 LT 58-28 S | W90: 109 | X90: 325 | Y90: 1 | AA90: 1118000 | AB90: 0.05 | AC90: 29500 | AD90: 0.001 | AE90: 0.244 | AF90: 0.012 | AG90: 0.031 | AH90: 0 | AI90: 0.19 | AJ90: 0.153 | AK90: 0.07 | AL90: 0.043 | AM90: 0.012 | AN90: 0.073 | AO90: 0 | AP90: 0 | AQ90: 0.003 | AR90: 0.03 | AS90: 0 | AT90: 0.019 | AU90: 0.006 | AV90: 0.001 | AW90: 0 | AX90: 0.03 | AY90: 0.016 | AZ90: 0.002 | BA90: 0 | BB90: 0 | BC90: 0.008 | BD90: 0.006
A91: Bridge Rehab. & Preventive | B91: BRIDGE REHABILITATION | C91: Structures | D91: General Const and Highway Structures | E91: 0.023 | F91: Unknown | G91: $ 0.5M or less | H91: 2025-02-11 | I91: 2025 | J91: 20250211018 | K91: 2756-05-71 | L91: HIGHWAY AND LOCAL BRIDGE IMPROVEMENT ASSISTANCE | M91: SE | N91: Waukesha | O91: CTH EF | P91: T Merton, Hartling Rd; Bark River Bridge B67-0210 | Q91: ZENITH TECH., INC. - WAUKESHA | R91: 2 | S91: 249682.19 | T91: =IFERROR(Table1[[#This Row],[Total Bid Amount]]/Table1[[#This Row],[Proposal Length]]," ") -> 10855747.39 | U91: 460.5224 | V91: HMA Pavement 4 LT 58-28 S | W91: 129 | X91: 128.372093 | Y91: 2 | AA91: 53000 | AB91: 0.212 | AC91: 3400 | AD91: 0.014 | AE91: 0.059 | AF91: 0.067 | AG91: 0.052 | AH91: 0 | AI91: 0 | AJ91: 0 | AK91: 0 | AL91: 0 | AM91: 0.04 | AN91: 0.037 | AO91: 0 | AP91: 0.102 | AQ91: 0 | AR91: 0.004 | AS91: 0 | AT91: 0.027 | AU91: 0.02 | AV91: 0.016 | AW91: 0 | AX91: 0 | AY91: 0.004 | AZ91: 0.014 | BA91: 0.299 | BB91: 0.014 | BC91: 0 | BD91: 0.033
A92: Bridge Rehab. & Preventive | B92: BRIDGE REHABILITATION | C92: Structures | D92: Gen Const and Struct and Bridge Painting | E92: 0.184 | F92: Unknown | G92: $ 2M to $10M | H92: 2025-02-11 | I92: 2025 | J92: 20250211019 | K92: 2984-12-75 | L92: HIGHWAY AND LOCAL BRIDGE IMPROVEMENT ASSISTANCE | M92: SE | N92: Milwaukee | O92: LOC STR | P92: C Milwaukee, N Holton St Phase 3; Br Ovr Milw River, Commerce, Water | Q92: ZENITH TECH., INC. - WAUKESHA | R92: 5 | S92: 4431731.61 | T92: =IFERROR(Table1[[#This Row],[Total Bid Amount]]/Table1[[#This Row],[Proposal Length]]," ") -> 24085497.88 | AA92: 725000 | AB92: 0.164 | AC92: 900 | AD92: 0 | AE92: 0.091 | AF92: 0 | AG92: 0 | AH92: 0.636 | AI92: 0 | AJ92: 0.001 | AK92: 0 | AL92: 0 | AM92: 0 | AN92: 0 | AO92: 0 | AP92: 0 | AQ92: 0.001 | AR92: 0 | AS92: 0 | AT92: 0.021 | AU92: 0 | AV92: 0 | AW92: 0.002 | AX92: 0 | AY92: 0.001 | AZ92: 0 | BA92: 0.081 | BB92: 0 | BC92: 0 | BD92: 0.001
A93: Bridge Rehab. & Preventive | B93: BRIDGE REHABILITATION | C93: Structures | D93: General Const and Highway Structures | E93: 0.155 | F93: Unknown | G93: $ 1M to $ 2M | H93: 2025-02-11 | I93: 2025 | J93: 20250211020 | K93: 2984-15-78 | L93: HIGHWAY AND LOCAL BRIDGE IMPROVEMENT ASSISTANCE | M93: SE | N93: Milwaukee | O93: LOC STR | P93: C Milwaukee - E Mason Street; Over Lincoln Memorial Dr B-40-0524 | Q93: LUNDA CONSTRUCTION COMPANY | R93: 4 | S93: 1085373.28 | T93: =IFERROR(Table1[[#This Row],[Total Bid Amount]]/Table1[[#This Row],[Proposal Length]]," ") -> 7002408.258 | U93: 460.5224 | V93: HMA Pavement 4 LT 58-28 S | W93: 198 | X93: 130 | Y93: 1 | AA93: 207579.32 | AB93: 0.191 | AC93: 7500 | AD93: 0.007 | AE93: 0.313 | AF93: 0.024 | AG93: 0.002 | AH93: 0 | AI93: 0 | AJ93: 0.025 | AK93: 0.004 | AL93: 0 | AM93: 0.003 | AN93: 0 | AO93: 0 | AP93: 0 | AQ93: 0 | AR93: 0 | AS93: 0 | AT93: 0.018 | AU93: 0.025 | AV93: 0.008 | AW93: 0.014 | AX93: 0 | AY93: 0.003 | AZ93: 0.004 | BA93: 0.342 | BB93: 0.007 | BC93: 0 | BD93: 0.017
A94: Pavement Replacement | B94: PAVEMENT REPLACEMENT | C94: Asphaltic Pavement | D94: Asphaltic Surfacing | E94: 0.403 | F94: Urban | G94: $ 0.5M or less | H94: 2025-02-11 | I94: 2025 | J94: 20250211021 | K94: 3835-00-75 | L94: LOCAL TRANSPORTATION FACILITY IMPROVEMENT ASSISTANCE | M94: SE | N94: Walworth | O94: LOC STR | P94: C Whitewater, Innovation Dr; Technology Dr to Howard Rd | Q94: PAYNE AND DOLAN, INC | R94: 2 | S94: 232998.7 | T94: =IFERROR(Table1[[#This Row],[Total Bid Amount]]/Table1[[#This Row],[Proposal Length]]," ") -> 578160.5459 | U94: 460.6223 | V94: HMA Pavement 3 MT 58-28 S | W94: 2235 | X94: 69.75447427 | Y94: 2 | AA94: 1550 | AB94: 0.007 | AC94: 1700 | AD94: 0.007 | AE94: 0 | AF94: 0.682 | AG94: 0.016 | AH94: 0 | AI94: 0 | AJ94: 0.085 | AK94: 0 | AL94: 0 | AM94: 0.018 | AN94: 0.034 | AO94: 0 | AP94: 0 | AQ94: 0 | AR94: 0.003 | AS94: 0 | AT94: 0.012 | AU94: 0.015 | AV94: 0.089 | AW94: 0 | AX94: 0 | AY94: 0.008 | AZ94: 0 | BA94: 0 | BB94: 0.013 | BC94: 0 | BD94: 0.017
A95: Pavement Replacement | B95: PAVEMENT REPLACEMENT | C95: General Construction | D95: General Construction | E95: blank | F95: Urban | G95: $ 1M to $ 2M | H95: 2025-02-11 | I95: 2025 | J95: 20250211022 | K95: 3835-05-74 | L95: LOCAL TRANSPORTATION FACILITY IMPROVEMENT ASSISTANCE | M95: SE | N95: Walworth | O95: LOC STR | P95: C Whitewater, Walworth Ave; W City Limits to S Janesville St | Q95: PAYNE AND DOLAN, INC | R95: 2 | S95: 1448854.19 | T95: =IFERROR(Table1[[#This Row],[Total Bid Amount]]/Table1[[#This Row],[Proposal Length]]," ") ->  | U95: 460.5224 | V95: HMA Pavement 4 LT 58-28 S | W95: 6820 | X95: 73.95439883 | Y95: 2 | AA95: 15000 | AB95: 0.01 | AC95: 2525.25 | AD95: 0.002 | AE95: 0.076 | AF95: 0.36 | AG95: 0.175 | AH95: 0 | AI95: 0.011 | AJ95: 0.088 | AK95: 0.007 | AL95: 0 | AM95: 0.019 | AN95: 0.13 | AO95: 0 | AP95: 0 | AQ95: 0 | AR95: 0.009 | AS95: 0 | AT95: 0.021 | AU95: 0.024 | AV95: 0.026 | AW95: 0 | AX95: 0 | AY95: 0.011 | AZ95: 0.001 | BA95: 0 | BB95: 0.014 | BC95: 0 | BD95: 0.018
A96: Bridge Replacement | B96: BRIDGE REPLACEMENT, PRESERVATION | C96: Structures | D96: General Const and Highway Structures | E96: 0.028 | F96: Rural | G96: $ 0.5M or less | H96: 2025-02-11 | I96: 2025 | J96: 20250211023 | K96: 3846-00-73 | L96: HIGHWAY AND LOCAL BRIDGE IMPROVEMENT ASSISTANCE | M96: SE | N96: Walworth | O96: LOC STR | P96: T Linn - Bissell Road; Over Nippersink Creek P64-902 | Q96: CONCRETE STRUCTURES, INC. | R96: 3 | S96: 381377.95 | T96: =IFERROR(Table1[[#This Row],[Total Bid Amount]]/Table1[[#This Row],[Proposal Length]]," ") -> 13620641.07 | AA96: 29075 | AB96: 0.076 | AC96: 1600 | AD96: 0.004 | AE96: 0.017 | AF96: 0.022 | AG96: 0.011 | AH96: 0 | AI96: 0.003 | AJ96: 0 | AK96: 0.003 | AL96: 0 | AM96: 0.057 | AN96: 0.076 | AO96: 0 | AP96: 0.004 | AQ96: 0 | AR96: 0.004 | AS96: 0 | AT96: 0.017 | AU96: 0 | AV96: 0 | AW96: 0.066 | AX96: 0 | AY96: 0 | AZ96: 0.003 | BA96: 0.623 | BB96: 0.008 | BC96: 0 | BD96: 0.012
A97: Pavement Replacement | B97: PAVEMENT REPLACEMENT | C97: Asphaltic Pavement | D97: General Const and Asphaltic Surfacing | E97: 4.995 | F97: Rural | G97: $ 2M to $10M | H97: 2025-02-11 | I97: 2025 | J97: 20250211024 | K97: 4869-03-70 | L97: LOCAL TRANSPORTATION FACILITY IMPROVEMENT ASSISTANCE | M97: SE | N97: Washington | O97: CTH D | P97: Addison - Barton; CTH Ww to Kettle View Dr S | Q97: PAYNE AND DOLAN, INC | R97: 2 | S97: 2633692.9 | T97: =IFERROR(Table1[[#This Row],[Total Bid Amount]]/Table1[[#This Row],[Proposal Length]]," ") -> 527265.8458 | U97: 460.6223 | V97: HMA Pavement 3 MT 58-28 S | W97: 24971 | X97: 64.88848264 | Y97: 2 | Z97: X | AA97: 20200 | AB97: 0.008 | AC97: 1767.5 | AD97: 0.001 | AE97: 0.022 | AF97: 0.677 | AG97: 0.114 | AH97: 0 | AI97: 0 | AJ97: 0 | AK97: 0.02 | AL97: 0 | AM97: 0.023 | AN97: 0.041 | AO97: 0 | AP97: 0.051 | AQ97: 0 | AR97: 0.002 | AS97: 0 | AT97: 0.017 | AU97: 0.007 | AV97: 0.008 | AW97: 0 | AX97: 0 | AY97: 0.004 | AZ97: 0 | BA97: 0 | BB97: 0.003 | BC97: 0 | BD97: 0.004
A98: Expansion | B98: RECONSTRUCTION, EXPANSION | C98: General Construction | D98: General and Incidental Construction | E98: 23.133 | F98: Unknown | G98: $ 2M to $10M | H98: 2025-02-11 | I98: 2025 | J98: 20250211025 | K98: 1130-63-72 | L98: MAJOR HIGHWAY DEVELOPMENT | M98: NE | N98: Outagamie | O98: IH 041 | P98: Appleton - De Pere; STH 96 - CTH F | Q98: SIR LINES-A-LOT LLC | R98: 2 | S98: 2092249.5 | T98: =IFERROR(Table1[[#This Row],[Total Bid Amount]]/Table1[[#This Row],[Proposal Length]]," ") -> 90444.36519 | AA98: 66150 | AB98: 0.032 | AC98: 350000 | AD98: 0.167 | AE98: 0.609 | AF98: 0 | AG98: 0 | AH98: 0 | AI98: 0 | AJ98: 0 | AK98: 0 | AL98: 0 | AM98: 0 | AN98: 0 | AO98: 0 | AP98: 0 | AQ98: 0 | AR98: 0 | AS98: 0 | AT98: 0.004 | AU98: 0 | AV98: 0 | AW98: 0 | AX98: 0 | AY98: 0 | AZ98: 0 | BA98: 0 | BB98: 0 | BC98: 0 | BD98: 0.355
A99: Expansion | B99: RECONSTRUCTION, EXPANSION | C99: General Construction | D99: General Construction | E99: 0.517 | F99: Unknown | G99: $10M to $20M | H99: 2025-02-11 | I99: 2025 | J99: 20250211026 | K99: 1130-65-76 | L99: MAJOR HIGHWAY DEVELOPMENT | M99: NE | N99: Outagamie | O99: IH 041 | P99: Appleton - De Pere; Ballard Rd (CTH E) Intchg | Q99: ZIGNEGO COMPANY, INC. | R99: 4 | S99: 19324651.58 | T99: =IFERROR(Table1[[#This Row],[Total Bid Amount]]/Table1[[#This Row],[Proposal Length]]," ") -> 37378436.32 | U99: 460.5224 | V99: HMA Pavement 4 LT 58-28 S | W99: 1144 | X99: 102.5 | Y99: 1 | AA99: 1316000 | AB99: 0.068 | AC99: 118500 | AD99: 0.006 | AE99: 0.207 | AF99: 0.026 | AG99: 0.089 | AH99: 0.003 | AI99: 0.15 | AJ99: 0.047 | AK99: 0.057 | AL99: 0.047 | AM99: 0.019 | AN99: 0.02 | AO99: 0.009 | AP99: 0.007 | AQ99: 0.004 | AR99: 0.005 | AS99: 0.002 | AT99: 0.022 | AU99: 0.013 | AV99: 0.001 | AW99: 0.015 | AX99: 0.005 | AY99: 0.007 | AZ99: 0.005 | BA99: 0.148 | BB99: 0 | BC99: 0.007 | BD99: 0.016
A100: Expansion | B100: RECONSTRUCTION, EXPANSION | C100: Grading | D100: General Construction and Grading | E100: 5.152 | F100: Rural | G100: $10M to $20M | H100: 2025-02-11 | I100: 2025 | J100: 20250211027 | K100: 1130-67-71 | L100: MAJOR HIGHWAY DEVELOPMENT | M100: NE | N100: Outagamie | O100: IH 041 | P100: Appleton - De Pere; I-41 Mnln, CTH Jj - Miners Way Tmp | Q100: MICHELS ROAD & STONE, INC. | R100: 4 | S100: 13172405.4 | T100: =IFERROR(Table1[[#This Row],[Total Bid Amount]]/Table1[[#This Row],[Proposal Length]]," ") -> 2556755.707 | AA100: 1176260 | AB100: 0.089 | AC100: 275000 | AD100: 0.021 | AE100: 0.099 | AF100: 0.178 | AG100: 0.272 | AH100: 0 | AI100: 0 | AJ100: 0.002 | AK100: 0.057 | AL100: 0 | AM100: 0.031 | AN100: 0.141 | AO100: 0.003 | AP100: 0.001 | AQ100: 0 | AR100: 0.002 | AS100: 0 | AT100: 0.005 | AU100: 0.003 | AV100: 0 | AW100: 0.002 | AX100: 0 | AY100: 0.002 | AZ100: 0.002 | BA100: 0 | BB100: 0 | BC100: 0 | BD100: 0.11
A101: Resurfacing | B101: RESURFACING (OVERLAY >= 2.5 INCHES AND < 4 INCHES) | C101: Asphaltic Pavement | D101: General Const and Asphaltic Surfacing | E101: 4.592 | F101: Urban | G101: $ 2M to $10M | H101: 2025-02-11 | I101: 2025 | J101: 20250211028 | K101: 1470-27-71 | L101: STATE HIGHWAY REHABILITATION | M101: NE | N101: Manitowoc | O101: STH 042 | P101: Manitowoc-Two Rivers; E Magnolia Ave-12th Street | Q101: VINTON CONSTRUCTION COMPANY | R101: 3 | S101: 6060408.18 | T101: =IFERROR(Table1[[#This Row],[Total Bid Amount]]/Table1[[#This Row],[Proposal Length]]," ") -> 1319775.301 | U101: 460.6224 | V101: HMA Pavement 4 MT 58-28 S | W101: 27320 | X101: 79.8 | Y101: 1 | Z101: X | AA101: 572000 | AB101: 0.094 | AC101: 60850 | AD101: 0.01 | AE101: 0.021 | AF101: 0.391 | AG101: 0.123 | AH101: 0 | AI101: 0.033 | AJ101: 0.026 | AK101: 0.041 | AL101: 0 | AM101: 0.013 | AN101: 0.014 | AO101: 0 | AP101: 0.052 | AQ101: 0 | AR101: 0 | AS101: 0 | AT101: 0.025 | AU101: 0.022 | AV101: 0.074 | AW101: 0.002 | AX101: 0.002 | AY101: 0.008 | AZ101: 0.002 | BA101: 0.035 | BB101: 0.002 | BC101: 0 | BD101: 0.019
A102: Bridge Rehab. & Preventive | B102: BRIDGE REHABILITATION | C102: Structures | D102: General Const and Highway Structures | E102: 0 | F102: Unknown | G102: $ 2M to $10M | H102: 2025-02-11 | I102: 2025 | J102: 20250211030 | K102: 4110-33-71 | L102: STATE HIGHWAY REHABILITATION | M102: NE | N102: Winnebago | O102: USH 045 | P102: Main Street, City of Oshkosh; Fox River Bridge B-70-0056 | Q102: LUNDA CONSTRUCTION COMPANY | R102: 2 | S102: 6056200.68 | T102: =IFERROR(Table1[[#This Row],[Total Bid Amount]]/Table1[[#This Row],[Proposal Length]]," ") ->  | AA102: 604933.12 | AB102: 0.1 | AC102: 100 | AD102: 0 | AE102: 0.615 | AF102: 0 | AG102: 0 | AH102: 0.093 | AI102: 0 | AJ102: 0 | AK102: 0 | AL102: 0 | AM102: 0 | AN102: 0 | AO102: 0 | AP102: 0 | AQ102: 0 | AR102: 0 | AS102: 0 | AT102: 0.003 | AU102: 0.001 | AV102: 0 | AW102: 0.063 | AX102: 0 | AY102: 0 | AZ102: 0 | BA102: 0.121 | BB102: 0 | BC102: 0 | BD102: 0.003
A103: Miscellaneous | B103: MISCELLANEOUS | C103: General Construction | D103: General Construction | E103: 0 | F103: Unknown | G103: $ 2M to $10M | H103: 2025-02-11 | I103: 2025 | J103: 20250211031 | K103: 4685-34-71 | L103: MAJOR HIGHWAY DEVELOPMENT | M103: NE | N103: Winnebago | O103: STH 441 | P103: Appleton, STH 441; IH 41/USH 10 - S Oneida St | Q103: ZENITH TECH., INC. - WAUKESHA | R103: 5 | S103: 7422298.27 | T103: =IFERROR(Table1[[#This Row],[Total Bid Amount]]/Table1[[#This Row],[Proposal Length]]," ") ->  | U103: 460.5223 | V103: HMA Pavement 3 LT 58-28 S | W103: 392 | X103: 156.55625 | Y103: 2 | AA103: 706436.23 | AB103: 0.095 | AC103: 165000 | AD103: 0.022 | AE103: 0.078 | AF103: 0.011 | AG103: 0.023 | AH103: 0.003 | AI103: 0.278 | AJ103: 0 | AK103: 0.005 | AL103: 0.007 | AM103: 0.004 | AN103: 0.011 | AO103: 0 | AP103: 0.027 | AQ103: 0 | AR103: 0 | AS103: 0 | AT103: 0.006 | AU103: 0.115 | AV103: 0.006 | AW103: 0.025 | AX103: 0.051 | AY103: 0.007 | AZ103: 0 | BA103: 0.128 | BB103: 0.002 | BC103: 0 | BD103: 0.12
A104: Bridge Replacement | B104: BRIDGE REPLACEMENT, PRESERVATION | C104: Structures | D104: General Const and Highway Structures | E104: 0.028 | F104: Rural | G104: $ 0.5M to $ 1M | H104: 2025-02-11 | I104: 2025 | J104: 20250211032 | K104: 9026-00-01 | L104: HIGHWAY AND LOCAL BRIDGE IMPROVEMENT ASSISTANCE | M104: NE | N104: Oconto | O104: LOC STR | P104: T Brazeau, Old 64 Road; Peshtigo Brook Bridge | Q104: PHEIFER BROTHERS CONSTRUCTION CO., INC. | R104: 4 | S104: 518100.37 | T104: =IFERROR(Table1[[#This Row],[Total Bid Amount]]/Table1[[#This Row],[Proposal Length]]," ") -> 18503584.64 | AA104: 53529.01 | AB104: 0.103 | AC104: 1350 | AD104: 0.003 | AE104: 0 | AF104: 0.026 | AG104: 0.014 | AH104: 0 | AI104: 0.065 | AJ104: 0 | AK104: 0.003 | AL104: 0 | AM104: 0.051 | AN104: 0.187 | AO104: 0 | AP104: 0 | AQ104: 0 | AR104: 0.001 | AS104: 0 | AT104: 0.013 | AU104: 0 | AV104: 0 | AW104: 0.157 | AX104: 0 | AY104: 0.002 | AZ104: 0.003 | BA104: 0.358 | BB104: 0.006 | BC104: 0 | BD104: 0.011
A105: Resurfacing | B105: RESURF (OVERLAY >= 4 IN DOES NOT INCREASE PROFILE) | C105: General Construction | D105: General Construction | E105: 11.199 | F105: Rural | G105: $10M to $20M | H105: 2025-02-11 | I105: 2025 | J105: 20250211033 | K105: 1590-18-71 | L105: STATE HIGHWAY REHABILITATION | M105: NC | N105: Forest | O105: USH 008 | P105: Monico - Laona; STH 55 South to Otter Creek Road | Q105: INTEGRITY GRADING AND EXCAVATING, INC. | R105: 5 | S105: 17389817.45 | T105: =IFERROR(Table1[[#This Row],[Total Bid Amount]]/Table1[[#This Row],[Proposal Length]]," ") -> 1552800.915 | U105: 460.6223 | V105: HMA Pavement 3 MT 58-28 S | W105: 51010 | X105: 75.5578514 | Y105: 2 | Z105: X | AA105: 678000 | AB105: 0.039 | AC105: 3500 | AD105: 0 | AE105: 0.159 | AF105: 0.273 | AG105: 0.054 | AH105: 0.004 | AI105: 0.011 | AJ105: 0.012 | AK105: 0.044 | AL105: 0.002 | AM105: 0.044 | AN105: 0.22 | AO105: 0 | AP105: 0 | AQ105: 0 | AR105: 0.005 | AS105: 0 | AT105: 0.007 | AU105: 0.02 | AV105: 0.04 | AW105: 0.001 | AX105: 0 | AY105: 0.002 | AZ105: 0.002 | BA105: 0.052 | BB105: 0.004 | BC105: 0 | BD105: 0.004
A106: Bridge Replacement | B106: BRIDGE REPLACEMENT, PRESERVATION | C106: Structures | D106: General Const and Highway Structures | E106: 0.054 | F106: Rural | G106: $ 0.5M to $ 1M | H106: 2025-02-11 | I106: 2025 | J106: 20250211034 | K106: 6669-00-70 | L106: HIGHWAY AND LOCAL BRIDGE IMPROVEMENT ASSISTANCE | M106: NC | N106: Marathon | O106: CTH F | P106: STH 29 - Taylor County Line; Br Big Eau Pleine River, B-37-0474 | Q106: LARSON CONSTRUCTION CO., INC. | R106: 5 | S106: 730282.8 | T106: =IFERROR(Table1[[#This Row],[Total Bid Amount]]/Table1[[#This Row],[Proposal Length]]," ") -> 13523755.56 | AA106: 85913 | AB106: 0.118 | AC106: 940 | AD106: 0.001 | AE106: 0 | AF106: 0.033 | AG106: 0.03 | AH106: 0 | AI106: 0.051 | AJ106: 0 | AK106: 0.002 | AL106: 0 | AM106: 0.056 | AN106: 0.052 | AO106: 0 | AP106: 0.044 | AQ106: 0 | AR106: 0.002 | AS106: 0 | AT106: 0.017 | AU106: 0.009 | AV106: 0 | AW106: 0.074 | AX106: 0 | AY106: 0 | AZ106: 0.001 | BA106: 0.504 | BB106: 0.004 | BC106: 0 | BD106: 0.003
A107: Bridge Replacement | B107: BRIDGE REPLACEMENT, PRESERVATION | C107: Structures | D107: General Const and Highway Structures | E107: 0.093 | F107: Rural | G107: $ 0.5M to $ 1M | H107: 2025-02-11 | I107: 2025 | J107: 20250211035 | K107: 6679-02-70 | L107: HIGHWAY AND LOCAL BRIDGE IMPROVEMENT ASSISTANCE | M107: NC | N107: Marathon | O107: LOC STR | P107: T Cleveland, Fairview Road; Rocky Run Bridge, B-37-0483 | Q107: SHEET PILING SERVICES LLC | R107: 5 | S107: 507351.15 | T107: =IFERROR(Table1[[#This Row],[Total Bid Amount]]/Table1[[#This Row],[Proposal Length]]," ") -> 5455388.71 | AA107: 35891 | AB107: 0.071 | AC107: 1080 | AD107: 0.002 | AE107: 0 | AF107: 0.057 | AG107: 0.029 | AH107: 0 | AI107: 0.003 | AJ107: 0 | AK107: 0.002 | AL107: 0 | AM107: 0.067 | AN107: 0.115 | AO107: 0 | AP107: 0 | AQ107: 0 | AR107: 0.002 | AS107: 0 | AT107: 0.022 | AU107: 0 | AV107: 0 | AW107: 0.138 | AX107: 0 | AY107: 0 | AZ107: 0.002 | BA107: 0.479 | BB107: 0.009 | BC107: 0 | BD107: 0.004
A108: Bridge Replacement | B108: BRIDGE REPLACEMENT, PRESERVATION | C108: Structures | D108: General Const and Highway Structures | E108: 0.056 | F108: Rural | G108: $ 0.5M to $ 1M | H108: 2025-02-11 | I108: 2025 | J108: 20250211036 | K108: 6739-00-70 | L108: HIGHWAY AND LOCAL BRIDGE IMPROVEMENT ASSISTANCE | M108: NC | N108: Marquette | O108: LOC STR | P108: T Crystal Lake, Dover Avenue; Mecan River Bridge, B-39-0082 | Q108: SHEET PILING SERVICES LLC | R108: 3 | S108: 719212.1 | T108: =IFERROR(Table1[[#This Row],[Total Bid Amount]]/Table1[[#This Row],[Proposal Length]]," ") -> 12843073.21 | AA108: 51800 | AB108: 0.072 | AC108: 500 | AD108: 0.001 | AE108: 0.013 | AF108: 0.025 | AG108: 0.012 | AH108: 0 | AI108: 0.002 | AJ108: 0 | AK108: 0.001 | AL108: 0 | AM108: 0.05 | AN108: 0.092 | AO108: 0 | AP108: 0 | AQ108: 0 | AR108: 0.003 | AS108: 0 | AT108: 0.017 | AU108: 0 | AV108: 0 | AW108: 0.07 | AX108: 0 | AY108: 0 | AZ108: 0.002 | BA108: 0.629 | BB108: 0.007 | BC108: 0 | BD108: 0.005
A109: Bridge Replacement | B109: BRIDGE REPLACEMENT, PRESERVATION | C109: Structures | D109: General Const and Highway Structures | E109: 0.114 | F109: Rural | G109: $ 0.5M to $ 1M | H109: 2025-02-11 | I109: 2025 | J109: 20250211037 | K109: 6777-00-70 | L109: HIGHWAY AND LOCAL BRIDGE IMPROVEMENT ASSISTANCE | M109: NC | N109: Portage | O109: CTH WW | P109: CTH U - CTH F; Four Mile Creek Bridge B-49-0198 | Q109: SHEET PILING SERVICES LLC | R109: 3 | S109: 948653.47 | T109: =IFERROR(Table1[[#This Row],[Total Bid Amount]]/Table1[[#This Row],[Proposal Length]]," ") -> 8321521.667 | AA109: 62261.42 | AB109: 0.066 | AC109: 1000 | AD109: 0.001 | AE109: 0.03 | AF109: 0.031 | AG109: 0.032 | AH109: 0 | AI109: 0.048 | AJ109: 0 | AK109: 0.005 | AL109: 0 | AM109: 0.066 | AN109: 0.058 | AO109: 0 | AP109: 0.031 | AQ109: 0 | AR109: 0.005 | AS109: 0 | AT109: 0.008 | AU109: 0.002 | AV109: 0 | AW109: 0.055 | AX109: 0 | AY109: 0.003 | AZ109: 0.001 | BA109: 0.546 | BB109: 0.008 | BC109: 0 | BD109: 0.006
A110: Pavement Replacement | B110: PAVEMENT REPLACEMENT | C110: Asphaltic Pavement | D110: Asphaltic Surfacing | E110: 4.278 | F110: Rural | G110: $ 1M to $ 2M | H110: 2025-02-11 | I110: 2025 | J110: 20250211038 | K110: 6838-00-70 | L110: LOCAL TRANSPORTATION FACILITY IMPROVEMENT ASSISTANCE | M110: NC | N110: Waupaca | O110: CTH W | P110: Winnebago Co Line - New London; STH 96 to Cut Off Road | Q110: NORTHEAST ASPHALT, INC | R110: 3 | S110: 1757467 | T110: =IFERROR(Table1[[#This Row],[Total Bid Amount]]/Table1[[#This Row],[Proposal Length]]," ") -> 410815.1005 | U110: 460.5223 | V110: HMA Pavement 3 LT 58-28 S | W110: 19117 | X110: 62.51236334 | Y110: 2 | AA110: 79000 | AB110: 0.045 | AC110: 2780 | AD110: 0.002 | AE110: 0.001 | AF110: 0.717 | AG110: 0.074 | AH110: 0 | AI110: 0 | AJ110: 0.002 | AK110: 0.034 | AL110: 0 | AM110: 0.013 | AN110: 0.041 | AO110: 0 | AP110: 0 | AQ110: 0 | AR110: 0.001 | AS110: 0 | AT110: 0.02 | AU110: 0.022 | AV110: 0.017 | AW110: 0 | AX110: 0 | AY110: 0.002 | AZ110: 0 | BA110: 0 | BB110: 0.001 | BC110: 0 | BD110: 0.009
A111: Bridge Replacement | B111: BRIDGE REPLACEMENT, PRESERVATION | C111: Structures | D111: General Const and Highway Structures | E111: 0.028 | F111: Urban | G111: $ 0.5M to $ 1M | H111: 2025-02-11 | I111: 2025 | J111: 20250211039 | K111: 6952-01-70 | L111: HIGHWAY AND LOCAL BRIDGE IMPROVEMENT ASSISTANCE | M111: NC | N111: Wood | O111: LOC STR | P111: T Marshfield, Stadt Road; Mill Creek Bridge, B-71-0205 | Q111: SHEET PILING SERVICES LLC | R111: 6 | S111: 820870.55 | T111: =IFERROR(Table1[[#This Row],[Total Bid Amount]]/Table1[[#This Row],[Proposal Length]]," ") -> 29316805.36 | AA111: 61550 | AB111: 0.075 | AC111: 800 | AD111: 0.001 | AE111: 0 | AF111: 0.034 | AG111: 0.019 | AH111: 0 | AI111: 0.005 | AJ111: 0 | AK111: 0.002 | AL111: 0 | AM111: 0.068 | AN111: 0.123 | AO111: 0 | AP111: 0 | AQ111: 0 | AR111: 0.001 | AS111: 0 | AT111: 0.012 | AU111: 0 | AV111: 0 | AW111: 0.1 | AX111: 0 | AY111: 0 | AZ111: 0.003 | BA111: 0.544 | BB111: 0.009 | BC111: 0 | BD111: 0.005
A112: Bridge Replacement | B112: BRIDGE REPLACEMENT, PRESERVATION | C112: Structures | D112: General Const and Highway Structures | E112: 0.066 | F112: Rural | G112: $ 0.5M to $ 1M | H112: 2025-02-11 | I112: 2025 | J112: 20250211040 | K112: 6987-02-70 | L112: HIGHWAY AND LOCAL BRIDGE IMPROVEMENT ASSISTANCE | M112: NC | N112: Waushara | O112: CTH E | P112: Redgranite - CTH H; Little Silver Lake Creek, B-69-0054 | Q112: PHEIFER BROTHERS CONSTRUCTION CO., INC. | R112: 5 | S112: 570904.52 | T112: =IFERROR(Table1[[#This Row],[Total Bid Amount]]/Table1[[#This Row],[Proposal Length]]," ") -> 8650068.485 | AA112: 37598.25 | AB112: 0.066 | AC112: 2678 | AD112: 0.005 | AE112: 0.016 | AF112: 0.058 | AG112: 0.044 | AH112: 0 | AI112: 0.001 | AJ112: 0 | AK112: 0.002 | AL112: 0 | AM112: 0.044 | AN112: 0.158 | AO112: 0 | AP112: 0.049 | AQ112: 0 | AR112: 0.006 | AS112: 0 | AT112: 0.006 | AU112: 0.009 | AV112: 0.01 | AW112: 0.242 | AX112: 0 | AY112: 0 | AZ112: 0.005 | BA112: 0.27 | BB112: 0.006 | BC112: 0 | BD112: 0.008
A113: Bridge Replacement | B113: BRIDGE REPLACEMENT, PRESERVATION | C113: Structures | D113: General Const and Highway Structures | E113: 0.089 | F113: Rural | G113: $ 1M to $ 2M | H113: 2025-02-11 | I113: 2025 | J113: 20250211041 | K113: 8700-00-70 | L113: HIGHWAY AND LOCAL BRIDGE IMPROVEMENT ASSISTANCE | M113: NC | N113: Price | O113: CTH O | P113: CTH M - USH 8; South Fork Jump River, B-50-0095 | Q113: SHEET PILING SERVICES LLC | R113: 5 | S113: 1332220.5 | T113: =IFERROR(Table1[[#This Row],[Total Bid Amount]]/Table1[[#This Row],[Proposal Length]]," ") -> 14968769.66 | AA113: 64478.77 | AB113: 0.048 | AC113: 1100 | AD113: 0.001 | AE113: 0 | AF113: 0.028 | AG113: 0.021 | AH113: 0 | AI113: 0.002 | AJ113: 0 | AK113: 0.006 | AL113: 0 | AM113: 0.029 | AN113: 0.086 | AO113: 0 | AP113: 0.022 | AQ113: 0 | AR113: 0.003 | AS113: 0 | AT113: 0.016 | AU113: 0.003 | AV113: 0 | AW113: 0.113 | AX113: 0 | AY113: 0.001 | AZ113: 0.002 | BA113: 0.614 | BB113: 0.004 | BC113: 0 | BD113: 0.003
A114: Bridge Replacement | B114: BRIDGE REPLACEMENT, PRESERVATION | C114: Structures | D114: General Const and Highway Structures | E114: 0.052 | F114: Rural | G114: $ 0.5M to $ 1M | H114: 2025-02-11 | I114: 2025 | J114: 20250211043 | K114: 9531-03-70 | L114: HIGHWAY AND LOCAL BRIDGE IMPROVEMENT ASSISTANCE | M114: NC | N114: Marathon | O114: LOC STR | P114: V Hatley, Columbus Street; Plover River Bridge, B-37-0478 | Q114: SHEET PILING SERVICES LLC | R114: 4 | S114: 612508.53 | T114: =IFERROR(Table1[[#This Row],[Total Bid Amount]]/Table1[[#This Row],[Proposal Length]]," ") -> 11779010.19 | AA114: 39056.2 | AB114: 0.064 | AC114: 905 | AD114: 0.002 | AE114: 0 | AF114: 0.028 | AG114: 0.015 | AH114: 0 | AI114: 0.002 | AJ114: 0 | AK114: 0.002 | AL114: 0 | AM114: 0.074 | AN114: 0.153 | AO114: 0 | AP114: 0 | AQ114: 0 | AR114: 0.001 | AS114: 0 | AT114: 0.01 | AU114: 0 | AV114: 0 | AW114: 0.131 | AX114: 0 | AY114: 0 | AZ114: 0.001 | BA114: 0.509 | BB114: 0.007 | BC114: 0 | BD114: 0.004
A115: Pavement Replacement | B115: PAVEMENT REPLACEMENT | C115: Asphaltic Pavement | D115: Asphaltic Surfacing | E115: 2.824 | F115: Rural | G115: $ 2M to $10M | H115: 2025-02-11 | I115: 2025 | J115: 20250211045 | K115: 9958-00-71 | L115: LOCAL TRANSPORTATION FACILITY IMPROVEMENT ASSISTANCE | M115: NC | N115: Marathon | O115: CTH H | P115: STH 153 - STH 29; CTH N to STH 29 | Q115: AMERICAN ASPHALT OF WISCONSIN | R115: 1 | S115: 2917081.18 | T115: =IFERROR(Table1[[#This Row],[Total Bid Amount]]/Table1[[#This Row],[Proposal Length]]," ") -> 1032960.758 | U115: 460.6223 | V115: HMA Pavement 3 MT 58-28 S | W115: 17683 | X115: 85.75232992 | Y115: 2 | AA115: 187600 | AB115: 0.064 | AC115: 4550 | AD115: 0.002 | AE115: 0.045 | AF115: 0.564 | AG115: 0.014 | AH115: 0 | AI115: 0.004 | AJ115: 0.09 | AK115: 0.025 | AL115: 0 | AM115: 0.006 | AN115: 0.009 | AO115: 0 | AP115: 0 | AQ115: 0 | AR115: 0.001 | AS115: 0 | AT115: 0.034 | AU115: 0.024 | AV115: 0.084 | AW115: 0 | AX115: 0 | AY115: 0.014 | AZ115: 0.002 | BA115: 0 | BB115: 0.004 | BC115: 0 | BD115: 0.016
A116: Bridge Replacement | B116: BRIDGE REPLACEMENT, PRESERVATION | C116: Structures | D116: General Const and Highway Structures | E116: 0.098 | F116: Rural | G116: $ 0.5M to $ 1M | H116: 2025-02-11 | I116: 2025 | J116: 20250211046 | K116: 9958-02-70 | L116: HIGHWAY AND LOCAL BRIDGE IMPROVEMENT ASSISTANCE | M116: NC | N116: Marathon | O116: CTH H | P116: STH 153 - CTH P; Rocky Run River Bridge B-37-0480 | Q116: SHEET PILING SERVICES LLC | R116: 4 | S116: 825126.95 | T116: =IFERROR(Table1[[#This Row],[Total Bid Amount]]/Table1[[#This Row],[Proposal Length]]," ") -> 8419662.755 | AA116: 36250 | AB116: 0.044 | AC116: 1000 | AD116: 0.001 | AE116: 0 | AF116: 0.05 | AG116: 0.02 | AH116: 0 | AI116: 0.051 | AJ116: 0 | AK116: 0.001 | AL116: 0 | AM116: 0.03 | AN116: 0.11 | AO116: 0 | AP116: 0.037 | AQ116: 0 | AR116: 0.001 | AS116: 0 | AT116: 0.008 | AU116: 0.005 | AV116: 0 | AW116: 0.103 | AX116: 0 | AY116: 0.002 | AZ116: 0.001 | BA116: 0.524 | BB116: 0.006 | BC116: 0 | BD116: 0.007
A117: Pavement Replacement | B117: PAVEMENT REPLACEMENT | C117: General Construction | D117: General Construction | E117: 1.261 | F117: Rural | G117: $ 2M to $10M | H117: 2025-02-11 | I117: 2025 | J117: 20250211047 | K117: 1535-07-73 | L117: STATE HIGHWAY REHABILITATION | M117: NW | N117: Trempealeau | O117: USH 010 | P117: Mondovi - Osseo; Nelson Rd to IH 94 WB Ramps | Q117: HAAS SONS, INC. | R117: 9 | S117: 5783565.79 | T117: =IFERROR(Table1[[#This Row],[Total Bid Amount]]/Table1[[#This Row],[Proposal Length]]," ") -> 4586491.507 | U117: 460.6244 | V117: HMA Pavement 4 MT 58-34 S | W117: 984 | X117: 126.402439 | Y117: 3 | AA117: 297100 | AB117: 0.051 | AC117: 5900 | AD117: 0.001 | AE117: 0.209 | AF117: 0.028 | AG117: 0.027 | AH117: 0.008 | AI117: 0.31 | AJ117: 0.057 | AK117: 0.127 | AL117: 0.001 | AM117: 0.013 | AN117: 0.035 | AO117: 0 | AP117: 0.006 | AQ117: 0 | AR117: 0.001 | AS117: 0 | AT117: 0.019 | AU117: 0.014 | AV117: 0.001 | AW117: 0.001 | AX117: 0.005 | AY117: 0.024 | AZ117: 0.004 | BA117: 0.041 | BB117: 0.007 | BC117: 0.002 | BD117: 0.009
A118: Resurfacing | B118: RESURFACING (OVERLAY >= 2.5 INCHES AND < 4 INCHES) | C118: Asphaltic Pavement | D118: General Const and Asphaltic Surfacing | E118: 12.5 | F118: Rural | G118: $ 2M to $10M | H118: 2025-02-11 | I118: 2025 | J118: 20250211048 | K118: 7050-00-72 | L118: STATE HIGHWAY REHABILITATION | M118: NW | N118: Clark | O118: STH 073 | P118: Neillsville - Thorp; Hunt Street to STH 29 E | Q118: AMERICAN ASPHALT OF WISCONSIN | R118: 1 | S118: 8286334.46 | T118: =IFERROR(Table1[[#This Row],[Total Bid Amount]]/Table1[[#This Row],[Proposal Length]]," ") -> 662906.7568 | U118: 460.6644 | V118: HMA Pavement 4 MT 58-34 V | W118: 42450 | X118: 93.37833216 | Y118: 2 | Z118: X | AA118: 594468.36 | AB118: 0.072 | AC118: 3000 | AD118: 0 | AE118: 0.024 | AF118: 0.543 | AG118: 0.021 | AH118: 0 | AI118: 0.001 | AJ118: 0.015 | AK118: 0.042 | AL118: 0.001 | AM118: 0.014 | AN118: 0.032 | AO118: 0 | AP118: 0.011 | AQ118: 0 | AR118: 0.001 | AS118: 0 | AT118: 0.013 | AU118: 0.036 | AV118: 0.081 | AW118: 0.009 | AX118: 0.002 | AY118: 0.005 | AZ118: 0.001 | BA118: 0.063 | BB118: 0.004 | BC118: 0 | BD118: 0.01
A119: Bridge Replacement | B119: BRIDGE REPLACEMENT, PRESERVATION | C119: Structures | D119: General Const and Highway Structures | E119: blank | F119: Rural | G119: $ 0.5M or less | H119: 2025-02-11 | I119: 2025 | J119: 20250211049 | K119: 7277-00-71 | L119: HIGHWAY AND LOCAL BRIDGE IMPROVEMENT ASSISTANCE | M119: NW | N119: Trempealeau | O119: LOC STR | P119: T Burnside, Filla Valley Road; Lyga Valley Creek Bridge B-61-0254 | Q119: PHEIFER BROTHERS CONSTRUCTION CO., INC. | R119: 4 | S119: 465474.93 | T119: =IFERROR(Table1[[#This Row],[Total Bid Amount]]/Table1[[#This Row],[Proposal Length]]," ") ->  | AA119: 19400.77 | AB119: 0.042 | AC119: 2300 | AD119: 0.005 | AE119: 0 | AF119: 0.035 | AG119: 0.032 | AH119: 0 | AI119: 0.002 | AJ119: 0 | AK119: 0.01 | AL119: 0 | AM119: 0.057 | AN119: 0.158 | AO119: 0 | AP119: 0 | AQ119: 0 | AR119: 0.003 | AS119: 0 | AT119: 0.016 | AU119: 0 | AV119: 0.018 | AW119: 0.235 | AX119: 0 | AY119: 0.002 | AZ119: 0.004 | BA119: 0.365 | BB119: 0.005 | BC119: 0 | BD119: 0.019
A120: Resurfacing | B120: RESURFACING (OVERLAY < 2.5 INCHES) | C120: Asphaltic Pavement | D120: General Const and Asphaltic Surfacing | E120: 0.993 | F120: Rural | G120: $ 0.5M to $ 1M | H120: 2025-02-11 | I120: 2025 | J120: 20250211050 | K120: 8772-00-71 | L120: LOCAL TRANSPORTATION FACILITY IMPROVEMENT ASSISTANCE | M120: NW | N120: Sawyer | O120: CTH B | P120: STH 27 - CTH K; 2nd St to Chippewa Trail | Q120: MONARCH PAVING COMPANY | R120: 1 | S120: 807337.16 | T120: =IFERROR(Table1[[#This Row],[Total Bid Amount]]/Table1[[#This Row],[Proposal Length]]," ") -> 813028.3585 | U120: 460.5244 | V120: HMA Pavement 4 LT 58-34 S | W120: 3500 | X120: 89.61 | Y120: 1 | AA120: 66300 | AB120: 0.082 | AC120: 43361.14 | AD120: 0.054 | AE120: 0 | AF120: 0.431 | AG120: 0.006 | AH120: 0 | AI120: 0 | AJ120: 0.122 | AK120: 0.015 | AL120: 0 | AM120: 0.007 | AN120: 0.036 | AO120: 0 | AP120: 0 | AQ120: 0 | AR120: 0.003 | AS120: 0 | AT120: 0.028 | AU120: 0.036 | AV120: 0.124 | AW120: 0 | AX120: 0 | AY120: 0.019 | AZ120: 0.001 | BA120: 0 | BB120: 0.005 | BC120: 0 | BD120: 0.086
A121: Reconstruction | B121: RECONSTRUCTION, PRESERVATION | C121: Asphaltic Pavement | D121: General Const and Asphaltic Surfacing | E121: 2.387 | F121: Rural | G121: $ 2M to $10M | H121: 2025-02-11 | I121: 2025 | J121: 20250211051 | K121: 8800-00-70 | L121: LOCAL TRANSPORTATION FACILITY IMPROVEMENT ASSISTANCE | M121: NW | N121: Washburn | O121: CTH K | P121: Spooner - STH 77; USH 63 to Sunset Lane | Q121: JAMES PETERSON SONS, INC. | R121: 4 | S121: 2013697.13 | T121: =IFERROR(Table1[[#This Row],[Total Bid Amount]]/Table1[[#This Row],[Proposal Length]]," ") -> 843610.0251 | U121: 460.5223 | V121: HMA Pavement 3 LT 58-28 S | W121: 11266 | X121: 90.01886916 | Y121: 2 | AA121: 133050 | AB121: 0.066 | AC121: 1925 | AD121: 0.001 | AE121: 0.007 | AF121: 0.52 | AG121: 0.118 | AH121: 0 | AI121: 0.013 | AJ121: 0.065 | AK121: 0.066 | AL121: 0 | AM121: 0.027 | AN121: 0.035 | AO121: 0 | AP121: 0 | AQ121: 0 | AR121: 0.003 | AS121: 0 | AT121: 0.019 | AU121: 0.028 | AV121: 0.003 | AW121: 0 | AX121: 0.001 | AY121: 0.008 | AZ121: 0.008 | BA121: 0 | BB121: 0.008 | BC121: 0 | BD121: 0.005
A122: Bridge Replacement | B122: BRIDGE REPLACEMENT, PRESERVATION | C122: Structures | D122: General Const and Highway Structures | E122: 0.028 | F122: Rural | G122: $ 0.5M or less | H122: 2025-02-11 | I122: 2025 | J122: 20250211052 | K122: 8884-00-72 | L122: HIGHWAY AND LOCAL BRIDGE IMPROVEMENT ASSISTANCE | M122: NW | N122: Clark | O122: LOC STR | P122: T Thorp, Pine Road; Goggle-Eye Creek Bridge B-10-0263 | Q122: LARSON CONSTRUCTION CO., INC. | R122: 5 | S122: 368857.55 | T122: =IFERROR(Table1[[#This Row],[Total Bid Amount]]/Table1[[#This Row],[Proposal Length]]," ") -> 13173483.93 | AA122: 46728 | AB122: 0.127 | AC122: 1900 | AD122: 0.005 | AE122: 0.01 | AF122: 0 | AG122: 0.017 | AH122: 0 | AI122: 0.002 | AJ122: 0 | AK122: 0.003 | AL122: 0 | AM122: 0.079 | AN122: 0.152 | AO122: 0 | AP122: 0 | AQ122: 0 | AR122: 0.002 | AS122: 0 | AT122: 0.024 | AU122: 0 | AV122: 0 | AW122: 0.065 | AX122: 0 | AY122: 0 | AZ122: 0.003 | BA122: 0.503 | BB122: 0.005 | BC122: 0 | BD122: 0.009
A123: Bridge Replacement | B123: BRIDGE REPLACEMENT, PRESERVATION | C123: Structures | D123: General Const and Highway Structures | E123: 0.051 | F123: Rural | G123: $ 1M to $ 2M | H123: 2025-02-11 | I123: 2025 | J123: 20250211053 | K123: 8902-05-70 | L123: HIGHWAY AND LOCAL BRIDGE IMPROVEMENT ASSISTANCE | M123: NW | N123: Chippewa | O123: CTH G | P123: STH 29 - STH 64; Yellow River Bridge B-09-0394 | Q123: SHEET PILING SERVICES LLC | R123: 3 | S123: 1294563.35 | T123: =IFERROR(Table1[[#This Row],[Total Bid Amount]]/Table1[[#This Row],[Proposal Length]]," ") -> 25383595.1 | AA123: 45385 | AB123: 0.035 | AC123: 1100 | AD123: 0.001 | AE123: 0.03 | AF123: 0.029 | AG123: 0.009 | AH123: 0 | AI123: 0.003 | AJ123: 0 | AK123: 0.001 | AL123: 0 | AM123: 0.039 | AN123: 0.026 | AO123: 0 | AP123: 0.023 | AQ123: 0 | AR123: 0.002 | AS123: 0 | AT123: 0.012 | AU123: 0.004 | AV123: 0.003 | AW123: 0.17 | AX123: 0 | AY123: 0 | AZ123: 0.001 | BA123: 0.605 | BB123: 0.002 | BC123: 0 | BD123: 0.006
A124: Miscellaneous | B124: MISCELLANEOUS | C124: Structures | D124: General Const and Highway Structures | E124: 1.321 | F124: Rural | G124: $10M to $20M | H124: 2025-01-14 | I124: 2025 | J124: 20250114001 | K124: 1204-08-73 | L124: STATE HIGHWAY REHABILITATION | M124: SW | N124: Dane | O124: USH 018 | P124: Mount Horeb - Madison; CTH G to West Verona Ave/Epic Ln | Q124: ZENITH TECH., INC. - WAUKESHA | R124: 4 | S124: 12977079.7 | T124: =IFERROR(Table1[[#This Row],[Total Bid Amount]]/Table1[[#This Row],[Proposal Length]]," ") -> 9823678.804 | U124: 460.7423 | V124: HMA Pavement 3 HT 58-28 H | W124: 9283 | X124: 109.7390391 | Y124: 6 | AA124: 960000 | AB124: 0.074 | AC124: 108550 | AD124: 0.008 | AE124: 0.028 | AF124: 0.08 | AG124: 0.106 | AH124: 0.001 | AI124: 0.054 | AJ124: 0.004 | AK124: 0.005 | AL124: 0.009 | AM124: 0.033 | AN124: 0.079 | AO124: 0 | AP124: 0.021 | AQ124: 0 | AR124: 0.004 | AS124: 0 | AT124: 0.014 | AU124: 0.029 | AV124: 0.002 | AW124: 0.05 | AX124: 0.007 | AY124: 0.001 | AZ124: 0.006 | BA124: 0.332 | BB124: 0.008 | BC124: 0.002 | BD124: 0.051
A125: Pavement Replacement | B125: PAVEMENT REPLACEMENT | C125: Grading | D125: General Construction and Grading | E125: 7.718 | F125: Urban | G125: $10M to $20M | H125: 2025-01-14 | I125: 2025 | J125: 20250114002 | K125: 1370-00-73 | L125: STATE HIGHWAY REHABILITATION | M125: SW | N125: Jefferson | O125: STH 016 | P125: Watertown- Waukesha; E Main St to Rock River Road | Q125: HOFFMAN CONSTRUCTION COMPANY | R125: 6 | S125: 15803890.09 | T125: =IFERROR(Table1[[#This Row],[Total Bid Amount]]/Table1[[#This Row],[Proposal Length]]," ") -> 2047666.506 | U125: 460.6223 | V125: HMA Pavement 3 MT 58-28 S | W125: 60550 | X125: 61.4707019 | Y125: 3 | Z125: X | AA125: 7491500 | AB125: 0.474 | AC125: 60500 | AD125: 0.004 | AE125: 0.018 | AF125: 0.247 | AG125: 0.007 | AH125: 0 | AI125: 0.048 | AJ125: 0.018 | AK125: 0.017 | AL125: 0.007 | AM125: 0.039 | AN125: 0.001 | AO125: 0 | AP125: 0.008 | AQ125: 0 | AR125: 0.001 | AS125: 0.001 | AT125: 0.007 | AU125: 0.014 | AV125: 0.002 | AW125: 0.017 | AX125: 0.016 | AY125: 0.001 | AZ125: 0.003 | BA125: 0.046 | BB125: 0.003 | BC125: 0.001 | BD125: 0.005
A126: Pavement Replacement | B126: PAVEMENT REPLACEMENT | C126: Asphaltic Pavement | D126: General Const and Asphaltic Surfacing | E126: 0.25 | F126: Rural | G126: $ 0.5M to $ 1M | H126: 2025-01-14 | I126: 2025 | J126: 20250114003 | K126: 1400-01-74 | L126: STATE HIGHWAY REHABILITATION | M126: SW | N126: Columbia | O126: USH 051 | P126: C Portage, Wisconsin Street; Pleasant Street to Dewitt Street | Q126: D L GASSER CONSTRUCTION | R126: 3 | S126: 561928.81 | T126: =IFERROR(Table1[[#This Row],[Total Bid Amount]]/Table1[[#This Row],[Proposal Length]]," ") -> 2247715.24 | U126: 460.6424 | V126: HMA Pavement 4 MT 58-28 H | W126: 2430 | X126: 90.25 | Y126: 1 | AA126: 68100.19 | AB126: 0.121 | AC126: 11958.99 | AD126: 0.021 | AE126: 0.021 | AF126: 0.398 | AG126: 0.018 | AH126: 0 | AI126: 0.023 | AJ126: 0.113 | AK126: 0.051 | AL126: 0.014 | AM126: 0.009 | AN126: 0.023 | AO126: 0.001 | AP126: 0 | AQ126: 0 | AR126: 0.001 | AS126: 0 | AT126: 0.063 | AU126: 0.035 | AV126: 0 | AW126: 0 | AX126: 0 | AY126: 0.053 | AZ126: 0 | BA126: 0 | BB126: 0.014 | BC126: 0.012 | BD126: 0.029
A127: Reconstruction | B127: RECONSTRUCTION, PRESERVATION | C127: Asphaltic Pavement | D127: General Const and Asphaltic Surfacing | E127: 4.002 | F127: Rural | G127: $ 2M to $10M | H127: 2025-01-14 | I127: 2025 | J127: 20250114004 | K127: 3320-02-70 | L127: STATE HIGHWAY REHABILITATION | M127: SW | N127: Rock | O127: STH 140 | P127: Bergen - Emerald Grove; Illinois State Line to V Clinton | Q127: ROCK ROAD COMPANIES, INC. | R127: 3 | S127: 8598718.75 | T127: =IFERROR(Table1[[#This Row],[Total Bid Amount]]/Table1[[#This Row],[Proposal Length]]," ") -> 2148605.385 | U127: 460.6223 | V127: HMA Pavement 3 MT 58-28 S | W127: 30165 | X127: 61.1026355 | Y127: 3 | Z127: X | AA127: 327402.87 | AB127: 0.038 | AC127: 10000 | AD127: 0.001 | AE127: 0.029 | AF127: 0.231 | AG127: 0.268 | AH127: 0 | AI127: 0.016 | AJ127: 0.025 | AK127: 0.068 | AL127: 0.011 | AM127: 0.016 | AN127: 0.181 | AO127: 0.001 | AP127: 0.009 | AQ127: 0 | AR127: 0.009 | AS127: 0.001 | AT127: 0.008 | AU127: 0.012 | AV127: 0.001 | AW127: 0.002 | AX127: 0.009 | AY127: 0.003 | AZ127: 0.006 | BA127: 0.048 | BB127: 0.003 | BC127: 0.001 | BD127: 0.005
A128: Preservation/Restoration | B128: SHORT TERM OVERLAY (MILL AND OVERLAY) | C128: Asphaltic Pavement | D128: General Const and Asphaltic Surfacing | E128: 0.364 | F128: Rural | G128: $ 0.5M or less | H128: 2025-01-14 | I128: 2025 | J128: 20250114005 | K128: 3576-01-75 | L128: STATE HIGHWAY REHABILITATION | M128: SW | N128: Jefferson | O128: STH 106 | P128: Ft Atkinson - Palmyra; First Street to STH 59 | Q128: PAYNE AND DOLAN, INC | R128: 3 | S128: 269911.39 | T128: =IFERROR(Table1[[#This Row],[Total Bid Amount]]/Table1[[#This Row],[Proposal Length]]," ") -> 741514.8077 | U128: 460.5224 | V128: HMA Pavement 4 LT 58-28 S | W128: 650 | X128: 84.45 | Y128: 1 | AA128: 27350 | AB128: 0.101 | AC128: 5356 | AD128: 0.02 | AE128: 0.063 | AF128: 0.331 | AG128: 0.013 | AH128: 0 | AI128: 0 | AJ128: 0.1 | AK128: 0 | AL128: 0 | AM128: 0.018 | AN128: 0.024 | AO128: 0 | AP128: 0 | AQ128: 0 | AR128: 0.002 | AS128: 0 | AT128: 0.104 | AU128: 0.041 | AV128: 0.083 | AW128: 0 | AX128: 0 | AY128: 0.019 | AZ128: 0.004 | BA128: 0 | BB128: 0.022 | BC128: 0 | BD128: 0.076
A129: Traffic Operations | B129: STH - TRAFFIC OPERATIONS-TRAFFIC SIGNALS | C129: General Construction | D129: General Construction | E129: =0.161+3.111 -> 3.272 | F129: Unknown | G129: $10M to $20M | H129: 2025-01-14 | I129: 2025 | J129: 20250114006 | K129: 3700-10-64 | L129: HIGHWAY MAINTENANCE, REPAIR AND TRAFFIC OPERATIONS | M129: SW | N129: La Crosse | O129: STH 016 | P129: La Crosse - Sparta; Losey Blv to STH 157 | Q129: CHIPPEWA CONCRETE SERVICES, INC. | R129: 2 | S129: 10670188.16 | T129: =IFERROR(Table1[[#This Row],[Total Bid Amount]]/Table1[[#This Row],[Proposal Length]]," ") -> 3261059.951 | U129: 460.7424 | V129: HMA Pavement 4 HT 58-28 H | W129: 10678 | X129: 114.8 | Y129: 1 | AA129: 765339.12 | AB129: 0.072 | AC129: 90448.5 | AD129: 0.009 | AE129: 0.116 | AF129: 0.123 | AG129: 0.165 | AH129: 0.119 | AI129: 0.019 | AJ129: 0.035 | AK129: 0.03 | AL129: 0.018 | AM129: 0.008 | AN129: 0.003 | AO129: 0 | AP129: 0.002 | AQ129: 0 | AR129: 0 | AS129: 0 | AT129: 0.026 | AU129: 0.021 | AV129: 0.046 | AW129: 0.009 | AX129: 0.004 | AY129: 0.004 | AZ129: 0 | BA129: 0.158 | BB129: 0.001 | BC129: 0.004 | BD129: 0.017
A130: Pavement Replacement | B130: PAVEMENT REPLACEMENT | C130: Asphaltic Pavement | D130: General Const and Asphaltic Surfacing | E130: 1.799 | F130: Unknown | G130: $ 2M to $10M | H130: 2025-01-14 | I130: 2025 | J130: 20250114007 | K130: 3996-00-31 | L130: LOCAL TRANSPORTATION FACILITY IMPROVEMENT ASSISTANCE | M130: SW | N130: Dane | O130: LOC STR | P130: C of Sun Prairie, N. Thompson Road; CTH C to West Main Street | Q130: PAYNE AND DOLAN, INC | R130: 5 | S130: 2786337.54 | T130: =IFERROR(Table1[[#This Row],[Total Bid Amount]]/Table1[[#This Row],[Proposal Length]]," ") -> 1548825.759 | U130: 460.6223 | V130: HMA Pavement 3 MT 58-28 S | W130: 13190 | X130: 66.28097043 | Y130: 2 | AA130: 63000 | AB130: 0.023 | AC130: 14585 | AD130: 0.005 | AE130: 0.118 | AF130: 0.325 | AG130: 0.033 | AH130: 0 | AI130: 0.007 | AJ130: 0.172 | AK130: 0.076 | AL130: 0 | AM130: 0.034 | AN130: 0.049 | AO130: 0 | AP130: 0 | AQ130: 0 | AR130: 0.003 | AS130: 0 | AT130: 0.012 | AU130: 0.032 | AV130: 0.035 | AW130: 0 | AX130: 0.001 | AY130: 0.043 | AZ130: 0.01 | BA130: 0 | BB130: 0.018 | BC130: 0 | BD130: 0.01
A131: Pavement Replacement | B131: PAVEMENT REPLACEMENT | C131: Asphaltic Pavement | D131: General Const and Asphaltic Surfacing | E131: 8.11 | F131: Rural | G131: $ 2M to $10M | H131: 2025-01-14 | I131: 2025 | J131: 20250114008 | K131: 5080-09-73 | L131: STATE HIGHWAY REHABILITATION | M131: SW | N131: Sauk | O131: STH 023 | P131: Spring Green - Reedsburg; Elder Ridge Road to CTH K | Q131: ROCK ROAD COMPANIES, INC. | R131: 3 | S131: 8129632.66 | T131: =IFERROR(Table1[[#This Row],[Total Bid Amount]]/Table1[[#This Row],[Proposal Length]]," ") -> 1002420.797 | U131: 460.6223 | V131: HMA Pavement 3 MT 58-28 S | W131: 57050 | X131: 78.13556529 | Y131: 2 | Z131: X | AA131: 287170.06 | AB131: 0.035 | AC131: 5500 | AD131: 0.001 | AE131: 0.013 | AF131: 0.58 | AG131: 0.138 | AH131: 0 | AI131: 0.001 | AJ131: 0.014 | AK131: 0.047 | AL131: 0.001 | AM131: 0.008 | AN131: 0.03 | AO131: 0 | AP131: 0.048 | AQ131: 0 | AR131: 0.001 | AS131: 0 | AT131: 0.012 | AU131: 0.028 | AV131: 0.023 | AW131: 0 | AX131: 0 | AY131: 0.004 | AZ131: 0.002 | BA131: 0 | BB131: 0.003 | BC131: 0.001 | BD131: 0.01
A132: Resurfacing | B132: RESURFACING (OVERLAY >= 4 INCHES) | C132: Asphaltic Pavement | D132: General Const and Asphaltic Surfacing | E132: 9.96 | F132: Rural | G132: $10M to $20M | H132: 2025-01-14 | I132: 2025 | J132: 20250114009 | K132: 5160-07-70 | L132: STATE HIGHWAY REHABILITATION | M132: SW | N132: Crawford | O132: STH 035 | P132: Prairie Du Chien - Ferryville; CTH N to CTH E/B-12-41,-42,-43,-45 | Q132: IVERSON CONSTRUCTION, A DIV. OF MATHY CONSTRUCTION | R132: 2 | S132: 12064662.61 | T132: =IFERROR(Table1[[#This Row],[Total Bid Amount]]/Table1[[#This Row],[Proposal Length]]," ") -> 1211311.507 | U132: 460.6224 | V132: HMA Pavement 4 MT 58-28 S | W132: 38767 | X132: 85.4 | Y132: 1 | Z132: X | AA132: 986850 | AB132: 0.082 | AC132: 38500 | AD132: 0.003 | AE132: 0.113 | AF132: 0.336 | AG132: 0.044 | AH132: 0 | AI132: 0.002 | AJ132: 0.012 | AK132: 0.051 | AL132: 0 | AM132: 0.024 | AN132: 0.073 | AO132: 0 | AP132: 0.148 | AQ132: 0 | AR132: 0.002 | AS132: 0 | AT132: 0.011 | AU132: 0.021 | AV132: 0.048 | AW132: 0 | AX132: 0 | AY132: 0.015 | AZ132: 0.001 | BA132: 0.004 | BB132: 0.003 | BC132: 0 | BD132: 0.012
A133: Bridge Replacement | B133: BRIDGE REPLACEMENT, PRESERVATION | C133: Structures | D133: General Const and Highway Structures | E133: 0.03 | F133: Rural | G133: $ 0.5M or less | H133: 2025-01-14 | I133: 2025 | J133: 20250114010 | K133: 5165-00-72 | L133: HIGHWAY AND LOCAL BRIDGE IMPROVEMENT ASSISTANCE | M133: SW | N133: Monroe | O133: CTH Z | P133: CTH P - STH 131 (CTH Z); Poe Creek Bridge B-41-0330 | Q133: PHEIFER BROTHERS CONSTRUCTION CO., INC. | R133: 6 | S133: 426862.48 | T133: =IFERROR(Table1[[#This Row],[Total Bid Amount]]/Table1[[#This Row],[Proposal Length]]," ") -> 14228749.33 | AA133: 31575.65 | AB133: 0.074 | AC133: 1544.59 | AD133: 0.004 | AE133: 0 | AF133: 0.033 | AG133: 0.018 | AH133: 0 | AI133: 0.003 | AJ133: 0 | AK133: 0.007 | AL133: 0 | AM133: 0.083 | AN133: 0.203 | AO133: 0 | AP133: 0 | AQ133: 0 | AR133: 0.001 | AS133: 0 | AT133: 0.007 | AU133: 0.011 | AV133: 0 | AW133: 0.187 | AX133: 0 | AY133: 0 | AZ133: 0.002 | BA133: 0.355 | BB133: 0.007 | BC133: 0 | BD133: 0.008
A134: Bridge Replacement | B134: BRIDGE REPLACEMENT, PRESERVATION | C134: Structures | D134: General Const and Highway Structures | E134: 0.031 | F134: Rural | G134: $ 0.5M or less | H134: 2025-01-14 | I134: 2025 | J134: 20250114011 | K134: 5322-00-70 | L134: HIGHWAY AND LOCAL BRIDGE IMPROVEMENT ASSISTANCE | M134: SW | N134: Sauk | O134: LOC STR | P134: Town of Winfield, Bass Road; Hay Creek Bridge B-56-0251 | Q134: CONCRETE STRUCTURES, INC. | R134: 4 | S134: 489623.82 | T134: =IFERROR(Table1[[#This Row],[Total Bid Amount]]/Table1[[#This Row],[Proposal Length]]," ") -> 15794316.77 | AA134: 64876.32 | AB134: 0.133 | AC134: 1659.99 | AD134: 0.003 | AE134: 0 | AF134: 0.02 | AG134: 0.018 | AH134: 0 | AI134: 0.002 | AJ134: 0 | AK134: 0.003 | AL134: 0 | AM134: 0.033 | AN134: 0.058 | AO134: 0 | AP134: 0.02 | AQ134: 0 | AR134: 0.003 | AS134: 0 | AT134: 0.024 | AU134: 0 | AV134: 0 | AW134: 0.02 | AX134: 0 | AY134: 0.002 | AZ134: 0.003 | BA134: 0.646 | BB134: 0.007 | BC134: 0 | BD134: 0.008
A135: Miscellaneous | B135: MISCELLANEOUS | C135: General Construction | D135: General Construction | E135: 0.12 | F135: Unknown | G135: $ 2M to $10M | H135: 2025-01-14 | I135: 2025 | J135: 20250114012 | K135: 5350-02-72 | L135: STATE HIGHWAY REHABILITATION | M135: SW | N135: Rock | O135: USH 051 | P135: C Janesville, Center Avenue; Court/Milwaukee/Centerway Intersctn | Q135: ROCK ROAD COMPANIES, INC. | R135: 4 | S135: 4172821.93 | T135: =IFERROR(Table1[[#This Row],[Total Bid Amount]]/Table1[[#This Row],[Proposal Length]]," ") -> 34773516.08 | U135: 460.6224 | V135: HMA Pavement 4 MT 58-28 S | W135: 976 | X135: 91 | Y135: 1 | AA135: 504633.25 | AB135: 0.121 | AC135: 6200 | AD135: 0.002 | AE135: 0.271 | AF135: 0.025 | AG135: 0.055 | AH135: 0 | AI135: 0.089 | AJ135: 0.039 | AK135: 0.131 | AL135: 0.041 | AM135: 0.004 | AN135: 0.093 | AO135: 0.003 | AP135: 0 | AQ135: 0 | AR135: 0.01 | AS135: 0.001 | AT135: 0.036 | AU135: 0.003 | AV135: 0.001 | AW135: 0 | AX135: 0.023 | AY135: 0.015 | AZ135: 0.005 | BA135: 0 | BB135: 0.011 | BC135: 0.017 | BD135: 0.01
A136: Reconditioning | B136: RECONDITION (IMPROVE CURVE/GRADE/SIGHT/INTERSECT) | C136: Asphaltic Pavement | D136: General Const and Asphaltic Surfacing | E136: 3.157 | F136: Rural | G136: $ 1M to $ 2M | H136: 2025-01-14 | I136: 2025 | J136: 20250114013 | K136: 5910-00-72 | L136: LOCAL TRANSPORTATION FACILITY IMPROVEMENT ASSISTANCE | M136: SW | N136: Grant | O136: CTH HH | P136: USH 151 - STH 80 (CTH Hh); USH 151 to CTH H | Q136: IVERSON CONSTRUCTION, A DIV. OF MATHY CONSTRUCTION | R136: 1 | S136: 1424639.48 | T136: =IFERROR(Table1[[#This Row],[Total Bid Amount]]/Table1[[#This Row],[Proposal Length]]," ") -> 451263.6934 | U136: 460.5224 | V136: HMA Pavement 4 LT 58-28 S | W136: 9950 | X136: 86.35 | Y136: 1 | AA136: 182100 | AB136: 0.128 | AC136: 4350 | AD136: 0.003 | AE136: 0 | AF136: 0.624 | AG136: 0.11 | AH136: 0 | AI136: 0 | AJ136: 0.006 | AK136: 0 | AL136: 0 | AM136: 0.005 | AN136: 0.021 | AO136: 0 | AP136: 0 | AQ136: 0 | AR136: 0 | AS136: 0 | AT136: 0.026 | AU136: 0.051 | AV136: 0.017 | AW136: 0 | AX136: 0 | AY136: 0.002 | AZ136: 0 | BA136: 0 | BB136: 0.006 | BC136: 0 | BD136: 0.005
A137: Pavement Replacement | B137: PAVEMENT REPLACEMENT | C137: Asphaltic Pavement | D137: General Const and Asphaltic Surfacing | E137: 1.537 | F137: Rural | G137: $ 0.5M to $ 1M | H137: 2025-01-14 | I137: 2025 | J137: 20250114014 | K137: 6338-00-72 | L137: LOCAL TRANSPORTATION FACILITY IMPROVEMENT ASSISTANCE | M137: SW | N137: Dodge | O137: CTH M | P137: USH 151 - CTH Mm (CTH M); USH 151 to S Madison St (CTH Mm) | Q137: NORTHEAST ASPHALT, INC | R137: 2 | S137: 998122.15 | T137: =IFERROR(Table1[[#This Row],[Total Bid Amount]]/Table1[[#This Row],[Proposal Length]]," ") -> 649396.324 | U137: 460.5223 | V137: HMA Pavement 3 LT 58-28 S | W137: 7020 | X137: 64.45968661 | Y137: 2 | AA137: 8550 | AB137: 0.009 | AC137: 2750 | AD137: 0.003 | AE137: 0.333 | AF137: 0.484 | AG137: 0.089 | AH137: 0 | AI137: 0 | AJ137: 0.013 | AK137: 0 | AL137: 0 | AM137: 0.004 | AN137: 0 | AO137: 0 | AP137: 0 | AQ137: 0 | AR137: 0 | AS137: 0 | AT137: 0.012 | AU137: 0.036 | AV137: 0.009 | AW137: 0 | AX137: 0 | AY137: 0 | AZ137: 0 | BA137: 0 | BB137: 0.003 | BC137: 0 | BD137: 0.009
A138: Preservation/Restoration | B138: SHORT TERM OVERLAY (MILL AND OVERLAY) | C138: Asphaltic Pavement | D138: General Const and Asphaltic Surfacing | E138: 15.616 | F138: Rural | G138: $ 2M to $10M | H138: 2025-01-14 | I138: 2025 | J138: 20250114015 | K138: 7605-06-62 | L138: STATE HIGHWAY REHABILITATION | M138: SW | N138: Monroe | O138: STH 021 | P138: Sparta - Tomah; C Sparta E Limit to Emerson Road | Q138: MATHY CONSTRUCTION COMPANY | R138: 1 | S138: 8275475.4 | T138: =IFERROR(Table1[[#This Row],[Total Bid Amount]]/Table1[[#This Row],[Proposal Length]]," ") -> 529935.6685 | U138: 460.6224 | V138: HMA Pavement 4 MT 58-28 S | W138: 45823 | X138: 89.63 | Y138: 1 | Z138: X | AA138: 546921.66 | AB138: 0.066 | AC138: 25006.35 | AD138: 0.003 | AE138: 0.042 | AF138: 0.612 | AG138: 0.041 | AH138: 0 | AI138: 0 | AJ138: 0.002 | AK138: 0.004 | AL138: 0 | AM138: 0.011 | AN138: 0.02 | AO138: 0 | AP138: 0.034 | AQ138: 0 | AR138: 0.001 | AS138: 0 | AT138: 0.016 | AU138: 0.047 | AV138: 0.083 | AW138: 0 | AX138: 0.002 | AY138: 0.002 | AZ138: 0.001 | BA138: 0 | BB138: 0.002 | BC138: 0 | BD138: 0.013
A139: Traffic Operations | B139: STH - TRAFFIC OPERATIONS PAVEMENT MARKING | C139: General Construction | D139: General and Incidental Construction | E139: 100 | F139: Unknown | G139: $ 2M to $10M | H139: 2025-01-14 | I139: 2025 | J139: 20250114016 | K139: 1000-77-25 | L139: HIGHWAY MAINTENANCE, REPAIR AND TRAFFIC OPERATIONS | M139: SE | N139: Southeast Region Wide | O139: VAR HWY | P139: Epoxy Pavement Marking 2025; Location On Stn Per Annual Plan | Q139: SIR LINES-A-LOT LLC | R139: 2 | S139: 2406564.84 | T139: =IFERROR(Table1[[#This Row],[Total Bid Amount]]/Table1[[#This Row],[Proposal Length]]," ") -> 24065.6484 | AA139: 75000 | AB139: 0.031 | AC139: 75000 | AD139: =Table1[[#This Row],[Traffic Control Item Price]]/Table1[[#This Row],[Total Bid Amount]] -> 0.03116475349 | AE139: 0.047 | AF139: 0 | AG139: 0 | AH139: 0 | AI139: 0 | AJ139: 0 | AK139: 0 | AL139: 0 | AM139: 0 | AN139: 0 | AO139: 0 | AP139: 0 | AQ139: 0 | AR139: 0 | AS139: 0 | AT139: 0 | AU139: 0.921 | AV139: 0 | AW139: 0 | AX139: 0 | AY139: 0 | AZ139: 0 | BA139: 0 | BB139: 0 | BC139: 0 | BD139: 0
A140: Resurfacing | B140: RESURFACING (OVERLAY >= 4 INCHES) | C140: Asphaltic Pavement | D140: General Const and Asphaltic Surfacing | E140: 3.31 | F140: Rural | G140: $ 2M to $10M | H140: 2025-01-14 | I140: 2025 | J140: 20250114017 | K140: 1410-00-73 | L140: STATE HIGHWAY REHABILITATION | M140: SE | N140: Washington | O140: STH 033 | P140: West Bend to Newburg, T of Trenton; 1/2 Mi West of N Poplar Rd to CTH Y | Q140: PAYNE AND DOLAN, INC | R140: 2 | S140: 2532996.59 | T140: =IFERROR(Table1[[#This Row],[Total Bid Amount]]/Table1[[#This Row],[Proposal Length]]," ") -> 765255.7674 | U140: 460.6223 | V140: HMA Pavement 3 MT 58-28 S | W140: 16453 | X140: 76.11930955 | Y140: 2 | AA140: 60000 | AB140: 0.024 | AC140: 16450 | AD140: 0.007 | AE140: 0.115 | AF140: 0.559 | AG140: 0.018 | AH140: 0.023 | AI140: 0 | AJ140: 0.036 | AK140: 0.018 | AL140: 0 | AM140: 0.003 | AN140: 0.004 | AO140: 0.001 | AP140: 0.004 | AQ140: 0 | AR140: 0 | AS140: 0 | AT140: 0.014 | AU140: 0.035 | AV140: 0.078 | AW140: 0 | AX140: 0 | AY140: 0.005 | AZ140: 0.021 | BA140: 0.024 | BB140: 0.005 | BC140: 0 | BD140: 0.013
A141: Resurfacing | B141: RESURFACING (OVERLAY >= 4 INCHES) | C141: Asphaltic Pavement | D141: Gen Const and Asph Surf and Incidental | E141: 2.625 | F141: Rural | G141: $ 2M to $10M | H141: 2025-01-14 | I141: 2025 | J141: 20250114018 | K141: 2225-00-73 | L141: STATE HIGHWAY REHABILITATION | M141: SE | N141: Milwaukee | O141: STH 032 | P141: V Fox Point, N Lake Dr; School Road to Dean Road | Q141: STARK PAVEMENT CORPORATION | R141: 6 | S141: 4946007.09 | T141: =IFERROR(Table1[[#This Row],[Total Bid Amount]]/Table1[[#This Row],[Proposal Length]]," ") -> 1884193.177 | U141: 460.5223 | V141: HMA Pavement 3 LT 58-28 S | W141: 14396 | X141: 78.6 | Y141: 2 | AA141: 132000 | AB141: 0.027 | AC141: 23369.28 | AD141: 0.005 | AE141: 0.424 | AF141: 0.243 | AG141: 0.034 | AH141: 0 | AI141: 0 | AJ141: 0.025 | AK141: 0.104 | AL141: 0 | AM141: 0.017 | AN141: 0.015 | AO141: 0 | AP141: 0 | AQ141: 0 | AR141: 0.001 | AS141: 0 | AT141: 0.015 | AU141: 0.013 | AV141: 0.041 | AW141: 0 | AX141: 0.004 | AY141: 0.01 | AZ141: 0.008 | BA141: 0 | BB141: 0.004 | BC141: 0 | BD141: 0.013
A142: Resurfacing | B142: RESURFACING (OVERLAY >= 4 IN DOES NOT INCREASE PROFILE) | C142: Asphaltic Pavement | D142: General Const and Asphaltic Surfacing | E142: blank | F142: Unknown | G142: $ 2M to $10M | H142: 2025-01-14 | I142: 2025 | J142: 20250114019 | K142: 2265-18-70 | L142: STATE HIGHWAY REHABILITATION | M142: SE | N142: Milwaukee | O142: STH 241 | P142: Oak Creek - Milwaukee; College Ave to Layton Ave | Q142: PAYNE AND DOLAN, INC | R142: 4 | S142: 6164845.67 | T142: =IFERROR(Table1[[#This Row],[Total Bid Amount]]/Table1[[#This Row],[Proposal Length]]," ") ->  | U142: 460.6223 | V142: HMA Pavement 3 MT 58-28 S | W142: 21331 | X142: 79.47481834 | Y142: 2 | AA142: 199000 | AB142: 0.032 | AC142: 107290.46 | AD142: 0.017 | AE142: 0.081 | AF142: 0.295 | AG142: 0.167 | AH142: 0 | AI142: 0.055 | AJ142: 0.102 | AK142: 0.033 | AL142: 0.027 | AM142: 0.006 | AN142: 0.006 | AO142: 0 | AP142: 0.003 | AQ142: 0 | AR142: 0.005 | AS142: 0 | AT142: 0.031 | AU142: 0.04 | AV142: 0.044 | AW142: 0 | AX142: 0.001 | AY142: 0.017 | AZ142: 0.007 | BA142: 0 | BB142: 0.005 | BC142: 0.001 | BD142: 0.04
A143: Bridge Replacement | B143: BRIDGE REPLACEMENT, PRESERVATION | C143: Structures | D143: General Const and Highway Structures | E143: 0.06 | F143: Rural | G143: $ 1M to $ 2M | H143: 2025-01-14 | I143: 2025 | J143: 20250114020 | K143: 2719-00-71 | L143: HIGHWAY AND LOCAL BRIDGE IMPROVEMENT ASSISTANCE | M143: SE | N143: Waukesha | O143: LOC STR | P143: V Vernon-Center Dr; Bridge Over Fox River P67-0100 | Q143: LUNDA CONSTRUCTION COMPANY | R143: 3 | S143: 1739086.31 | T143: =IFERROR(Table1[[#This Row],[Total Bid Amount]]/Table1[[#This Row],[Proposal Length]]," ") -> 28984771.83 | U143: 460.5223 | V143: HMA Pavement 3 LT 58-28 S | W143: 102 | X143: 228.8235294 | Y143: 2 | AA143: 172331.22 | AB143: 0.099 | AC143: 1700 | AD143: 0.001 | AE143: 0.027 | AF143: 0.02 | AG143: 0.015 | AH143: 0 | AI143: 0.015 | AJ143: 0.006 | AK143: 0.026 | AL143: 0 | AM143: 0.045 | AN143: 0.035 | AO143: 0 | AP143: 0.022 | AQ143: 0 | AR143: 0.001 | AS143: 0 | AT143: 0.023 | AU143: 0.003 | AV143: 0 | AW143: 0.115 | AX143: 0 | AY143: 0.003 | AZ143: 0.003 | BA143: 0.534 | BB143: 0.005 | BC143: 0 | BD143: 0.004
A144: Resurfacing | B144: RESURFACING (OVERLAY >= 2.5 INCHES AND < 4 INCHES) | C144: Asphaltic Pavement | D144: General Const and Asphaltic Surfacing | E144: 1.827 | F144: Unknown | G144: $ 2M to $10M | H144: 2025-01-14 | I144: 2025 | J144: 20250114021 | K144: 3220-09-71 | L144: STATE HIGHWAY REHABILITATION | M144: SE | N144: Kenosha | O144: STH 158 | P144: C Kenosha, 52nd Street; Ih41/94 Frontage Rd to CTH H | Q144: PAYNE AND DOLAN, INC | R144: 2 | S144: 2379964.62 | T144: =IFERROR(Table1[[#This Row],[Total Bid Amount]]/Table1[[#This Row],[Proposal Length]]," ") -> 1302662.627 | U144: 460.6224 | V144: HMA Pavement 4 MT 58-28 S | W144: 12530 | X144: 73.5 | Y144: 1 | Z144: X | AA144: 22421.98 | AB144: 0.009 | AC144: 6000 | AD144: 0.003 | AE144: 0.115 | AF144: 0.428 | AG144: 0.024 | AH144: 0 | AI144: 0.01 | AJ144: 0.008 | AK144: 0.085 | AL144: 0.081 | AM144: 0.034 | AN144: 0.005 | AO144: 0 | AP144: 0 | AQ144: 0.001 | AR144: 0.001 | AS144: 0.002 | AT144: 0.063 | AU144: 0.043 | AV144: 0.034 | AW144: 0 | AX144: 0.002 | AY144: 0.011 | AZ144: 0.005 | BA144: 0 | BB144: 0.004 | BC144: 0.024 | BD144: 0.008
A145: Bridge Replacement | B145: BRIDGE REPLACEMENT, PRESERVATION | C145: Structures | D145: General Const and Highway Structures | E145: 0.083 | F145: Rural | G145: $ 0.5M to $ 1M | H145: 2025-01-14 | I145: 2025 | J145: 20250114022 | K145: 3745-05-70 | L145: HIGHWAY AND LOCAL BRIDGE IMPROVEMENT ASSISTANCE | M145: SE | N145: Kenosha | O145: CTH WG | P145: V Bristol, 128th St; Dutch Gap Canal Bridge P30-910 | Q145: CONCRETE STRUCTURES, INC. | R145: 4 | S145: 795573.08 | T145: =IFERROR(Table1[[#This Row],[Total Bid Amount]]/Table1[[#This Row],[Proposal Length]]," ") -> 9585217.831 | AA145: 42300 | AB145: 0.053 | AC145: 10925 | AD145: 0.014 | AE145: 0.006 | AF145: 0.038 | AG145: 0.092 | AH145: 0 | AI145: 0.069 | AJ145: 0.009 | AK145: 0.011 | AL145: 0 | AM145: 0.041 | AN145: 0.058 | AO145: 0 | AP145: 0.049 | AQ145: 0 | AR145: 0.005 | AS145: 0 | AT145: 0.012 | AU145: 0.005 | AV145: 0 | AW145: 0.019 | AX145: 0 | AY145: 0.002 | AZ145: 0.002 | BA145: 0.497 | BB145: 0.013 | BC145: 0 | BD145: 0.02
A146: Reconditioning | B146: RECONDITION (INTERSECTION/WIDEN/SHOULDER) | C146: Asphaltic Pavement | D146: General Const and Asphaltic Surfacing | E146: 1.054 | F146: Urban | G146: $ 0.5M to $ 1M | H146: 2025-01-14 | I146: 2025 | J146: 20250114023 | K146: 3833-05-70 | L146: LOCAL TRANSPORTATION FACILITY IMPROVEMENT ASSISTANCE | M146: SE | N146: Racine | O146: LOC STR | P146: T Burlington, Ketterhagen Rd; CTH W to STH 36/83 | Q146: STARK PAVEMENT CORPORATION | R146: 2 | S146: 543883 | T146: =IFERROR(Table1[[#This Row],[Total Bid Amount]]/Table1[[#This Row],[Proposal Length]]," ") -> 516018.0266 | U146: 460.5224 | V146: HMA Pavement 4 LT 58-28 S | W146: 2719 | X146: 75.75 | Y146: 1 | AA146: 19949.34 | AB146: 0.037 | AC146: 1950 | AD146: 0.004 | AE146: 0 | AF146: 0.438 | AG146: 0.095 | AH146: 0 | AI146: 0 | AJ146: 0 | AK146: 0.175 | AL146: 0 | AM146: 0.032 | AN146: 0.053 | AO146: 0 | AP146: 0 | AQ146: 0 | AR146: 0.007 | AS146: 0 | AT146: 0.022 | AU146: 0.013 | AV146: 0.058 | AW146: 0 | AX146: 0 | AY146: 0.019 | AZ146: 0.01 | BA146: 0 | BB146: 0.03 | BC146: 0 | BD146: 0.01
A147: Bridge Replacement | B147: BRIDGE REPLACEMENT, PRESERVATION | C147: Structures | D147: General Const and Highway Structures | E147: 0.102 | F147: Rural | G147: $ 0.5M to $ 1M | H147: 2025-01-14 | I147: 2025 | J147: 20250114024 | K147: 3834-05-71 | L147: HIGHWAY AND LOCAL BRIDGE IMPROVEMENT ASSISTANCE | M147: SE | N147: Racine | O147: LOC STR | P147: T Burlington, Mt Tom Rd; Hoosier Creek Bridge P51-0911 | Q147: PHEIFER BROTHERS CONSTRUCTION CO., INC. | R147: 5 | S147: 747912.91 | T147: =IFERROR(Table1[[#This Row],[Total Bid Amount]]/Table1[[#This Row],[Proposal Length]]," ") -> 7332479.51 | U147: 460.5223 | V147: HMA Pavement 3 LT 58-28 S | W147: 387 | X147: 85.85 | Y147: 2 | AA147: 29684.01 | AB147: 0.04 | AC147: 800 | AD147: 0.001 | AE147: 0.007 | AF147: 0.045 | AG147: 0.047 | AH147: 0 | AI147: 0.034 | AJ147: 0 | AK147: 0.002 | AL147: 0 | AM147: 0.04 | AN147: 0.099 | AO147: 0 | AP147: 0.045 | AQ147: 0 | AR147: 0.004 | AS147: 0 | AT147: 0.011 | AU147: 0 | AV147: 0 | AW147: 0.239 | AX147: 0 | AY147: 0.001 | AZ147: 0.001 | BA147: 0.374 | BB147: 0.006 | BC147: 0 | BD147: 0.005
A148: Traffic Operations | B148: STH - TRAFFIC OPERATIONS PAVEMENT MARKING | C148: General Construction | D148: General and Incidental Construction | E148: 286 | F148: Rural | G148: $ 2M to $10M | H148: 2025-01-14 | I148: 2025 | J148: 20250114025 | K148: 1009-34-37 | L148: HIGHWAY MAINTENANCE, REPAIR AND TRAFFIC OPERATIONS | M148: NE | N148: Northeast Region Wide | O148: VAR HWY | P148: Epoxy Pavement Markings-Sth/Ush; Locations On Stn Per Annual Pln | Q148: CENTURY TRAFFIC, LLC | R148: 2 | S148: 2285554.28 | T148: =IFERROR(Table1[[#This Row],[Total Bid Amount]]/Table1[[#This Row],[Proposal Length]]," ") -> 7991.448531 | AA148: 17750 | AB148: 0.008 | AC148: 15000 | AD148: =Table1[[#This Row],[Traffic Control Item Price]]/Table1[[#This Row],[Total Bid Amount]] -> 0.006562959424 | AE148: 0.007 | AF148: 0 | AG148: 0 | AH148: 0 | AI148: 0 | AJ148: 0 | AK148: 0 | AL148: 0 | AM148: 0 | AN148: 0 | AO148: 0 | AP148: 0 | AQ148: 0 | AR148: 0 | AS148: 0 | AT148: 0.003 | AU148: 0.983 | AV148: 0 | AW148: 0 | AX148: 0 | AY148: 0 | AZ148: 0 | BA148: 0 | BB148: 0 | BC148: 0 | BD148: 0
A149: Miscellaneous | B149: MISCELLANEOUS | C149: Concrete Pavement | D149: General Construction and PCC Pavement | E149: 0 | F149: Rural | G149: $ 2M to $10M | H149: 2025-01-14 | I149: 2025 | J149: 20250114026 | K149: 1225-10-72 | L149: STATE HIGHWAY REHABILITATION | M149: NE | N149: Manitowoc | O149: IH 043 | P149: Manitowoc - Green Bay; Sra 51 Maribel/Sra 52 Denmark | Q149: VINTON CONSTRUCTION COMPANY | R149: 6 | S149: 9459135.14 | T149: =IFERROR(Table1[[#This Row],[Total Bid Amount]]/Table1[[#This Row],[Proposal Length]]," ") ->  | AA149: 41000 | AB149: 0.004 | AC149: 12355 | AD149: 0.001 | AE149: 0.069 | AF149: 0.01 | AG149: 0.109 | AH149: 0 | AI149: 0.364 | AJ149: 0.061 | AK149: 0.056 | AL149: 0.069 | AM149: 0.036 | AN149: 0.068 | AO149: 0.001 | AP149: 0 | AQ149: 0.005 | AR149: 0.024 | AS149: 0.003 | AT149: 0.043 | AU149: 0.004 | AV149: 0 | AW149: 0 | AX149: 0.003 | AY149: 0.021 | AZ149: 0.006 | BA149: 0.035 | BB149: 0.004 | BC149: 0.002 | BD149: 0.003
A150: Bridge Replacement | B150: BRIDGE REPLACEMENT, PRESERVATION | C150: Structures | D150: General Const and Highway Structures | E150: 0.091 | F150: Rural | G150: $ 0.5M to $ 1M | H150: 2025-01-14 | I150: 2025 | J150: 20250114027 | K150: 6375-01-71 | L150: HIGHWAY AND LOCAL BRIDGE IMPROVEMENT ASSISTANCE | M150: NC | N150: Adams | O150: CTH J | P150: CTH Z - CTH N; Little Roche a Cri Creek B-01-0037 | Q150: PHEIFER BROTHERS CONSTRUCTION CO., INC. | R150: 6 | S150: 712801.52 | T150: =IFERROR(Table1[[#This Row],[Total Bid Amount]]/Table1[[#This Row],[Proposal Length]]," ") -> 7832983.736 | U150: 460.5223 | V150: HMA Pavement 3 LT 58-28 S | W150: 280 | X150: 110.11 | Y150: 1 | AA150: 31711.01 | AB150: 0.044 | AC150: 4750 | AD150: 0.007 | AE150: 0.02 | AF150: 0.045 | AG150: 0.052 | AH150: 0 | AI150: 0.002 | AJ150: 0 | AK150: 0.001 | AL150: 0 | AM150: 0.068 | AN150: 0.111 | AO150: 0 | AP150: 0.044 | AQ150: 0 | AR150: 0.001 | AS150: 0 | AT150: 0.02 | AU150: 0.007 | AV150: 0 | AW150: 0.226 | AX150: 0 | AY150: 0 | AZ150: 0.002 | BA150: 0.338 | BB150: 0.006 | BC150: 0 | BD150: 0.013
A151: Bridge Replacement | B151: BRIDGE REPLACEMENT, PRESERVATION | C151: Structures | D151: General Const and Highway Structures | E151: 0.075 | F151: Rural | G151: $ 0.5M to $ 1M | H151: 2025-01-14 | I151: 2025 | J151: 20250114028 | K151: 6653-00-72 | L151: HIGHWAY AND LOCAL BRIDGE IMPROVEMENT ASSISTANCE | M151: NC | N151: Marathon | O151: CTH C | P151: CTH J - CTH Y; Plover River Bridge, B-37-0468 | Q151: LARSON CONSTRUCTION CO., INC. | R151: 6 | S151: 846890.05 | T151: =IFERROR(Table1[[#This Row],[Total Bid Amount]]/Table1[[#This Row],[Proposal Length]]," ") -> 11291867.33 | AA151: 74068 | AB151: 0.087 | AC151: 1915 | AD151: 0.002 | AE151: 0 | AF151: 0.053 | AG151: 0.024 | AH151: 0 | AI151: 0.055 | AJ151: 0.007 | AK151: 0.01 | AL151: 0 | AM151: 0.071 | AN151: 0.04 | AO151: 0 | AP151: 0.042 | AQ151: 0 | AR151: 0.001 | AS151: 0 | AT151: 0.021 | AU151: 0.006 | AV151: 0.004 | AW151: 0.074 | AX151: 0 | AY151: 0.001 | AZ151: 0.001 | BA151: 0.484 | BB151: 0.006 | BC151: 0 | BD151: 0.01
A152: Bridge Replacement | B152: BRIDGE REPLACEMENT, PRESERVATION | C152: Structures | D152: General Const and Highway Structures | E152: 0.07 | F152: Rural | G152: $ 0.5M to $ 1M | H152: 2025-01-14 | I152: 2025 | J152: 20250114029 | K152: 9371-00-70 | L152: HIGHWAY AND LOCAL BRIDGE IMPROVEMENT ASSISTANCE | M152: NC | N152: Langlade | O152: CTH H | P152: CTH J - STH 17; Prairie River Bridge, B-34-0064 | Q152: ZENITH TECH., INC. - WAUKESHA | R152: 6 | S152: 814507.63 | T152: =IFERROR(Table1[[#This Row],[Total Bid Amount]]/Table1[[#This Row],[Proposal Length]]," ") -> 11635823.29 | AA152: 126000 | AB152: 0.155 | AC152: 2456 | AD152: 0.003 | AE152: 0 | AF152: 0.037 | AG152: 0.027 | AH152: 0 | AI152: 0.002 | AJ152: 0 | AK152: 0.003 | AL152: 0 | AM152: 0.07 | AN152: 0.051 | AO152: 0.006 | AP152: 0.046 | AQ152: 0 | AR152: 0.001 | AS152: 0 | AT152: 0.026 | AU152: 0 | AV152: 0 | AW152: 0.06 | AX152: 0 | AY152: 0.001 | AZ152: 0.004 | BA152: 0.503 | BB152: 0.005 | BC152: 0 | BD152: 0.004
A153: Expansion | B153: NEW BRIDGE | C153: Structures | D153: General Const and Highway Structures | E153: 0.076 | F153: Rural | G153: $ 0.5M to $ 1M | H153: 2025-01-14 | I153: 2025 | J153: 20250114030 | K153: 9874-00-70 | L153: LOCAL TRANSPORTATION FACILITY IMPROVEMENT ASSISTANCE | M153: NC | N153: Oneida | O153: LOC STR | P153: T Minocqua, Camp Nine Road; Manhardt Road to Cedar Falls Road | Q153: JANKE GENERAL CONTRACTORS, INC. | R153: 5 | S153: 698765.43 | T153: =IFERROR(Table1[[#This Row],[Total Bid Amount]]/Table1[[#This Row],[Proposal Length]]," ") -> 9194281.974 | AA153: 50000 | AB153: 0.072 | AC153: 3137 | AD153: 0.005 | AE153: 0.098 | AF153: 0.036 | AG153: 0.031 | AH153: 0 | AI153: 0.06 | AJ153: 0 | AK153: 0.004 | AL153: 0 | AM153: 0.099 | AN153: 0.107 | AO153: 0 | AP153: 0 | AQ153: 0 | AR153: 0.002 | AS153: 0 | AT153: 0.008 | AU153: 0 | AV153: 0 | AW153: 0.013 | AX153: 0 | AY153: 0 | AZ153: 0.003 | BA153: 0.456 | BB153: 0.006 | BC153: 0 | BD153: 0.006
A154: Bridge Rehab. & Preventive | B154: BRIDGE REHABILITATION | C154: Structures | D154: General Const and Highway Structures | E154: 0.02 | F154: Urban | G154: $ 0.5M to $ 1M | H154: 2025-01-14 | I154: 2025 | J154: 20250114031 | K154: 1195-05-60 | L154: STATE HIGHWAY REHABILITATION | M154: NW | N154: Barron | O154: USH 053 | P154: Rice Lake - Spooner; Oaklawn Rd/22nd 1/2 Ave SB B030050 | Q154: ZENITH TECH., INC. - WAUKESHA | R154: 2 | S154: 770404.84 | T154: =IFERROR(Table1[[#This Row],[Total Bid Amount]]/Table1[[#This Row],[Proposal Length]]," ") -> 38520242 | U154: 460.6244 | V154: HMA Pavement 4 MT 58-34 S | W154: 1023 | X154: 115.25 | Y154: 1 | AA154: 136000 | AB154: 0.177 | AC154: 13500 | AD154: 0.018 | AE154: 0.003 | AF154: 0.161 | AG154: 0.018 | AH154: 0 | AI154: 0.089 | AJ154: 0 | AK154: 0.003 | AL154: 0 | AM154: 0.003 | AN154: 0.007 | AO154: 0 | AP154: 0.013 | AQ154: 0 | AR154: 0 | AS154: 0 | AT154: 0.018 | AU154: 0.041 | AV154: 0.032 | AW154: 0 | AX154: 0.011 | AY154: 0.001 | AZ154: 0.001 | BA154: 0.3 | BB154: 0.004 | BC154: 0 | BD154: 0.118
A155: Resurfacing | B155: RESURFACING (OVERLAY >= 2.5 INCHES AND < 4 INCHES) | C155: Asphaltic Pavement | D155: General Const and Asphaltic Surfacing | E155: 1.564 | F155: Unknown | G155: $ 2M to $10M | H155: 2025-01-14 | I155: 2025 | J155: 20250114032 | K155: 1198-03-73 | L155: STATE HIGHWAY REHABILITATION | M155: NW | N155: Douglas | O155: USH 053 | P155: C Superior, East Second Street; 2nd Avenue East to Hughitt Avenue | Q155: CHIPPEWA CONCRETE SERVICES, INC. | R155: 2 | S155: 3977871.99 | T155: =IFERROR(Table1[[#This Row],[Total Bid Amount]]/Table1[[#This Row],[Proposal Length]]," ") -> 2543396.413 | U155: 460.6645 | V155: HMA Pavement 5 MT 58-34 V | W155: 8520 | X155: 111.57 | Y155: 1 | AA155: 375723.56 | AB155: 0.094 | AC155: 57000 | AD155: 0.014 | AE155: 0.045 | AF155: 0.266 | AG155: 0.037 | AH155: 0 | AI155: 0.189 | AJ155: 0.024 | AK155: 0.118 | AL155: 0 | AM155: 0.011 | AN155: 0.068 | AO155: 0 | AP155: 0 | AQ155: 0 | AR155: 0.001 | AS155: 0 | AT155: 0.022 | AU155: 0.029 | AV155: 0.052 | AW155: 0 | AX155: 0.006 | AY155: 0.004 | AZ155: 0.003 | BA155: 0 | BB155: 0.004 | BC155: 0 | BD155: 0.027
A156: Bridge Replacement | B156: BRIDGE REPLACEMENT, PRESERVATION | C156: Structures | D156: General Const and Highway Structures | E156: 0.23 | F156: Rural | G156: $ 2M to $10M | H156: 2025-01-14 | I156: 2025 | J156: 20250114033 | K156: 7550-00-75 | L156: STATE HIGHWAY REHABILITATION | M156: NW | N156: Jackson | O156: STH 054 | P156: Galesville - Melrose; Wilson Cr & Mill Cr Br B270175,0235 | Q156: LUNDA CONSTRUCTION COMPANY | R156: 4 | S156: 2794848.06 | T156: =IFERROR(Table1[[#This Row],[Total Bid Amount]]/Table1[[#This Row],[Proposal Length]]," ") -> 12151513.3 | AA156: 255552.72 | AB156: 0.091 | AC156: 12213.55 | AD156: 0.004 | AE156: 0 | AF156: 0.078 | AG156: 0.029 | AH156: 0 | AI156: 0.019 | AJ156: 0.006 | AK156: 0.01 | AL156: 0.011 | AM156: 0.033 | AN156: 0.125 | AO156: 0 | AP156: 0.023 | AQ156: 0 | AR156: 0.001 | AS156: 0 | AT156: 0.002 | AU156: 0.005 | AV156: 0 | AW156: 0.098 | AX156: 0 | AY156: 0.001 | AZ156: 0.001 | BA156: 0.449 | BB156: 0.003 | BC156: 0 | BD156: 0.013
A157: Bridge Replacement | B157: BRIDGE REPLACEMENT, PRESERVATION | C157: Structures | D157: General Const and Highway Structures | E157: 0.026 | F157: Rural | G157: $ 0.5M or less | H157: 2025-01-14 | I157: 2025 | J157: 20250114034 | K157: 7895-00-70 | L157: HIGHWAY AND LOCAL BRIDGE IMPROVEMENT ASSISTANCE | M157: NW | N157: Pierce | O157: LOC STR | P157: T Hartland, 490th Street; Dry Run Bridge B-47-0231 | Q157: LARSON CONSTRUCTION CO., INC. | R157: 6 | S157: 332643.9 | T157: =IFERROR(Table1[[#This Row],[Total Bid Amount]]/Table1[[#This Row],[Proposal Length]]," ") -> 12793996.15 | AA157: 60472 | AB157: 0.182 | AC157: 850 | AD157: 0.003 | AE157: 0 | AF157: 0.035 | AG157: 0.018 | AH157: 0 | AI157: 0.002 | AJ157: 0 | AK157: 0.004 | AL157: 0 | AM157: 0.032 | AN157: 0.076 | AO157: 0 | AP157: 0 | AQ157: 0 | AR157: 0.002 | AS157: 0 | AT157: 0.025 | AU157: 0 | AV157: 0 | AW157: 0.071 | AX157: 0 | AY157: 0 | AZ157: 0.004 | BA157: 0.531 | BB157: 0.007 | BC157: 0 | BD157: 0.01
A158: Resurfacing | B158: RESURFACING (OVERLAY >= 2.5 INCHES AND < 4 INCHES) | C158: Asphaltic Pavement | D158: General Const and Asphaltic Surfacing | E158: 5.978 | F158: Rural | G158: $ 2M to $10M | H158: 2025-01-14 | I158: 2025 | J158: 20250114035 | K158: 8210-00-72 | L158: STATE HIGHWAY REHABILITATION | M158: NW | N158: Taylor | O158: STH 073 | P158: Thorp - Ingram; STH 64 W to CTH M West Jct | Q158: AMERICAN ASPHALT OF WISCONSIN | R158: 1 | S158: 3161069.42 | T158: =IFERROR(Table1[[#This Row],[Total Bid Amount]]/Table1[[#This Row],[Proposal Length]]," ") -> 528783.7772 | U158: 460.6644 | V158: HMA Pavement 4 MT 58-34 V | W158: 21290 | X158: 90.06 | Y158: 1 | Z158: X | AA158: 199794.44 | AB158: 0.063 | AC158: 1900 | AD158: 0.001 | AE158: 0 | AF158: 0.702 | AG158: 0.018 | AH158: 0 | AI158: 0 | AJ158: 0 | AK158: 0.003 | AL158: 0 | AM158: 0.006 | AN158: 0.017 | AO158: 0 | AP158: 0.013 | AQ158: 0 | AR158: 0 | AS158: 0 | AT158: 0.016 | AU158: 0.036 | AV158: 0.077 | AW158: 0.003 | AX158: 0 | AY158: 0 | AZ158: 0 | BA158: 0.031 | BB158: 0.002 | BC158: 0 | BD158: 0.012
A159: Bridge Replacement | B159: BRIDGE REPLACEMENT, PRESERVATION | C159: Structures | D159: General Const and Highway Structures | E159: 0.046 | F159: Rural | G159: $ 0.5M or less | H159: 2025-01-14 | I159: 2025 | J159: 20250114036 | K159: 8402-00-70 | L159: HIGHWAY AND LOCAL BRIDGE IMPROVEMENT ASSISTANCE | M159: NW | N159: Polk | O159: CTH W | P159: Frederic - CTH E; Mckenzie Creek Bridge B-48-0063 | Q159: LARSON CONSTRUCTION CO., INC. | R159: 5 | S159: 454311.2 | T159: =IFERROR(Table1[[#This Row],[Total Bid Amount]]/Table1[[#This Row],[Proposal Length]]," ") -> 9876330.435 | AA159: 63540 | AB159: 0.14 | AC159: 2500 | AD159: 0.006 | AE159: 0.003 | AF159: 0.04 | AG159: 0.024 | AH159: 0 | AI159: 0.002 | AJ159: 0 | AK159: 0.002 | AL159: 0 | AM159: 0.051 | AN159: 0.114 | AO159: 0 | AP159: 0 | AQ159: 0 | AR159: 0.003 | AS159: 0 | AT159: 0.021 | AU159: 0.011 | AV159: 0 | AW159: 0.06 | AX159: 0 | AY159: 0 | AZ159: 0.002 | BA159: 0.503 | BB159: 0.005 | BC159: 0 | BD159: 0.018
A160: Bridge Replacement | B160: BRIDGE REPLACEMENT, PRESERVATION | C160: Structures | D160: General Const and Highway Structures | E160: blank | F160: Rural | G160: $ 0.5M or less | H160: 2025-01-14 | I160: 2025 | J160: 20250114037 | K160: 8413-00-70 | L160: HIGHWAY AND LOCAL BRIDGE IMPROVEMENT ASSISTANCE | M160: NW | N160: Polk | O160: LOC STR | P160: T Lorain, 357th Avenue; Indian Creek Bridge B-48-0060 | Q160: LARSON CONSTRUCTION CO., INC. | R160: 5 | S160: 385213.32 | T160: =IFERROR(Table1[[#This Row],[Total Bid Amount]]/Table1[[#This Row],[Proposal Length]]," ") ->  | AA160: 66144 | AB160: 0.172 | AC160: 1500 | AD160: 0.004 | AE160: 0 | AF160: 0 | AG160: 0.033 | AH160: 0 | AI160: 0.002 | AJ160: 0 | AK160: 0.003 | AL160: 0 | AM160: 0.057 | AN160: 0.101 | AO160: 0 | AP160: 0 | AQ160: 0 | AR160: 0.006 | AS160: 0 | AT160: 0.03 | AU160: 0 | AV160: 0 | AW160: 0.061 | AX160: 0 | AY160: 0 | AZ160: 0.003 | BA160: 0.513 | BB160: 0.006 | BC160: 0 | BD160: 0.012
A161: Bridge Rehab. & Preventive | B161: BRIDGE REHABILITATION | C161: Structures | D161: General Const and Highway Structures | E161: 0.04 | F161: Rural | G161: $ 0.5M to $ 1M | H161: 2025-01-14 | I161: 2025 | J161: 20250114038 | K161: 8510-00-72 | L161: STATE HIGHWAY REHABILITATION | M161: NW | N161: Bayfield | O161: STH 013 | P161: Bayfield - Cornucopia; Sand River Bridge B-04-0011 | Q161: ZENITH TECH., INC. - WAUKESHA | R161: 2 | S161: 746767.3 | T161: =IFERROR(Table1[[#This Row],[Total Bid Amount]]/Table1[[#This Row],[Proposal Length]]," ") -> 18669182.5 | AA161: 125000 | AB161: 0.167 | AC161: 16000 | AD161: 0.021 | AE161: 0.046 | AF161: 0.024 | AG161: 0.015 | AH161: 0.145 | AI161: 0.044 | AJ161: 0 | AK161: 0 | AL161: 0.022 | AM161: 0 | AN161: 0.006 | AO161: 0 | AP161: 0.019 | AQ161: 0 | AR161: 0 | AS161: 0 | AT161: 0.012 | AU161: 0.014 | AV161: 0 | AW161: 0.109 | AX161: 0.007 | AY161: 0 | AZ161: 0 | BA161: 0.298 | BB161: 0.004 | BC161: 0 | BD161: 0.066
A162: Resurfacing | B162: RESURFACING (OVERLAY >= 2.5 INCHES AND < 4 INCHES) | C162: General Construction | D162: General Construction | E162: 0.632 | F162: Urban | G162: $ 1M to $ 2M | H162: 2025-01-14 | I162: 2025 | J162: 20250114040 | K162: 8999-00-87 | L162: LOCAL TRANSPORTATION FACILITY IMPROVEMENT ASSISTANCE | M162: NW | N162: St Croix | O162: LOC STR | P162: C Hudson, 11th St & 11th St S; Coulee Rd to Wisconsin St | Q162: A-1 EXCAVATING LLC | R162: 5 | S162: 1573355.6 | T162: =IFERROR(Table1[[#This Row],[Total Bid Amount]]/Table1[[#This Row],[Proposal Length]]," ") -> 2489486.709 | U162: 460.6223 | V162: HMA Pavement 3 MT 58-28 S | W162: 3130 | X162: 112.4057508 | Y162: 3 | AA162: 112000 | AB162: 0.071 | AC162: 5500 | AD162: 0.004 | AE162: 0.268 | AF162: 0.231 | AG162: 0.004 | AH162: 0 | AI162: 0.025 | AJ162: 0.119 | AK162: 0.075 | AL162: 0 | AM162: 0.024 | AN162: 0.092 | AO162: 0 | AP162: 0 | AQ162: 0 | AR162: 0.001 | AS162: 0 | AT162: 0.013 | AU162: 0.024 | AV162: 0 | AW162: 0 | AX162: 0.002 | AY162: 0.021 | AZ162: 0.01 | BA162: 0 | BB162: 0.011 | BC162: 0 | BD162: 0.008
A163: Pavement Replacement | B163: PAVEMENT REPLACEMENT | C163: Asphaltic Pavement | D163: General Const and Asphaltic Surfacing | E163: 10.3 | F163: Rural | G163: $ 2M to $10M | H163: 2025-01-14 | I163: 2025 | J163: 20250114041 | K163: 9925-00-70 | L163: STATE HIGHWAY REHABILITATION | M163: NW | N163: Ashland | O163: STH 169 | P163: Mellen - USH 2; STH 13 to Ashland/Iron Co Ln | Q163: NORTHWOODS PAVING, A DIV. OF MATHY CONSTRUCTION CO. | R163: 1 | S163: 7104241.66 | T163: =IFERROR(Table1[[#This Row],[Total Bid Amount]]/Table1[[#This Row],[Proposal Length]]," ") -> 689732.2 | U163: 460.6644 | V163: HMA Pavement 4 MT 58-34 V | W163: 29203 | X163: 94.77 | Y163: 1 | Z163: X | AA163: 433013.77 | AB163: 0.061 | AC163: 5812 | AD163: 0.001 | AE163: 0.236 | AF163: 0.445 | AG163: 0.029 | AH163: 0 | AI163: 0.007 | AJ163: 0.003 | AK163: 0.02 | AL163: 0.002 | AM163: 0.01 | AN163: 0.007 | AO163: 0 | AP163: 0.007 | AQ163: 0 | AR163: 0 | AS163: 0 | AT163: 0.012 | AU163: 0.034 | AV163: 0.053 | AW163: 0.021 | AX163: 0 | AY163: 0.001 | AZ163: 0.001 | BA163: 0.033 | BB163: 0.002 | BC163: 0 | BD163: 0.015
A164: Expansion | B164: RECONSTRUCTION, EXPANSION | C164: Structures | D164: General Const and Highway Structures | E164: 0.17 | F164: Unknown | G164: $ 2M to $10M | H164: 2025-01-14 | I164: 2025 | J164: 20250114042 | K164: 1130-66-80 | L164: MAJOR HIGHWAY DEVELOPMENT | M164: NE | N164: Outagamie | O164: IH 041 | P164: Appleton - De Pere; Holland Road Overpass | Q164: VINTON CONSTRUCTION COMPANY | R164: 4 | S164: 6647514.28 | T164: =IFERROR(Table1[[#This Row],[Total Bid Amount]]/Table1[[#This Row],[Proposal Length]]," ") -> 39103025.18 | U164: 460.5224 | V164: HMA Pavement 4 LT 58-28 S | W164: 460 | X164: 188.8913043 | Y164: 2 | AA164: 1017000 | AB164: 0.153 | AC164: 95925 | AD164: 0.014 | AE164: 0.101 | AF164: 0.016 | AG164: 0.021 | AH164: 0 | AI164: 0.056 | AJ164: 0.021 | AK164: 0.027 | AL164: 0.007 | AM164: 0.035 | AN164: 0.043 | AO164: 0.002 | AP164: 0.046 | AQ164: 0 | AR164: 0.002 | AS164: 0 | AT164: 0.006 | AU164: 0.002 | AV164: 0.002 | AW164: 0.103 | AX164: 0 | AY164: 0.006 | AZ164: 0.001 | BA164: 0.307 | BB164: 0 | BC164: 0 | BD164: 0.043
A165: Bridge Rehab. & Preventive | B165: BRIDGE PREVENTIVE | C165: Bridge Painting | D165: Bridge Painting | E165: 0 | F165: Rural | G165: $ 1M to $ 2M | H165: 2025-01-14 | I165: 2025 | J165: 20250114043 | K165: 1000-18-88 | L165: STATE HIGHWAY REHABILITATION | M165: NW | N165: Buffalo | O165: VAR HWY | P165: Nw Region, Bridge Spot Pnt Fy2024; Various Highways, Nw Region Fy2024 | Q165: OMEGA COATINGS & CONSTRUCTION, LLC | R165: 5 | S165: 1755623 | T165: =IFERROR(Table1[[#This Row],[Total Bid Amount]]/Table1[[#This Row],[Proposal Length]]," ") ->  | AA165: 160000 | AB165: 0.091 | AC165: 150000 | AD165: 0.085 | AE165: 0.085 | AF165: 0 | AG165: 0 | AH165: 0.722 | AI165: 0 | AJ165: 0 | AK165: 0 | AL165: 0 | AM165: 0 | AN165: 0 | AO165: 0 | AP165: 0 | AQ165: 0 | AR165: 0 | AS165: 0 | AT165: 0.008 | AU165: 0 | AV165: 0 | AW165: 0 | AX165: 0 | AY165: 0 | AZ165: 0 | BA165: 0 | BB165: 0 | BC165: 0 | BD165: 0.093
A166: Miscellaneous | B166: MISCELLANEOUS | C166: General Construction | D166: Building Construction | E166: 0 | F166: Rural | G166: $10M to $20M | H166: 2025-01-14 | I166: 2025 | J166: 20250114044 | K166: 1225-10-73 | L166: STATE HIGHWAY REHABILITATION | M166: NE | N166: Manitowoc | O166: IH 043 | P166: Manitowoc - Green Bay; Sra 51 Maribel/Sra 52 Denmark | Q166: FRANK O. ZEISE CONSTRUCTION CO., INC. | R166: 2 | S166: 10992638 | T166: =IFERROR(Table1[[#This Row],[Total Bid Amount]]/Table1[[#This Row],[Proposal Length]]," ") ->  | AA166: 20420 | AB166: 0.002 | AC166: 0 | AD166: =Table1[[#This Row],[Traffic Control Item Price]]/Table1[[#This Row],[Total Bid Amount]] -> 0 | AE166: 0.953 | AF166: 0 | AG166: 0 | AH166: 0 | AI166: 0 | AJ166: 0 | AK166: 0.007 | AL166: 0 | AM166: 0 | AN166: 0 | AO166: 0 | AP166: 0 | AQ166: 0 | AR166: 0 | AS166: 0 | AT166: 0.038 | AU166: 0 | AV166: 0 | AW166: 0 | AX166: 0 | AY166: 0 | AZ166: 0 | BA166: 0 | BB166: 0 | BC166: 0 | BD166: 0
A167: Pavement Replacement | B167: PAVEMENT REPLACEMENT | C167: Concrete Pavement | D167: General Construction and PCC Pavement | E167: 1.106 | F167: Unknown | G167: $ 2M to $10M | H167: 2025-01-14 | I167: 2025 | J167: 20250114045 | K167: 2722-08-71 | L167: LOCAL TRANSPORTATION FACILITY IMPROVEMENT ASSISTANCE | M167: SE | N167: Waukesha | O167: CTH O | P167: C New Berlin Moorland Road; CTH Es to CTH D | Q167: HOFFMAN CONSTRUCTION COMPANY | R167: 8 | S167: 8340785.27 | T167: =IFERROR(Table1[[#This Row],[Total Bid Amount]]/Table1[[#This Row],[Proposal Length]]," ") -> 7541397.17 | U167: 460.6223 | V167: HMA Pavement 3 MT 58-28 S | W167: 237 | X167: 319.9367089 | Y167: 3 | AA167: 1775156.88 | AB167: 0.213 | AC167: 40000 | AD167: 0.005 | AE167: 0.053 | AF167: 0.021 | AG167: 0 | AH167: 0 | AI167: 0.39 | AJ167: 0.055 | AK167: 0.076 | AL167: 0.043 | AM167: 0.021 | AN167: 0.003 | AO167: 0 | AP167: 0 | AQ167: 0.001 | AR167: 0.016 | AS167: 0.001 | AT167: 0.024 | AU167: 0.009 | AV167: 0 | AW167: 0 | AX167: 0.033 | AY167: 0.012 | AZ167: 0.003 | BA167: 0.002 | BB167: 0.006 | BC167: 0.008 | BD167: 0.011
A168: Preservation/Restoration | B168: SEAL COAT/CRACK FILL/JOINT, CRACK OR SPOT REPAIR | C168: Concrete Pavement | D168: General Construction and PCC Pavement | E168: 3.534 | F168: Unknown | G168: $ 2M to $10M | H168: 2024-12-10 | I168: 2024 | J168: 20241210001 | K168: 1001-00-66 | L168: STATE HIGHWAY REHABILITATION | M168: SW | N168: Dane | O168: IH 039 | P168: Janesville - Portage; USH 12/18 to Lien Road | Q168: ROCK ROAD COMPANIES, INC. | R168: 3 | S168: 6058759.01 | T168: =IFERROR(Table1[[#This Row],[Total Bid Amount]]/Table1[[#This Row],[Proposal Length]]," ") -> 1714419.641 | U168: 460.6223 | V168: HMA Pavement 3 MT 58-28 S | W168: 21010 | X168: 68.7021704 | Y168: 2 | AA168: 652836.78 | AB168: 0.108 | AC168: 101250 | AD168: 0.017 | AE168: 0.029 | AF168: 0.256 | AG168: 0.008 | AH168: 0 | AI168: 0.377 | AJ168: 0 | AK168: 0 | AL168: 0 | AM168: 0.002 | AN168: 0.002 | AO168: 0 | AP168: 0.038 | AQ168: 0 | AR168: 0 | AS168: 0 | AT168: 0.018 | AU168: 0.07 | AV168: 0.009 | AW168: 0 | AX168: 0 | AY168: 0.002 | AZ168: 0 | BA168: 0 | BB168: 0.001 | BC168: 0 | BD168: 0.08
A169: Traffic Operations | B169: STH - TRAFFIC OPERATIONS PAVEMENT MARKING | C169: General Construction | D169: General and Incidental Construction | E169: 214 | F169: Rural | G169: $ 2M to $10M | H169: 2024-12-10 | I169: 2024 | J169: 20241210002 | K169: 1009-13-91 | L169: HIGHWAY MAINTENANCE, REPAIR AND TRAFFIC OPERATIONS | M169: SW | N169: Grant | O169: VAR HWY | P169: Sw Region Pavement Marking; Stn Locations Per Annual Plan | Q169: CENTURY TRAFFIC, LLC | R169: 2 | S169: 2911253.41 | T169: =IFERROR(Table1[[#This Row],[Total Bid Amount]]/Table1[[#This Row],[Proposal Length]]," ") -> 13603.9879 | AA169: 21500 | AB169: 0.007 | AC169: 15000 | AD169: =Table1[[#This Row],[Traffic Control Item Price]]/Table1[[#This Row],[Total Bid Amount]] -> 0.005152419899 | AE169: 0.042 | AF169: 0 | AG169: 0 | AH169: 0 | AI169: 0 | AJ169: 0 | AK169: 0 | AL169: 0 | AM169: 0 | AN169: 0 | AO169: 0 | AP169: 0 | AQ169: 0 | AR169: 0 | AS169: 0 | AT169: 0 | AU169: 0.951 | AV169: 0 | AW169: 0 | AX169: 0 | AY169: 0 | AZ169: 0 | BA169: 0 | BB169: 0 | BC169: 0 | BD169: 0
A170: Bridge Replacement | B170: BRIDGE REPLACEMENT, PRESERVATION | C170: Structures | D170: General Const and Highway Structures | E170: 0.224 | F170: Rural | G170: $ 2M to $10M | H170: 2024-12-10 | I170: 2024 | J170: 20241210003 | K170: 1706-03-80 | L170: STATE HIGHWAY REHABILITATION | M170: SW | N170: Lafayette | O170: STH 011 | P170: Shullsburg - Monroe; Shullsburg Branch Bridges | Q170: SHEET PILING SERVICES LLC | R170: 3 | S170: 2815221.21 | T170: =IFERROR(Table1[[#This Row],[Total Bid Amount]]/Table1[[#This Row],[Proposal Length]]," ") -> 12567951.83 | U170: 460.6224 | V170: HMA Pavement 4 MT 58-28 S | W170: 1010 | X170: 111 | Y170: 1 | AA170: 54217.79 | AB170: 0.019 | AC170: 2000 | AD170: 0.001 | AE170: 0.002 | AF170: 0.043 | AG170: 0.067 | AH170: 0 | AI170: 0.043 | AJ170: 0.012 | AK170: 0.005 | AL170: 0 | AM170: 0.031 | AN170: 0.129 | AO170: 0 | AP170: 0.028 | AQ170: 0 | AR170: 0.001 | AS170: 0 | AT170: 0.004 | AU170: 0.005 | AV170: 0 | AW170: 0.036 | AX170: 0.003 | AY170: 0.002 | AZ170: 0.001 | BA170: 0.563 | BB170: 0.004 | BC170: 0 | BD170: 0.005
A171: Bridge Replacement | B171: BRIDGE REPLACEMENT, PRESERVATION | C171: Structures | D171: Gen Const and Grading and Structures | E171: =0.028 +0.035 -> 0.063 | F171: Rural | G171: $ 0.5M to $ 1M | H171: 2024-12-10 | I171: 2024 | J171: 20241210004 | K171: 3804-00-75 | L171: HIGHWAY AND LOCAL BRIDGE IMPROVEMENT ASSISTANCE | M171: SW | N171: Dodge | O171: LOC STR | P171: Town of Lowell, Well Road; Shaw Creek Bridge, B-14-0226 | Q171: PHEIFER BROTHERS CONSTRUCTION CO., INC. | R171: 6 | S171: 820221.68 | T171: =IFERROR(Table1[[#This Row],[Total Bid Amount]]/Table1[[#This Row],[Proposal Length]]," ") -> 13019391.75 | AA171: 34500.89 | AB171: 0.042 | AC171: 2100 | AD171: 0.003 | AE171: 0 | AF171: 0.035 | AG171: 0.038 | AH171: 0 | AI171: 0.002 | AJ171: 0 | AK171: 0.003 | AL171: 0 | AM171: 0.058 | AN171: 0.097 | AO171: 0 | AP171: 0.042 | AQ171: 0 | AR171: 0.003 | AS171: 0 | AT171: 0.017 | AU171: 0 | AV171: 0.007 | AW171: 0.209 | AX171: 0 | AY171: 0.001 | AZ171: 0.002 | BA171: 0.428 | BB171: 0.007 | BC171: 0 | BD171: 0.008
A172: Resurfacing | B172: RESURFACING (OVERLAY >= 2.5 INCHES AND < 4 INCHES) | C172: Asphaltic Pavement | D172: General Const and Asphaltic Surfacing | E172: 11.666 | F172: Rural | G172: $ 2M to $10M | H172: 2024-12-10 | I172: 2024 | J172: 20241210005 | K172: 5040-03-70 | L172: STATE HIGHWAY REHABILITATION | M172: SW | N172: Vernon | O172: STH 080 | P172: Richland Center - Hillsboro; CTH C to S Fork Baraboo R Structure | Q172: MATHY CONSTRUCTION COMPANY | R172: 1 | S172: 8399787.6 | T172: =IFERROR(Table1[[#This Row],[Total Bid Amount]]/Table1[[#This Row],[Proposal Length]]," ") -> 720022.9385 | U172: 460.5224 | V172: HMA Pavement 4 LT 58-28 S | W172: 43949 | X172: 81.76 | Y172: 1 | Z172: X | AA172: 542455.14 | AB172: 0.065 | AC172: 22306.2 | AD172: 0.003 | AE172: 0.019 | AF172: 0.461 | AG172: 0.041 | AH172: 0 | AI172: 0.001 | AJ172: 0.001 | AK172: 0.018 | AL172: 0.005 | AM172: 0.015 | AN172: 0.027 | AO172: 0 | AP172: 0.097 | AQ172: 0 | AR172: 0.002 | AS172: 0 | AT172: 0.007 | AU172: 0.032 | AV172: 0.046 | AW172: 0.016 | AX172: 0 | AY172: 0.004 | AZ172: 0 | BA172: 0.121 | BB172: 0.002 | BC172: 0 | BD172: 0.02
A173: Bridge Replacement | B173: BRIDGE REPLACEMENT, PRESERVATION | C173: Structures | D173: Gen Const and Grading and Structures | E173: 0.091 | F173: Rural | G173: $ 0.5M to $ 1M | H173: 2024-12-10 | I173: 2024 | J173: 20241210006 | K173: 5378-00-74 | L173: HIGHWAY AND LOCAL BRIDGE IMPROVEMENT ASSISTANCE | M173: SW | N173: Vernon | O173: LOC STR | P173: Town of Coon, Cornell Lane; Br Coon Creek Bridge B-62-0274 | Q173: SHEET PILING SERVICES LLC | R173: 6 | S173: 877343.27 | T173: =IFERROR(Table1[[#This Row],[Total Bid Amount]]/Table1[[#This Row],[Proposal Length]]," ") -> 9641134.835 | AA173: 68211.89 | AB173: 0.078 | AC173: 2000 | AD173: 0.002 | AE173: 0 | AF173: 0.054 | AG173: 0.022 | AH173: 0 | AI173: 0.011 | AJ173: 0.015 | AK173: 0.037 | AL173: 0 | AM173: 0.124 | AN173: 0.178 | AO173: 0 | AP173: 0 | AQ173: 0 | AR173: 0.004 | AS173: 0 | AT173: 0.011 | AU173: 0 | AV173: 0 | AW173: 0.08 | AX173: 0 | AY173: 0.001 | AZ173: 0.002 | BA173: 0.374 | BB173: 0.005 | BC173: 0 | BD173: 0.004
A174: Bridge Replacement | B174: BRIDGE REPLACEMENT, PRESERVATION | C174: Asphaltic Pavement | D174: Gen Const and Asph Surf and Structures | E174: blank | F174: Rural | G174: $ 1M to $ 2M | H174: 2024-12-10 | I174: 2024 | J174: 20241210007 | K174: 5625-00-75 | L174: HIGHWAY AND LOCAL BRIDGE IMPROVEMENT ASSISTANCE | M174: SW | N174: Lafayette | O174: LOC STR | P174: Town of Benton, Carr Factory Road; Br Galena River Bridge B-33-0148 | Q174: CONCRETE STRUCTURES, INC. | R174: 5 | S174: 1014705.47 | T174: =IFERROR(Table1[[#This Row],[Total Bid Amount]]/Table1[[#This Row],[Proposal Length]]," ") ->  | AA174: 190171 | AB174: 0.187 | AC174: 2650 | AD174: 0.003 | AE174: 0.002 | AF174: 0.016 | AG174: 0.016 | AH174: 0 | AI174: 0.003 | AJ174: 0 | AK174: 0.003 | AL174: 0 | AM174: 0.092 | AN174: 0.059 | AO174: 0 | AP174: 0 | AQ174: 0 | AR174: 0.002 | AS174: 0 | AT174: 0.023 | AU174: 0.005 | AV174: 0 | AW174: 0.02 | AX174: 0 | AY174: 0 | AZ174: 0.003 | BA174: 0.557 | BB174: 0.005 | BC174: 0 | BD174: 0.006
A175: Pavement Replacement | B175: PAVEMENT REPLACEMENT | C175: Asphaltic Pavement | D175: General Const and Asphaltic Surfacing | E175: 10.94 | F175: Rural | G175: $ 2M to $10M | H175: 2024-12-10 | I175: 2024 | J175: 20241210008 | K175: 5710-00-71 | L175: STATE HIGHWAY REHABILITATION | M175: SW | N175: Vernon | O175: STH 082 | P175: Viroqua - Lafarge; STH 56 to Kickapoo River | Q175: MATHY CONSTRUCTION COMPANY | R175: 1 | S175: 6766031.13 | T175: =IFERROR(Table1[[#This Row],[Total Bid Amount]]/Table1[[#This Row],[Proposal Length]]," ") -> 618467.1965 | U175: 460.5223 | V175: HMA Pavement 3 LT 58-28 S | W175: 43070 | X175: 80.70804853 | Y175: 2 | Z175: X | AA175: 339346.19 | AB175: 0.05 | AC175: 15695.48 | AD175: 0.002 | AE175: 0.017 | AF175: 0.553 | AG175: 0.051 | AH175: 0.001 | AI175: 0.001 | AJ175: 0.008 | AK175: 0.013 | AL175: 0 | AM175: 0.005 | AN175: 0.003 | AO175: 0 | AP175: 0.114 | AQ175: 0 | AR175: 0 | AS175: 0 | AT175: 0.011 | AU175: 0.042 | AV175: 0.098 | AW175: 0 | AX175: 0 | AY175: 0.008 | AZ175: 0 | BA175: 0.013 | BB175: 0.002 | BC175: 0 | BD175: 0.01
A176: Resurfacing | B176: RESURFACING (OVERLAY >= 4 INCHES) | C176: Concrete Pavement | D176: Gen Const and PCC Pvmt and Asph Surface | E176: 3.315 | F176: Rural | G176: $ 2M to $10M | H176: 2024-12-10 | I176: 2024 | J176: 20241210009 | K176: 6160-00-70 | L176: STATE HIGHWAY REHABILITATION | M176: SW | N176: Juneau | O176: STH 021 | P176: Necedah - Coloma; Sheridan Street to East County Line | Q176: CHIPPEWA CONCRETE SERVICES, INC. | R176: 3 | S176: 6597311.66 | T176: =IFERROR(Table1[[#This Row],[Total Bid Amount]]/Table1[[#This Row],[Proposal Length]]," ") -> 1990139.264 | U176: 460.6223 | V176: HMA Pavement 3 MT 58-28 S | W176: 15450 | X176: 93.18058252 | Y176: 2 | AA176: 317000.91 | AB176: 0.048 | AC176: 38500 | AD176: 0.006 | AE176: 0.011 | AF176: 0.259 | AG176: 0.051 | AH176: 0 | AI176: 0.241 | AJ176: 0.062 | AK176: 0.056 | AL176: 0.058 | AM176: 0.021 | AN176: 0.031 | AO176: 0.002 | AP176: 0.021 | AQ176: 0 | AR176: 0.001 | AS176: 0.003 | AT176: 0.029 | AU176: 0.02 | AV176: 0.037 | AW176: 0 | AX176: 0.009 | AY176: 0.004 | AZ176: 0.006 | BA176: 0 | BB176: 0.005 | BC176: 0.014 | BD176: 0.011
A177: Pavement Replacement | B177: PAVEMENT REPLACEMENT | C177: General Construction | D177: General Construction | E177: 0.298 | F177: Unknown | G177: $ 0.5M to $ 1M | H177: 2024-12-10 | I177: 2024 | J177: 20241210010 | K177: 6992-00-21 | L177: LOCAL TRANSPORTATION FACILITY IMPROVEMENT ASSISTANCE | M177: SW | N177: Dane | O177: LOC STR | P177: Village of Windsor, Windsor; Charlie Grimm Road to CTH Cv | Q177: ROCK ROAD COMPANIES, INC. | R177: 5 | S177: 855090.31 | T177: =IFERROR(Table1[[#This Row],[Total Bid Amount]]/Table1[[#This Row],[Proposal Length]]," ") -> 2869430.57 | U177: 460.5223 | V177: HMA Pavement 3 LT 58-28 S | W177: 1331 | X177: 84.74299023 | Y177: 2 | AA177: 86913.97 | AB177: 0.102 | AC177: 1800 | AD177: 0.002 | AE177: 0.023 | AF177: 0.172 | AG177: 0.12 | AH177: 0 | AI177: 0.017 | AJ177: 0.138 | AK177: 0.159 | AL177: 0 | AM177: 0.019 | AN177: 0.119 | AO177: 0 | AP177: 0 | AQ177: 0 | AR177: 0.014 | AS177: 0 | AT177: 0.037 | AU177: 0.021 | AV177: 0.002 | AW177: 0 | AX177: 0.002 | AY177: 0.029 | AZ177: 0.003 | BA177: 0 | BB177: 0.016 | BC177: 0 | BD177: 0.009
A178: Resurfacing | B178: RESURFACING (OVERLAY >= 4 INCHES) | C178: General Construction | D178: General Construction | E178: =5.14+0.067 -> 5.207 | F178: Unknown | G178: $10M to $20M | H178: 2024-12-10 | I178: 2024 | J178: 20241210011 | K178: 2120-18-70 | L178: STATE HIGHWAY REHABILITATION | M178: SE | N178: Milwaukee | O178: STH 024 | P178: Hales Corners - Milwaukee; USH 45 to 45th Street | Q178: A.W. OAKES & SON, INC. | R178: 5 | S178: 13881149.64 | T178: =IFERROR(Table1[[#This Row],[Total Bid Amount]]/Table1[[#This Row],[Proposal Length]]," ") -> 2665863.192 | U178: 460.6223 | V178: HMA Pavement 3 MT 58-28 S | W178: 57376 | X178: 67.85697853 | Y178: 2 | Z178: X | AA178: 644000 | AB178: 0.046 | AC178: 20000 | AD178: 0.001 | AE178: 0.146 | AF178: 0.3 | AG178: 0.085 | AH178: 0.001 | AI178: 0.043 | AJ178: 0.041 | AK178: 0.054 | AL178: 0.027 | AM178: 0.006 | AN178: 0 | AO178: 0 | AP178: 0.025 | AQ178: 0.022 | AR178: 0.002 | AS178: 0.001 | AT178: 0.047 | AU178: 0.035 | AV178: 0.045 | AW178: 0 | AX178: 0 | AY178: 0.015 | AZ178: 0.013 | BA178: 0.017 | BB178: 0 | BC178: 0.012 | BD178: 0.017
A179: Bridge Rehab. & Preventive | B179: BRIDGE REHABILITATION | C179: Structures | D179: Highway Structures | E179: 0.019 | F179: Unknown | G179: $ 0.5M or less | H179: 2024-12-10 | I179: 2024 | J179: 20241210013 | K179: 2984-15-77 | L179: HIGHWAY AND LOCAL BRIDGE IMPROVEMENT ASSISTANCE | M179: SE | N179: Milwaukee | O179: LOC STR | P179: C Milwaukee - S 72nd Street; Bridge Over Honey Creek P40-0633 | Q179: ZENITH TECH., INC. - WAUKESHA | R179: 4 | S179: 195988.11 | T179: =IFERROR(Table1[[#This Row],[Total Bid Amount]]/Table1[[#This Row],[Proposal Length]]," ") -> 10315163.68 | AA179: 41732.09 | AB179: 0.213 | AC179: 4261.78 | AD179: 0.022 | AE179: 0.22 | AF179: 0 | AG179: 0 | AH179: 0 | AI179: 0 | AJ179: 0 | AK179: 0 | AL179: 0 | AM179: 0.012 | AN179: 0.063 | AO179: 0.015 | AP179: 0 | AQ179: 0 | AR179: 0.001 | AS179: 0 | AT179: 0.11 | AU179: 0 | AV179: 0 | AW179: 0 | AX179: 0 | AY179: 0 | AZ179: 0 | BA179: 0.318 | BB179: 0 | BC179: 0 | BD179: 0.049
A180: Expansion | B180: RECONSTRUCTION, EXPANSION | C180: General Construction | D180: General Construction | E180: =0.594 + 1.961 -> 2.555 | F180: Unknown | G180: $20M or more | H180: 2024-12-10 | I180: 2024 | J180: 20241210014 | K180: 1130-64-71 | L180: MAJOR HIGHWAY DEVELOPMENT | M180: NE | N180: Outagamie | O180: IH 041 | P180: Appleton - De Pere; I-41 Mainline, STH 96-Rr Bridge | Q180: MICHELS ROAD & STONE, INC. | R180: 5 | S180: 77431749.7 | T180: =IFERROR(Table1[[#This Row],[Total Bid Amount]]/Table1[[#This Row],[Proposal Length]]," ") -> 30305968.57 | U180: 460.5223 | V180: HMA Pavement 3 LT 58-28 S | W180: 1434 | X180: 91.78138075 | Y180: 2 | AA180: 4998006.98 | AB180: 0.065 | AC180: 399375 | AD180: 0.005 | AE180: 0.309 | AF180: 0.02 | AG180: 0.058 | AH180: 0 | AI180: 0.021 | AJ180: 0.002 | AK180: 0.07 | AL180: 0.013 | AM180: 0.015 | AN180: 0.054 | AO180: 0.006 | AP180: 0.012 | AQ180: 0.004 | AR180: 0.002 | AS180: 0.001 | AT180: 0.007 | AU180: 0.001 | AV180: 0 | AW180: 0.009 | AX180: 0.001 | AY180: 0.003 | AZ180: 0.003 | BA180: 0.298 | BB180: 0 | BC180: 0.001 | BD180: 0.024
A181: Bridge Replacement | B181: BRIDGE REPLACEMENT, PRESERVATION | C181: Structures | D181: Gen Const and Grading and Structures | E181: 0.083 | F181: Unknown | G181: $ 0.5M to $ 1M | H181: 2024-12-10 | I181: 2024 | J181: 20241210015 | K181: 3822-02-71 | L181: HIGHWAY AND LOCAL BRIDGE IMPROVEMENT ASSISTANCE | M181: NE | N181: Fond Du Lac | O181: LOC STR | P181: T Lamartine, Townline Road; W Branch Fond Du Lac River Bridge | Q181: PHEIFER BROTHERS CONSTRUCTION CO., INC. | R181: 5 | S181: 784603.32 | T181: =IFERROR(Table1[[#This Row],[Total Bid Amount]]/Table1[[#This Row],[Proposal Length]]," ") -> 9453052.048 | AA181: 41762.12 | AB181: 0.053 | AC181: 3350 | AD181: 0.004 | AE181: 0.007 | AF181: 0.033 | AG181: 0.046 | AH181: 0 | AI181: 0.006 | AJ181: 0.011 | AK181: 0.04 | AL181: 0 | AM181: 0.116 | AN181: 0.127 | AO181: 0 | AP181: 0.044 | AQ181: 0 | AR181: 0.004 | AS181: 0 | AT181: 0.006 | AU181: 0 | AV181: 0.001 | AW181: 0.151 | AX181: 0 | AY181: 0 | AZ181: 0.001 | BA181: 0.341 | BB181: 0.008 | BC181: 0 | BD181: 0.006
A182: Resurfacing | B182: RESURFACING (OVERLAY >= 4 IN DOES NOT INCREASE PROFILE) | C182: Asphaltic Pavement | D182: General Const and Asphaltic Surfacing | E182: 1.449 | F182: Rural | G182: $ 2M to $10M | H182: 2024-12-10 | I182: 2024 | J182: 20241210016 | K182: 4150-14-71 | L182: STATE HIGHWAY REHABILITATION | M182: NE | N182: Door | O182: STH 057 | P182: Summit Rd - Baileys Harbor; Summit Rd - CTH Q | Q182: RELYCO PLUS, LLC | R182: 2 | S182: 2244183.41 | T182: =IFERROR(Table1[[#This Row],[Total Bid Amount]]/Table1[[#This Row],[Proposal Length]]," ") -> 1548780.821 | U182: 460.6223 | V182: HMA Pavement 3 MT 58-28 S | W182: 8080 | X182: 93.61027228 | Y182: 2 | AA182: 365500 | AB182: 0.163 | AC182: 10000 | AD182: 0.005 | AE182: 0.03 | AF182: 0.449 | AG182: 0.029 | AH182: 0 | AI182: 0.007 | AJ182: 0.067 | AK182: 0.047 | AL182: 0 | AM182: 0.011 | AN182: 0.025 | AO182: 0 | AP182: 0.014 | AQ182: 0 | AR182: 0.002 | AS182: 0 | AT182: 0.027 | AU182: 0.026 | AV182: 0.065 | AW182: 0.001 | AX182: 0 | AY182: 0.014 | AZ182: 0.001 | BA182: 0 | BB182: 0.004 | BC182: 0 | BD182: 0.017
A183: Reconstruction | B183: RECONSTRUCTION, PRESERVATION | C183: General Construction | D183: General Construction | E183: 1.16 | F183: Unknown | G183: $ 2M to $10M | H183: 2024-12-10 | I183: 2024 | J183: 20241210017 | K183: 4232-00-71 | L183: LOCAL TRANSPORTATION FACILITY IMPROVEMENT ASSISTANCE | M183: NE | N183: Sheboygan | O183: CTH EE | P183: C Sheboygan, Weeden Creek Road; CTH Ok to S 12th Street | Q183: PETERS CONCRETE COMPANY | R183: 6 | S183: 5172329.06 | T183: =IFERROR(Table1[[#This Row],[Total Bid Amount]]/Table1[[#This Row],[Proposal Length]]," ") -> 4458904.362 | U183: 460.5223 | V183: HMA Pavement 3 LT 58-28 S | W183: 8280 | X183: 78.31847826 | Y183: 2 | AA183: 195000 | AB183: 0.038 | AC183: 8000 | AD183: 0.002 | AE183: 0.115 | AF183: 0.134 | AG183: 0.102 | AH183: 0 | AI183: 0.02 | AJ183: 0.055 | AK183: 0.305 | AL183: 0.03 | AM183: 0.039 | AN183: 0.106 | AO183: 0 | AP183: 0 | AQ183: 0 | AR183: 0.003 | AS183: 0.003 | AT183: 0.009 | AU183: 0.011 | AV183: 0 | AW183: 0 | AX183: 0.001 | AY183: 0.01 | AZ183: 0.005 | BA183: 0.001 | BB183: 0.007 | BC183: 0 | BD183: 0.005
A184: Bridge Replacement | B184: BRIDGE REPLACEMENT, PRESERVATION | C184: Asphaltic Pavement | D184: Gen Const and Asph Surf and Structures | E184: 10.3 | F184: Rural | G184: $ 2M to $10M | H184: 2024-12-10 | I184: 2024 | J184: 20241210018 | K184: 4540-34-71 | L184: STATE HIGHWAY REHABILITATION | M184: NE | N184: Sheboygan | O184: STH 032 | P184: Cedar Grove - Sheboygan Falls; CTH D - STH 28 | Q184: NORTHEAST ASPHALT, INC | R184: 3 | S184: 5123552.14 | T184: =IFERROR(Table1[[#This Row],[Total Bid Amount]]/Table1[[#This Row],[Proposal Length]]," ") -> 497432.2466 | U184: 460.5224 | V184: HMA Pavement 4 LT 58-28 S | W184: 22031 | X184: 72.88918342 | Y184: 2 | Z184: X | AA184: 434790 | AB184: 0.085 | AC184: 38527.42 | AD184: 0.008 | AE184: 0.064 | AF184: 0.362 | AG184: 0.031 | AH184: 0 | AI184: 0.001 | AJ184: 0.018 | AK184: 0.03 | AL184: 0 | AM184: 0.025 | AN184: 0.066 | AO184: 0 | AP184: 0.025 | AQ184: 0 | AR184: 0.001 | AS184: 0 | AT184: 0.026 | AU184: 0.048 | AV184: 0.038 | AW184: 0.014 | AX184: 0.003 | AY184: 0.003 | AZ184: 0 | BA184: 0.134 | BB184: 0.004 | BC184: 0 | BD184: 0.02
A185: Bridge Replacement | B185: BRIDGE REPLACEMENT, PRESERVATION | C185: Structures | D185: Gen Const and Grading and Structures | E185: 0.026 | F185: Rural | G185: $ 0.5M or less | H185: 2024-12-10 | I185: 2024 | J185: 20241210019 | K185: 4816-00-71 | L185: HIGHWAY AND LOCAL BRIDGE IMPROVEMENT ASSISTANCE | M185: NE | N185: Fond Du Lac | O185: LOC STR | P185: T Forest, Poplar Road; Sheboygan River Bridge | Q185: PHEIFER BROTHERS CONSTRUCTION CO., INC. | R185: 4 | S185: 458946.94 | T185: =IFERROR(Table1[[#This Row],[Total Bid Amount]]/Table1[[#This Row],[Proposal Length]]," ") -> 17651805.38 | U185: 460.5223 | V185: HMA Pavement 3 LT 58-28 S | W185: 246 | X185: 99.17154472 | Y185: 2 | AA185: 28048.93 | AB185: 0.061 | AC185: 2225 | AD185: 0.005 | AE185: 0 | AF185: 0.059 | AG185: 0.063 | AH185: 0 | AI185: 0.009 | AJ185: 0.026 | AK185: 0.004 | AL185: 0 | AM185: 0.081 | AN185: 0.152 | AO185: 0 | AP185: 0.078 | AQ185: 0 | AR185: 0.003 | AS185: 0 | AT185: 0.018 | AU185: 0 | AV185: 0 | AW185: 0.145 | AX185: 0 | AY185: 0.001 | AZ185: 0.002 | BA185: 0.279 | BB185: 0.01 | BC185: 0 | BD185: 0.009
A186: Bridge Replacement | B186: BRIDGE REPLACEMENT, PRESERVATION | C186: Structures | D186: Gen Const and Grading and Structures | E186: =0.033 + 0.095 -> 0.128 | F186: Unknown | G186: $ 1M to $ 2M | H186: 2024-12-10 | I186: 2024 | J186: 20241210020 | K186: 4840-00-71 | L186: HIGHWAY AND LOCAL BRIDGE IMPROVEMENT ASSISTANCE | M186: NE | N186: Fond Du Lac | O186: CTH T | P186: T Empire, CTH T; Taycheedah Creek Bridge | Q186: PHEIFER BROTHERS CONSTRUCTION CO., INC. | R186: 5 | S186: 1289546.91 | T186: =IFERROR(Table1[[#This Row],[Total Bid Amount]]/Table1[[#This Row],[Proposal Length]]," ") -> 10074585.23 | U186: 460.5223 | V186: HMA Pavement 3 LT 58-28 S | W186: 813 | X186: 100.9464945 | Y186: 2 | AA186: 64760.95 | AB186: 0.05 | AC186: 5000 | AD186: 0.004 | AE186: 0.003 | AF186: 0.07 | AG186: 0.065 | AH186: 0 | AI186: 0.041 | AJ186: 0.01 | AK186: 0.01 | AL186: 0 | AM186: 0.076 | AN186: 0.074 | AO186: 0 | AP186: 0.042 | AQ186: 0 | AR186: 0.002 | AS186: 0 | AT186: 0.01 | AU186: 0.004 | AV186: 0 | AW186: 0.186 | AX186: 0 | AY186: 0.002 | AZ186: 0.001 | BA186: 0.333 | BB186: 0.007 | BC186: 0 | BD186: 0.014
A187: Bridge Rehab. & Preventive | B187: BRIDGE REHABILITATION | C187: Structures | D187: Gen Const and Grading and Structures | E187: 0.09 | F187: Rural | G187: $ 0.5M to $ 1M | H187: 2024-12-10 | I187: 2024 | J187: 20241210021 | K187: 1175-19-71 | L187: STATE HIGHWAY REHABILITATION | M187: NC | N187: Iron | O187: USH 051 | P187: Manitowish - Hurley; Turtle River Bridge B-26-0016 | Q187: PHEIFER BROTHERS CONSTRUCTION CO., INC. | R187: 4 | S187: 785810.63 | T187: =IFERROR(Table1[[#This Row],[Total Bid Amount]]/Table1[[#This Row],[Proposal Length]]," ") -> 8731229.222 | AA187: 32557.89 | AB187: 0.041 | AC187: 23315 | AD187: 0.03 | AE187: 0.004 | AF187: 0.136 | AG187: 0.02 | AH187: 0 | AI187: 0.06 | AJ187: 0.012 | AK187: 0.02 | AL187: 0.012 | AM187: 0.038 | AN187: 0.029 | AO187: 0 | AP187: 0.058 | AQ187: 0 | AR187: 0.002 | AS187: 0 | AT187: 0.013 | AU187: 0.018 | AV187: 0.026 | AW187: 0.249 | AX187: 0.006 | AY187: 0.003 | AZ187: 0 | BA187: 0.184 | BB187: 0.006 | BC187: 0 | BD187: 0.064
A188: Bridge Rehab. & Preventive | B188: BRIDGE REHABILITATION | C188: Structures | D188: General Const and Highway Structures | E188: 0.071 | F188: Urban | G188: $ 0.5M to $ 1M | H188: 2024-12-10 | I188: 2024 | J188: 20241210022 | K188: 1185-03-60 | L188: STATE HIGHWAY REHABILITATION | M188: NC | N188: Iron | O188: USH 002 | P188: City of Hurley; Wi/Mi Border Bridges B-26-0007,0008 | Q188: ZENITH TECH., INC. - WAUKESHA | R188: 2 | S188: 932081.19 | T188: =IFERROR(Table1[[#This Row],[Total Bid Amount]]/Table1[[#This Row],[Proposal Length]]," ") -> 13127904.08 | U188: 460.6223 | V188: HMA Pavement 3 MT 58-28 S | W188: 238 | X188: 208.9647059 | Y188: 2 | AA188: 145000 | AB188: 0.156 | AC188: 25350 | AD188: 0.027 | AE188: 0.021 | AF188: 0.054 | AG188: 0.022 | AH188: 0.041 | AI188: 0.155 | AJ188: 0 | AK188: 0 | AL188: 0 | AM188: 0.012 | AN188: 0.011 | AO188: 0 | AP188: 0.017 | AQ188: 0 | AR188: 0.001 | AS188: 0 | AT188: 0.01 | AU188: 0.029 | AV188: 0.013 | AW188: 0 | AX188: 0.015 | AY188: 0.002 | AZ188: 0 | BA188: 0.356 | BB188: 0.006 | BC188: 0 | BD188: 0.081
A189: Bridge Replacement | B189: BRIDGE REPLACEMENT, PRESERVATION | C189: Asphaltic Pavement | D189: Gen Const and Asph Surf and Structures | E189: 0.047 | F189: Rural | G189: $ 0.5M or less | H189: 2024-12-10 | I189: 2024 | J189: 20241210023 | K189: 6925-01-70 | L189: HIGHWAY AND LOCAL BRIDGE IMPROVEMENT ASSISTANCE | M189: NC | N189: Wood | O189: CTH N | P189: STH 186 - CTH K; Branch Hemlock Creek, B-71-0207 | Q189: PHEIFER BROTHERS CONSTRUCTION CO., INC. | R189: 6 | S189: 416823.71 | T189: =IFERROR(Table1[[#This Row],[Total Bid Amount]]/Table1[[#This Row],[Proposal Length]]," ") -> 8868589.574 | AA189: 14170.2 | AB189: 0.034 | AC189: 1862.18 | AD189: 0.005 | AE189: 0.008 | AF189: 0.048 | AG189: 0.029 | AH189: 0 | AI189: 0.003 | AJ189: 0 | AK189: 0.003 | AL189: 0 | AM189: 0.054 | AN189: 0.147 | AO189: 0 | AP189: 0 | AQ189: 0 | AR189: 0.004 | AS189: 0 | AT189: 0.016 | AU189: 0.011 | AV189: 0 | AW189: 0.188 | AX189: 0 | AY189: 0 | AZ189: 0.003 | BA189: 0.437 | BB189: 0.008 | BC189: 0 | BD189: 0.008
A190: Preservation/Restoration | B190: PATCH/RUT FILL/REPAIR AND GRIND/SLAB REPLACE | C190: Asphaltic Pavement | D190: General Const and Asphaltic Surfacing | E190: 5.23 | F190: Rural | G190: $ 2M to $10M | H190: 2024-12-10 | I190: 2024 | J190: 20241210024 | K190: 6933-00-61 | L190: STATE HIGHWAY REHABILITATION | M190: NC | N190: Wood | O190: STH 173 | P190: Babcock - Nekoosa; Culvert Replacement | Q190: AMERICAN ASPHALT OF WISCONSIN | R190: 2 | S190: 3194857.1 | T190: =IFERROR(Table1[[#This Row],[Total Bid Amount]]/Table1[[#This Row],[Proposal Length]]," ") -> 610871.3384 | U190: 460.6224 | V190: HMA Pavement 4 MT 58-28 S | W190: 14725 | X190: 90.36 | Y190: 1 | Z190: X | AA190: 283040 | AB190: 0.089 | AC190: 9945 | AD190: 0.003 | AE190: 0.032 | AF190: 0.46 | AG190: 0.052 | AH190: 0 | AI190: 0.002 | AJ190: 0.004 | AK190: 0.089 | AL190: 0 | AM190: 0.02 | AN190: 0.036 | AO190: 0 | AP190: 0.05 | AQ190: 0 | AR190: 0 | AS190: 0 | AT190: 0.016 | AU190: 0.031 | AV190: 0.09 | AW190: 0.001 | AX190: 0 | AY190: 0.004 | AZ190: 0.001 | BA190: 0.015 | BB190: 0.002 | BC190: 0 | BD190: 0.007
A191: Bridge Replacement | B191: BRIDGE REPLACEMENT, PRESERVATION | C191: Structures | D191: Gen Const and Grading and Structures | E191: 0.04 | F191: Rural | G191: $ 0.5M or less | H191: 2024-12-10 | I191: 2024 | J191: 20241210025 | K191: 9302-00-70 | L191: HIGHWAY AND LOCAL BRIDGE IMPROVEMENT ASSISTANCE | M191: NC | N191: Shawano | O191: LOC STR | P191: T Seneca, School House Road; N Branch Embarrass River, B-58-0138 | Q191: PHEIFER BROTHERS CONSTRUCTION CO., INC. | R191: 6 | S191: 418809.17 | T191: =IFERROR(Table1[[#This Row],[Total Bid Amount]]/Table1[[#This Row],[Proposal Length]]," ") -> 10470229.25 | U191: 460.5223 | V191: HMA Pavement 3 LT 58-28 S | W191: 96 | X191: 145.828125 | Y191: 2 | AA191: 26146.02 | AB191: 0.062 | AC191: 0 | AD191: =Table1[[#This Row],[Traffic Control Item Price]]/Table1[[#This Row],[Total Bid Amount]] -> 0 | AE191: 0 | AF191: 0.034 | AG191: 0.021 | AH191: 0 | AI191: 0.003 | AJ191: 0 | AK191: 0.003 | AL191: 0 | AM191: 0.079 | AN191: 0.143 | AO191: 0 | AP191: 0 | AQ191: 0 | AR191: 0.002 | AS191: 0 | AT191: 0.019 | AU191: 0 | AV191: 0 | AW191: 0.184 | AX191: 0 | AY191: 0 | AZ191: 0.002 | BA191: 0.439 | BB191: 0.008 | BC191: 0 | BD191: 0
A192: Pavement Replacement | B192: PAVEMENT REPLACEMENT | C192: Asphaltic Pavement | D192: Gen Const and Asph Surf and Structures | E192: 9.617 | F192: Rural | G192: $ 2M to $10M | H192: 2024-12-10 | I192: 2024 | J192: 20241210026 | K192: 9303-03-71 | L192: STATE HIGHWAY REHABILITATION | M192: NC | N192: Iron | O192: STH 122 | P192: Upson - Montreal River; STH 77 to South Junction CTH B | Q192: MUSSON BROS., INC. | R192: 3 | S192: 4565044.56 | T192: =IFERROR(Table1[[#This Row],[Total Bid Amount]]/Table1[[#This Row],[Proposal Length]]," ") -> 474684.8872 | U192: 460.5244 | V192: HMA Pavement 4 LT 58-34 S | W192: 19690 | X192: 85.64 | Y192: 1 | Z192: X | AA192: 380000 | AB192: 0.083 | AC192: 3000 | AD192: 0.001 | AE192: 0.009 | AF192: 0.41 | AG192: 0.187 | AH192: 0 | AI192: 0.01 | AJ192: 0.001 | AK192: 0.061 | AL192: 0 | AM192: 0.022 | AN192: 0.034 | AO192: 0 | AP192: 0.006 | AQ192: 0 | AR192: 0 | AS192: 0 | AT192: 0.018 | AU192: 0.058 | AV192: 0 | AW192: 0.029 | AX192: 0 | AY192: 0.001 | AZ192: 0.001 | BA192: 0.058 | BB192: 0.006 | BC192: 0 | BD192: 0.002
A193: Bridge Replacement | B193: BRIDGE REPLACEMENT, PRESERVATION | C193: Structures | D193: Gen Const and Grading and Structures | E193: 0.028 | F193: Rural | G193: $ 1M to $ 2M | H193: 2024-12-10 | I193: 2024 | J193: 20241210027 | K193: 9330-01-70 | L193: LOCAL TRANSPORTATION FACILITY IMPROVEMENT ASSISTANCE | M193: NC | N193: Forest | O193: CTH C | P193: T Wabeno, Soper Street; N Br Oconto River Bridge B210033 | Q193: SHEET PILING SERVICES LLC | R193: 4 | S193: 1636970.69 | T193: =IFERROR(Table1[[#This Row],[Total Bid Amount]]/Table1[[#This Row],[Proposal Length]]," ") -> 58463238.93 | AA193: 122910 | AB193: 0.075 | AC193: 3500 | AD193: 0.002 | AE193: 0.023 | AF193: 0.034 | AG193: 0.069 | AH193: 0 | AI193: 0.008 | AJ193: 0.008 | AK193: 0.014 | AL193: 0 | AM193: 0.137 | AN193: 0.15 | AO193: 0 | AP193: 0.02 | AQ193: 0 | AR193: 0.005 | AS193: 0 | AT193: 0.011 | AU193: 0.003 | AV193: 0.002 | AW193: 0.052 | AX193: 0 | AY193: 0 | AZ193: 0.002 | BA193: 0.37 | BB193: 0.012 | BC193: 0 | BD193: 0.005
A194: Resurfacing | B194: RESURFACING (OVERLAY < 2.5 INCHES) | C194: General Construction | D194: General Construction | E194: 2.208 | F194: Rural | G194: $ 2M to $10M | H194: 2024-12-10 | I194: 2024 | J194: 20241210028 | K194: 9931-02-72 | L194: STATE HIGHWAY REHABILITATION | M194: NC | N194: Price | O194: STH 013 | P194: City of Park Falls; N Fork Flambeau Rvr Brdg - 5th St N | Q194: AMERICAN ASPHALT OF WISCONSIN | R194: 1 | S194: 2532597.41 | T194: =IFERROR(Table1[[#This Row],[Total Bid Amount]]/Table1[[#This Row],[Proposal Length]]," ") -> 1147009.697 | U194: 460.6424 | V194: HMA Pavement 4 MT 58-28 H | W194: 6050 | X194: 98.81 | Y194: 1 | AA194: 160859.01 | AB194: 0.064 | AC194: 6763.97 | AD194: 0.003 | AE194: 0.241 | AF194: 0.281 | AG194: 0.009 | AH194: 0 | AI194: 0.006 | AJ194: 0.121 | AK194: 0.019 | AL194: 0.014 | AM194: 0.015 | AN194: 0.026 | AO194: 0 | AP194: 0 | AQ194: 0 | AR194: 0 | AS194: 0.003 | AT194: 0.041 | AU194: 0.061 | AV194: 0.058 | AW194: 0 | AX194: 0 | AY194: 0.009 | AZ194: 0.001 | BA194: 0 | BB194: 0.005 | BC194: 0.003 | BD194: 0.025
A195: Traffic Operations | B195: STH - TRAFFIC OPERATIONS PAVEMENT MARKING | C195: General Construction | D195: General and Incidental Construction | E195: 225 | F195: Rural | G195: $ 1M to $ 2M | H195: 2024-12-10 | I195: 2024 | J195: 20241210029 | K195: 1000-18-63 | L195: HIGHWAY MAINTENANCE, REPAIR AND TRAFFIC OPERATIONS | M195: NW | N195: Northwest Region Wide | O195: VAR HWY | P195: Nw Region, Pavement Marking 2025; Various Highways, Nw Region Wide | Q195: SIR LINES-A-LOT LLC | R195: 2 | S195: 1969403.09 | T195: =IFERROR(Table1[[#This Row],[Total Bid Amount]]/Table1[[#This Row],[Proposal Length]]," ") -> 8752.902622 | AA195: 50000 | AB195: 0.025 | AC195: 50000 | AD195: =Table1[[#This Row],[Traffic Control Item Price]]/Table1[[#This Row],[Total Bid Amount]] -> 0.02538840335 | AE195: 0.034 | AF195: 0 | AG195: 0 | AH195: 0 | AI195: 0 | AJ195: 0 | AK195: 0 | AL195: 0 | AM195: 0 | AN195: 0 | AO195: 0 | AP195: 0 | AQ195: 0 | AR195: 0 | AS195: 0 | AT195: 0 | AU195: 0.94 | AV195: 0 | AW195: 0 | AX195: 0 | AY195: 0 | AZ195: 0 | BA195: 0 | BB195: 0 | BC195: 0 | BD195: 0
A196: Resurfacing | B196: RESURFACING (OVERLAY >= 2.5 INCHES AND < 4 INCHES) | C196: Concrete Pavement | D196: Gen Const and PCC Pvmt and Asph Surface | E196: 15.137 | F196: Rural | G196: $20M or more | H196: 2024-12-10 | I196: 2024 | J196: 20241210031 | K196: 1050-00-62 | L196: STATE HIGHWAY REHABILITATION | M196: NW | N196: Clark | O196: STH 029 | P196: Chippewa Falls - Abbotsford; Koser Ave to CTH D (Eb & Wb) | Q196: MATHY CONSTRUCTION COMPANY | R196: 1 | S196: 23744746.82 | T196: =IFERROR(Table1[[#This Row],[Total Bid Amount]]/Table1[[#This Row],[Proposal Length]]," ") -> 1568656.063 | U196: 460.8644 | V196: HMA Pavement 4 SMA 58-34 V | W196: 157746 | X196: 92.26680182 | Y196: 3 | Z196: X | AA196: 1335553.67 | AB196: 0.056 | AC196: 160000 | AD196: 0.007 | AE196: 0.064 | AF196: 0.639 | AG196: 0.04 | AH196: 0 | AI196: 0.018 | AJ196: 0.003 | AK196: 0.003 | AL196: 0 | AM196: 0.004 | AN196: 0.011 | AO196: 0 | AP196: 0.021 | AQ196: 0 | AR196: 0 | AS196: 0 | AT196: 0.017 | AU196: 0.036 | AV196: 0.03 | AW196: 0.002 | AX196: 0.008 | AY196: 0.002 | AZ196: 0 | BA196: 0.015 | BB196: 0.001 | BC196: 0 | BD196: 0.03
A197: Pavement Replacement | B197: PAVEMENT REPLACEMENT | C197: Asphaltic Pavement | D197: General Const and Asphaltic Surfacing | E197: 5.257 | F197: Rural | G197: $ 2M to $10M | H197: 2024-12-10 | I197: 2024 | J197: 20241210032 | K197: 7026-00-71 | L197: LOCAL TRANSPORTATION FACILITY IMPROVEMENT ASSISTANCE | M197: NW | N197: Jackson | O197: CTH N | P197: STH 54 - Taylor; CTH C to Rabbit Run Road | Q197: GERKE EXCAVATING INC | R197: 7 | S197: 3846694.01 | T197: =IFERROR(Table1[[#This Row],[Total Bid Amount]]/Table1[[#This Row],[Proposal Length]]," ") -> 731727.9836 | U197: 460.5223 | V197: HMA Pavement 3 LT 58-28 S | W197: 17600 | X197: 83.66984375 | Y197: 2 | AA197: 326068.24 | AB197: 0.085 | AC197: 5320.5 | AD197: 0.001 | AE197: 0.001 | AF197: 0.39 | AG197: 0.253 | AH197: 0 | AI197: 0 | AJ197: 0 | AK197: 0 | AL197: 0 | AM197: 0.056 | AN197: 0.084 | AO197: 0 | AP197: 0.087 | AQ197: 0 | AR197: 0.01 | AS197: 0 | AT197: 0.011 | AU197: 0.013 | AV197: 0 | AW197: 0 | AX197: 0 | AY197: 0.001 | AZ197: 0.001 | BA197: 0 | BB197: 0.004 | BC197: 0 | BD197: 0.004
A198: Bridge Replacement | B198: BRIDGE REPLACEMENT, PRESERVATION | C198: Structures | D198: Gen Const and Grading and Structures | E198: 0.057 | F198: Rural | G198: $ 0.5M or less | H198: 2024-12-10 | I198: 2024 | J198: 20241210033 | K198: 7027-00-72 | L198: HIGHWAY AND LOCAL BRIDGE IMPROVEMENT ASSISTANCE | M198: NW | N198: Jackson | O198: CTH O | P198: STH 27 - Millston; Clear Creek Bridge B-27-0179 | Q198: LARSON CONSTRUCTION CO., INC. | R198: 5 | S198: 423432.98 | T198: =IFERROR(Table1[[#This Row],[Total Bid Amount]]/Table1[[#This Row],[Proposal Length]]," ") -> 7428648.772 | AA198: 35895 | AB198: 0.085 | AC198: 2586 | AD198: 0.006 | AE198: 0.014 | AF198: 0.049 | AG198: 0.033 | AH198: 0 | AI198: 0.003 | AJ198: 0 | AK198: 0.003 | AL198: 0 | AM198: 0.063 | AN198: 0.092 | AO198: 0 | AP198: 0 | AQ198: 0 | AR198: 0.002 | AS198: 0 | AT198: 0.023 | AU198: 0.012 | AV198: 0 | AW198: 0.076 | AX198: 0 | AY198: 0 | AZ198: 0.003 | BA198: 0.529 | BB198: 0.006 | BC198: 0 | BD198: 0.009
A199: Resurfacing | B199: RESURFACING (OVERLAY >= 2.5 INCHES AND < 4 INCHES) | C199: Asphaltic Pavement | D199: General Const and Asphaltic Surfacing | E199: 6.43 | F199: Rural | G199: $ 2M to $10M | H199: 2024-12-10 | I199: 2024 | J199: 20241210034 | K199: 7080-01-73 | L199: STATE HIGHWAY REHABILITATION | M199: NW | N199: Eau Claire | O199: USH 012 | P199: Eau Claire - Fairchild; Industrial Dr to Fall Creek Under | Q199: MONARCH PAVING COMPANY | R199: 1 | S199: 4475759.3 | T199: =IFERROR(Table1[[#This Row],[Total Bid Amount]]/Table1[[#This Row],[Proposal Length]]," ") -> 696074.5412 | U199: 460.6645 | V199: HMA Pavement 5 MT 58-34 V | W199: 24320 | X199: 97.96 | Y199: 1 | Z199: X | AA199: 415884.16 | AB199: 0.093 | AC199: 34978 | AD199: 0.008 | AE199: 0.001 | AF199: 0.628 | AG199: 0.046 | AH199: 0 | AI199: 0 | AJ199: 0.001 | AK199: 0.035 | AL199: 0 | AM199: 0.011 | AN199: 0.038 | AO199: 0 | AP199: 0.013 | AQ199: 0 | AR199: 0.001 | AS199: 0 | AT199: 0.017 | AU199: 0.029 | AV199: 0.065 | AW199: 0.001 | AX199: 0.002 | AY199: 0.002 | AZ199: 0.001 | BA199: 0 | BB199: 0.001 | BC199: 0 | BD199: 0.013
A200: Bridge Replacement | B200: BRIDGE REPLACEMENT, PRESERVATION | C200: Structures | D200: Gen Const and Grading and Structures | E200: 0.028 | F200: Rural | G200: $ 0.5M or less | H200: 2024-12-10 | I200: 2024 | J200: 20241210035 | K200: 7281-00-75 | L200: HIGHWAY AND LOCAL BRIDGE IMPROVEMENT ASSISTANCE | M200: NW | N200: Trempealeau | O200: LOC STR | P200: T Ettrick, Lien Lane; N Fork Beaver Creek Br B-61-0253 | Q200: PHEIFER BROTHERS CONSTRUCTION CO., INC. | R200: 4 | S200: 416852.76 | T200: =IFERROR(Table1[[#This Row],[Total Bid Amount]]/Table1[[#This Row],[Proposal Length]]," ") -> 14887598.57 | AA200: 6814.55 | AB200: 0.016 | AC200: 2394.23 | AD200: 0.006 | AE200: 0.014 | AF200: 0.022 | AG200: 0.048 | AH200: 0 | AI200: 0.002 | AJ200: 0 | AK200: 0.003 | AL200: 0 | AM200: 0.076 | AN200: 0.152 | AO200: 0 | AP200: 0 | AQ200: 0 | AR200: 0.005 | AS200: 0 | AT200: 0.009 | AU200: 0 | AV200: 0 | AW200: 0.244 | AX200: 0 | AY200: 0 | AZ200: 0.005 | BA200: 0.389 | BB200: 0.005 | BC200: 0 | BD200: 0.01
... 925 more rows
